Service Delivery Area(T),Service Delivery Team(T),ExpenditureGroup(T),Account(T),Supplier Name(T),Trans Date,Amount
Adult Social Care,ASC Prevention & Enablement,Employees,Employee Costs Recharged,SHROPSHIRE COMMUNITY HEALTH NHS TRUST,22/08/2022,"39,324.00"
Adult Social Care,ASC Prevention & Enablement,Employees,Employee Costs Recharged,SHROPSHIRE COMMUNITY HEALTH NHS TRUST,22/08/2022,"19,662.00"
Adult Social Care,ASC Prevention & Enablement,Employees,Employee Costs Recharged,SHROPSHIRE COMMUNITY HEALTH NHS TRUST,22/08/2022,"19,662.00"
Adult Social Care,ASC Prevention & Enablement,Supplies & Services,Equipment - Purchase,Lawley Pharmacy,22/08/2022,140.00
Adult Social Care,ASC Prevention & Enablement,Third Party Payments,Nursing Expenditure,"NHS Shropshire, Telford and Wrekin CCG",09/08/2022,"14,640.00"
Adult Social Care,ASC Prevention & Enablement,Third Party Payments,Nursing Expenditure,"NHS Shropshire, Telford and Wrekin CCG",09/08/2022,"7,200.00"
Adult Social Care,ASC Prevention & Enablement,Transport-Related Expenditure,Taxi Costs,Telford and Wrekin Community Enterprise LTD,23/08/2022,430.00
Adult Social Care,ASC Prevention & Enablement,Transport-Related Expenditure,Taxi Costs,Go Carz,09/08/2022,271.92
Adult Social Care,ASC Prevention & Enablement,Transport-Related Expenditure,Taxi Costs,Go Carz,09/08/2022,324.00
Adult Social Care,ASC Prevention & Enablement,Transport-Related Expenditure,Taxi Costs,Cartello Ambulance,09/08/2022,156.00
Adult Social Care,ASC Prevention & Enablement,Transport-Related Expenditure,Taxi Costs,Cartello Ambulance,09/08/2022,182.00
Adult Social Care,ASC Prevention & Enablement,Transport-Related Expenditure,Taxi Costs,Cartello Ambulance,09/08/2022,255.00
Adult Social Care,ASC Prevention & Enablement,Transport-Related Expenditure,Taxi Costs,Cartello Ambulance,09/08/2022,156.00
Adult Social Care,ASC Prevention & Enablement,Transport-Related Expenditure,Taxi Costs,Go Carz,09/08/2022,113.88
Adult Social Care,ASC Prevention & Enablement,Transport-Related Expenditure,Taxi Costs,Cartello Ambulance,09/08/2022,156.00
Adult Social Care,ASC Prevention & Enablement,Transport-Related Expenditure,Taxi Costs,Cartello Ambulance,09/08/2022,156.00
Adult Social Care,ASC Prevention & Enablement,Transport-Related Expenditure,Taxi Costs,Cartello Ambulance,09/08/2022,156.00
Adult Social Care,ASC Prevention & Enablement,Transport-Related Expenditure,Taxi Costs,Cartello Ambulance,09/08/2022,156.00
Adult Social Care,ASC Prevention & Enablement,Transport-Related Expenditure,Taxi Costs,Cartello Ambulance,09/08/2022,156.00
Adult Social Care,ASC Prevention & Enablement,Transport-Related Expenditure,Taxi Costs,Telford Taxi Hire Limited,23/08/2022,700.00
Adult Social Care,ASC Prevention & Enablement,Transport-Related Expenditure,Taxi Costs,Telford Taxi Hire Limited,23/08/2022,220.00
Adult Social Care,ASC Prevention & Enablement,Transport-Related Expenditure,Taxi Costs,Telford Taxi Hire Limited,22/08/2022,700.00
Adult Social Care,ASC Prevention & Enablement,Transport-Related Expenditure,Taxi Costs,Cartello Ambulance,22/08/2022,130.00
Adult Social Care,ASC Prevention & Enablement,Transport-Related Expenditure,Taxi Costs,Cartello Ambulance,22/08/2022,156.00
Adult Social Care,ASC Prevention & Enablement,Transport-Related Expenditure,Taxi Costs,Cartello Ambulance,22/08/2022,156.00
Adult Social Care,ASC Prevention & Enablement,Transport-Related Expenditure,Taxi Costs,Cartello Ambulance,22/08/2022,182.00
Adult Social Care,ASC Prevention & Enablement,Employees,Agency Supply Costs,Reed Talent Solutions Ltd,25/08/2022,"2,160.00"
Adult Social Care,ASC Prevention & Enablement,Employees,Other Employee Costs,Medgen LTD,12/08/2022,"2,971.99"
Adult Social Care,ASC Prevention & Enablement,Employees,Agency Supply Costs,Reed Talent Solutions Ltd,15/08/2022,"2,160.00"
Adult Social Care,"Commissioning, Procurement & Brokerage",Third Party Payments,Interpreters Fees,EXPRESS INTERPRETING & TRANSLATION,04/08/2022,"4,219.86"
Adult Social Care,"Commissioning, Procurement & Brokerage",Supplies & Services,Other Grants (Expenses),THE STROKE ASSOCIATION,24/08/2022,"11,499.44"
Adult Social Care,"Commissioning, Procurement & Brokerage",Supplies & Services,Other Grants (Expenses),THE STROKE ASSOCIATION,24/08/2022,"11,499.44"
Adult Social Care,"Commissioning, Procurement & Brokerage",Supplies & Services,Other Grants (Expenses),TELFORD & WREKIN CVS,09/08/2022,"90,000.00"
Adult Social Care,"Commissioning, Procurement & Brokerage",Supplies & Services,Other Grants (Expenses),TACT,04/08/2022,"10,450.00"
Adult Social Care,"Commissioning, Procurement & Brokerage",Supplies & Services,Other Grants (Expenses),TACT,04/08/2022,"10,450.00"
Adult Social Care,"Commissioning, Procurement & Brokerage",Supplies & Services,Grants To Voluntary Organis,Doro Care Uk,18/08/2022,"5,217.17"
Adult Social Care,"Commissioning, Procurement & Brokerage",Supplies & Services,Other Grants (Expenses),Doro Care Uk,18/08/2022,"3,815.12"
Adult Social Care,"Commissioning, Procurement & Brokerage",Supplies & Services,Other Grants (Expenses),Doro Care Uk,18/08/2022,"2,370.53"
Adult Social Care,"Commissioning, Procurement & Brokerage",Supplies & Services,Other Grants (Expenses),ANCHOR HOUSING TRUST,01/08/2022,133.33
Adult Social Care,"Commissioning, Procurement & Brokerage",Supplies & Services,Other Grants (Expenses),HANOVER HOUSING ASSOCIATION,01/08/2022,750.00
Adult Social Care,"Commissioning, Procurement & Brokerage",Supplies & Services,Other Grants (Expenses),OLD BEN HOMES,01/08/2022,433.33
Adult Social Care,"Commissioning, Procurement & Brokerage",Supplies & Services,Other Grants (Expenses),SANCTUARY HOUSING ASSOCIATION ,01/08/2022,610.70
Adult Social Care,"Commissioning, Procurement & Brokerage",Supplies & Services,Other Grants (Expenses),BROMFORD HOUSING ASSOCIATION LIMITED,01/08/2022,"36,666.67"
Adult Social Care,"Commissioning, Procurement & Brokerage",Supplies & Services,Other Grants (Expenses),TELFORD CHRISTIAN COUNCIL SUPPORTED HOUS,01/08/2022,"36,401.83"
Adult Social Care,"Commissioning, Procurement & Brokerage",Supplies & Services,Other Grants (Expenses),WREKIN HOUSING TRUST ,01/08/2022,"25,568.33"
Adult Social Care,Community Social Work & Adult Safeguarding,Supplies & Services,Mobile Phones,EE LTD EQUIPMENT ,04/08/2022,142.00
Adult Social Care,Community Social Work & Adult Safeguarding,Supplies & Services,Mobile Phones,EE LTD EQUIPMENT ,04/08/2022,142.00
Adult Social Care,Community Social Work & Adult Safeguarding,Supplies & Services,Mobile Phones,EE LTD EQUIPMENT ,04/08/2022,142.00
Adult Social Care,Community Social Work & Adult Safeguarding,Supplies & Services,Medical Consultants Fees,REDACTED PERSONAL INFORMATION,03/08/2022,"1,087.08"
Adult Social Care,Community Social Work (Principal Social Worker),Supplies & Services,Other Grants (Expenses),PODS,04/08/2022,"50,000.00"
Adult Social Care,Community Social Work (Principal Social Worker),Premises-Related Expenditure,General Rents,First Choice Housing Association LTD,04/08/2022,963.63
Adult Social Care,Community Social Work (Principal Social Worker),Transport-Related Expenditure,Transport,Go Carz,04/08/2022,"2,400.00"
Adult Social Care,Community Social Work (Principal Social Worker),Transport-Related Expenditure,Transport,Go Carz,25/08/2022,"2,280.00"
Adult Social Care,My Options,Employees,Agency Supply Costs,Safehands Recruitment,04/08/2022,718.25
Adult Social Care,My Options,Employees,Agency Supply Costs,Safehands Recruitment,11/08/2022,"1,504.50"
Adult Social Care,My Options,Employees,Agency Supply Costs,Safehands Recruitment,23/08/2022,"1,020.00"
Adult Social Care,My Options,Employees,Agency Supply Costs,Safehands Recruitment,25/08/2022,"1,538.50"
Adult Social Care,My Options,Premises-Related Expenditure,Clean Mats & Toilet Requisites,BERWICK CARE EQUIPMENT LTD,23/08/2022,148.00
Adult Social Care,My Options,Premises-Related Expenditure,Clean Mats & Toilet Requisites,PHS GROUP,23/08/2022,125.22
Adult Social Care,My Options,Premises-Related Expenditure,Hire Of Rooms,All Saints Wellington,23/08/2022,310.00
Adult Social Care,My Options,Premises-Related Expenditure,Hire Of Rooms,DONNINGTON PARTNERSHIP,23/08/2022,240.00
Adult Social Care,My Options,Premises-Related Expenditure,Hire Of Rooms,Dawley Baptist Church,09/08/2022,350.00
Adult Social Care,My Options,Employees,Agency Supply Costs,Safehands Recruitment,04/08/2022,"2,922.00"
Adult Social Care,My Options,Employees,Agency Supply Costs,Safehands Recruitment,04/08/2022,"1,538.00"
Adult Social Care,My Options,Employees,Agency Supply Costs,Nurse Plus and Carer Plus Limited,11/08/2022,"2,367.00"
Adult Social Care,My Options,Employees,Agency Supply Costs,Safehands Recruitment,11/08/2022,960.00
Adult Social Care,My Options,Employees,Agency Supply Costs,Nurse Plus and Carer Plus Limited,04/08/2022,"2,201.35"
Adult Social Care,My Options,Employees,Agency Supply Costs,Nurse Plus and Carer Plus Limited,04/08/2022,"2,481.63"
Adult Social Care,My Options,Employees,Agency Supply Costs,Nurse Plus and Carer Plus Limited,23/08/2022,"2,957.85"
Adult Social Care,My Options,Employees,Agency Supply Costs,Safehands Recruitment,23/08/2022,710.00
Adult Social Care,My Options,Employees,Agency Supply Costs,Safehands Recruitment,25/08/2022,903.00
Adult Social Care,My Options,Employees,Agency Supply Costs,Nurse Plus and Carer Plus Limited,25/08/2022,"2,497.20"
Adult Social Care,My Options,Employees,Agency Supply Costs,Nurse Plus and Carer Plus Limited,09/08/2022,"1,787.03"
Adult Social Care,My Options,Employees,Agency Supply Costs,Safehands Recruitment,02/08/2022,"2,810.00"
Adult Social Care,My Options,Employees,Agency Supply Costs,Nurse Plus and Carer Plus Limited,02/08/2022,"2,082.00"
Adult Social Care,My Options,Premises-Related Expenditure,Clean Mats & Toilet Requisites,BERWICK CARE EQUIPMENT LTD,04/08/2022,268.84
Adult Social Care,My Options,Premises-Related Expenditure,Clean Mats & Toilet Requisites,BERWICK CARE EQUIPMENT LTD,05/08/2022,166.11
Adult Social Care,My Options,Premises-Related Expenditure,Clean Mats & Toilet Requisites,BERWICK CARE EQUIPMENT LTD,25/08/2022,367.08
Adult Social Care,My Options,Premises-Related Expenditure,R&M -Buildings DLO Charge,COOL SERVICES LTD,04/08/2022,"1,030.00"
Adult Social Care,My Options,Supplies & Services,Equipment - Purchase,MEDACO,11/08/2022,528.00
Adult Social Care,My Options,Supplies & Services,Equipment - Purchase,TYNETEC Ltd,22/08/2022,412.26
Adult Social Care,My Options,Employees,Agency Supply Costs,Safehands Recruitment,04/08/2022,"2,467.56"
Adult Social Care,My Options,Employees,Agency Supply Costs,Safehands Recruitment,04/08/2022,"1,149.50"
Adult Social Care,My Options,Employees,Agency Supply Costs,Nurse Plus and Carer Plus Limited,03/08/2022,125.65
Adult Social Care,My Options,Employees,Agency Supply Costs,Nurse Plus and Carer Plus Limited,04/08/2022,345.50
Adult Social Care,My Options,Employees,Agency Supply Costs,Safehands Recruitment,04/08/2022,621.60
Adult Social Care,My Options,Employees,Agency Supply Costs,Safehands Recruitment,04/08/2022,"1,076.80"
Adult Social Care,My Options,Employees,Agency Supply Costs,Safehands Recruitment,04/08/2022,133.00
Adult Social Care,My Options,Employees,Agency Supply Costs,Safehands Recruitment,04/08/2022,"1,556.89"
Adult Social Care,My Options,Employees,Agency Supply Costs,Safehands Recruitment,11/08/2022,"1,012.21"
Adult Social Care,My Options,Employees,Agency Supply Costs,Nurse Plus and Carer Plus Limited,11/08/2022,"5,122.28"
Adult Social Care,My Options,Employees,Agency Supply Costs,Safehands Recruitment,11/08/2022,605.50
Adult Social Care,My Options,Employees,Agency Supply Costs,Safehands Recruitment,11/08/2022,894.97
Adult Social Care,My Options,Employees,Agency Supply Costs,Safehands Recruitment,11/08/2022,228.11
Adult Social Care,My Options,Employees,Agency Supply Costs,Safehands Recruitment,11/08/2022,660.76
Adult Social Care,My Options,Employees,Agency Supply Costs,Safehands Recruitment,11/08/2022,"2,335.78"
Adult Social Care,My Options,Employees,Agency Supply Costs,Nurse Plus and Carer Plus Limited,11/08/2022,753.58
Adult Social Care,My Options,Employees,Agency Supply Costs,Nadat & Co Ltd T/A JN Recruitment,02/08/2022,676.51
Adult Social Care,My Options,Employees,Agency Supply Costs,Nurse Plus and Carer Plus Limited,02/08/2022,"5,595.42"
Adult Social Care,My Options,Employees,Agency Supply Costs,Nurse Plus and Carer Plus Limited,02/08/2022,125.65
Adult Social Care,My Options,Employees,Agency Supply Costs,Nurse Plus and Carer Plus Limited,02/08/2022,301.00
Adult Social Care,My Options,Employees,Agency Supply Costs,Safehands Recruitment,02/08/2022,260.50
Adult Social Care,My Options,Employees,Agency Supply Costs,Safehands Recruitment,02/08/2022,382.50
Adult Social Care,My Options,Employees,Agency Supply Costs,Safehands Recruitment,02/08/2022,901.50
Adult Social Care,My Options,Employees,Agency Supply Costs,Safehands Recruitment,02/08/2022,"1,942.50"
Adult Social Care,My Options,Employees,Agency Supply Costs,JN Recruitment,02/08/2022,334.13
Adult Social Care,My Options,Employees,Agency Supply Costs,Safehands Recruitment,02/08/2022,"1,023.88"
Adult Social Care,My Options,Employees,Agency Supply Costs,Safehands Recruitment,04/08/2022,807.50
Adult Social Care,My Options,Employees,Agency Supply Costs,Safehands Recruitment,04/08/2022,"1,755.00"
Adult Social Care,My Options,Employees,Agency Supply Costs,Safehands Recruitment,04/08/2022,"2,770.34"
Adult Social Care,My Options,Employees,Agency Supply Costs,Safehands Recruitment,04/08/2022,190.00
Adult Social Care,My Options,Employees,Agency Supply Costs,JN Recruitment,04/08/2022,684.78
Adult Social Care,My Options,Employees,Agency Supply Costs,JN Recruitment,04/08/2022,577.50
Adult Social Care,My Options,Employees,Agency Supply Costs,Nurse Plus and Carer Plus Limited,04/08/2022,"5,929.11"
Adult Social Care,My Options,Employees,Agency Supply Costs,Nurse Plus and Carer Plus Limited,04/08/2022,"3,469.32"
Adult Social Care,My Options,Employees,Agency Supply Costs,Nurse Plus and Carer Plus Limited,04/08/2022,396.44
Adult Social Care,My Options,Employees,Agency Supply Costs,Nurse Plus and Carer Plus Limited,04/08/2022,972.30
Adult Social Care,My Options,Employees,Agency Supply Costs,Safehands Recruitment,04/08/2022,"1,249.12"
Adult Social Care,My Options,Employees,Agency Supply Costs,JN Recruitment,09/08/2022,445.52
Adult Social Care,My Options,Employees,Agency Supply Costs,Nurse Plus and Carer Plus Limited,23/08/2022,609.50
Adult Social Care,My Options,Employees,Agency Supply Costs,Safehands Recruitment,23/08/2022,"2,193.74"
Adult Social Care,My Options,Employees,Agency Supply Costs,Safehands Recruitment,23/08/2022,"1,290.09"
Adult Social Care,My Options,Employees,Agency Supply Costs,Safehands Recruitment,23/08/2022,376.72
Adult Social Care,My Options,Employees,Agency Supply Costs,JN Recruitment,23/08/2022,338.26
Adult Social Care,My Options,Employees,Agency Supply Costs,JN Recruitment,23/08/2022,462.01
Adult Social Care,My Options,Employees,Agency Supply Costs,Nurse Plus and Carer Plus Limited,23/08/2022,150.50
Adult Social Care,My Options,Employees,Agency Supply Costs,Nurse Plus and Carer Plus Limited,23/08/2022,"3,879.20"
Adult Social Care,My Options,Employees,Agency Supply Costs,Safehands Recruitment,23/08/2022,"2,108.96"
Adult Social Care,My Options,Employees,Agency Supply Costs,Safehands Recruitment,23/08/2022,952.03
Adult Social Care,My Options,Employees,Agency Supply Costs,JN Recruitment,05/08/2022,"1,039.50"
Adult Social Care,My Options,Employees,Agency Supply Costs,Ideal Home Care,02/08/2022,"3,688.95"
Adult Social Care,My Options,Employees,Agency Supply Costs,Safehands Recruitment,02/08/2022,"1,787.75"
Adult Social Care,My Options,Employees,Agency Supply Costs,Safehands Recruitment,25/08/2022,768.10
Adult Social Care,My Options,Employees,Agency Supply Costs,Safehands Recruitment,25/08/2022,"1,926.50"
Adult Social Care,My Options,Employees,Agency Supply Costs,Safehands Recruitment,25/08/2022,133.00
Adult Social Care,My Options,Employees,Agency Supply Costs,Safehands Recruitment,25/08/2022,382.33
Adult Social Care,My Options,Employees,Agency Supply Costs,Safehands Recruitment,25/08/2022,"1,220.55"
Adult Social Care,My Options,Employees,Agency Supply Costs,Safehands Recruitment,25/08/2022,371.88
Adult Social Care,My Options,Employees,Agency Supply Costs,Nurse Plus and Carer Plus Limited,25/08/2022,"3,589.51"
Adult Social Care,My Options,Employees,Agency Supply Costs,Nurse Plus and Carer Plus Limited,25/08/2022,"1,110.76"
Adult Social Care,My Options,Employees,Agency Supply Costs,Nurse Plus and Carer Plus Limited,25/08/2022,597.88
Adult Social Care,My Options,Supplies & Services,Mobile Phones,EE LTD EQUIPMENT ,31/08/2022,142.00
Adult Social Care,My Options,Supplies & Services,Mobile Phones,EE LTD EQUIPMENT ,04/08/2022,142.00
Adult Social Care,My Options,Supplies & Services,Mobile Phones,EE LTD EQUIPMENT ,04/08/2022,142.00
Adult Social Care,My Options,Supplies & Services,Other Travel,REDACTED PERSONAL INFORMATION,18/08/2022,234.00
Adult Social Care,My Options,Supplies & Services,Adult Flexi / Day Care,REDACTED PERSONAL INFORMATION,18/08/2022,694.20
Adult Social Care,My Options,Supplies & Services,Other Travel,REDACTED PERSONAL INFORMATION,18/08/2022,126.00
Adult Social Care,My Options,Supplies & Services,Adult Flexi / Day Care,REDACTED PERSONAL INFORMATION,18/08/2022,373.80
Adult Social Care,My Options,Supplies & Services,Adult Flexi / Day Care,REDACTED PERSONAL INFORMATION,11/08/2022,213.60
Adult Social Care,My Options,Supplies & Services,Adult Flexi / Day Care,REDACTED PERSONAL INFORMATION,11/08/2022,320.40
Adult Social Care,My Options,Supplies & Services,Adult Flexi / Day Care,REDACTED PERSONAL INFORMATION,11/08/2022,694.20
Adult Social Care,My Options,Supplies & Services,Respite Care,REDACTED PERSONAL INFORMATION,18/08/2022,160.20
Adult Social Care,My Options,Supplies & Services,Respite Care,REDACTED PERSONAL INFORMATION,18/08/2022,106.80
Adult Social Care,My Options,Supplies & Services,Respite Care,REDACTED PERSONAL INFORMATION,18/08/2022,213.60
Adult Social Care,My Options,Supplies & Services,Respite Care,REDACTED PERSONAL INFORMATION,11/08/2022,238.27
Adult Social Care,My Options,Supplies & Services,Respite Care,REDACTED PERSONAL INFORMATION,17/08/2022,"1,559.24"
Adult Social Care,My Options,Supplies & Services,Respite Care,REDACTED PERSONAL INFORMATION,17/08/2022,953.08
Adult Social Care,My Options,Supplies & Services,Respite Care,REDACTED PERSONAL INFORMATION,17/08/2022,248.49
Adult Social Care,My Options,Supplies & Services,Respite Care,REDACTED PERSONAL INFORMATION,17/08/2022,"1,372.40"
Adult Social Care,My Options,Supplies & Services,Respite Care,REDACTED PERSONAL INFORMATION,17/08/2022,169.80
Adult Social Care,My Options,Supplies & Services,Respite Care,REDACTED PERSONAL INFORMATION,05/08/2022,238.27
Adult Social Care,My Options,Supplies & Services,Respite Care,REDACTED PERSONAL INFORMATION,11/08/2022,106.80
Adult Social Care,My Options,Supplies & Services,Respite Care,REDACTED PERSONAL INFORMATION,30/08/2022,779.66
Adult Social Care,My Options,Supplies & Services,Respite Care,REDACTED PERSONAL INFORMATION,30/08/2022,136.15
Adult Social Care,My Options,Supplies & Services,Respite Care,REDACTED PERSONAL INFORMATION,30/08/2022,115.07
Adult Social Care,My Options,Employees,Agency Supply Costs,Iconic Care Limited,09/08/2022,"9,279.40"
Adult Social Care,My Options,Employees,Agency Supply Costs,Iconic Care Limited,09/08/2022,180.00
Adult Social Care,My Options,Employees,Agency Supply Costs,Iconic Care Limited,09/08/2022,"8,981.00"
Adult Social Care,My Options,Employees,Agency Supply Costs,Iconic Care Limited,09/08/2022,"9,396.00"
Adult Social Care,My Options,Employees,Agency Supply Costs,Iconic Care Limited,09/08/2022,"10,568.50"
Adult Social Care,My Options,Employees,Agency Supply Costs,Iconic Care Limited,09/08/2022,"1,296.00"
Adult Social Care,My Options,Employees,Agency Supply Costs,Iconic Care Limited,09/08/2022,702.00
Adult Social Care,My Options,Employees,Agency Supply Costs,Iconic Care Limited,09/08/2022,534.00
Adult Social Care,My Options,Employees,Agency Supply Costs,Iconic Care Limited,09/08/2022,386.00
Adult Social Care,Prevention & Independence - Older Adults & Disability,Employees,Staff Training,SHROPSHIRE COUNCIL ,31/08/2022,106.00
Adult Social Care,Prevention & Independence - Older Adults & Disability,Supplies & Services,Mobile Phones,EE LTD EQUIPMENT,04/08/2022,142.00
Adult Social Care,Prevention & Independence - Older Adults & Disability,Supplies & Services,Aids & Appliances,Medequip,22/08/2022,204.75
Adult Social Care,Prevention & Independence - Older Adults & Disability,Supplies & Services,Aids & Appliances,SARABEC LIMITED,17/08/2022,617.30
Adult Social Care,Prevention & Independence - Older Adults & Disability,Supplies & Services,Aids & Appliances,Medequip,19/08/2022,163.80
Adult Social Care,Prevention & Independence - Older Adults & Disability,Supplies & Services,Aids & Appliances,SARABEC LIMITED,18/08/2022,279.96
Adult Social Care,Prevention & Independence - Older Adults & Disability,Supplies & Services,Aids & Appliances,EE LTD EQUIPMENT ,04/08/2022,180.00
Adult Social Care,Prevention & Independence - Older Adults & Disability,Supplies & Services,Aids & Appliances,Easylink,03/08/2022,157.10
Adult Social Care,Prevention & Independence - Older Adults & Disability,Supplies & Services,Aids & Appliances,Easylink,03/08/2022,576.50
Adult Social Care,Prevention & Independence - Older Adults & Disability,Supplies & Services,Aids & Appliances,Easylink,03/08/2022,614.30
Adult Social Care,Prevention & Independence - Older Adults & Disability,Supplies & Services,Aids & Appliances,Doro Care Uk,24/08/2022,"1,290.00"
Adult Social Care,Prevention & Independence - Older Adults & Disability,Supplies & Services,Aids & Appliances,Easylink,31/08/2022,141.74
Adult Social Care,Prevention & Independence - Older Adults & Disability,Supplies & Services,Equipment - Repair,STANNAH LIFT SERVICES LTD,04/08/2022,354.95
Adult Social Care,Prevention & Independence - Older Adults & Disability,Supplies & Services,Equipment - Repair,STANNAH LIFT SERVICES LTD,04/08/2022,333.42
Adult Social Care,Prevention & Independence - Older Adults & Disability,Supplies & Services,Equipment - Repair,Closomat Limited,04/08/2022,307.00
Adult Social Care,Prevention & Independence - Older Adults & Disability,Supplies & Services,Equipment - Repair,STANNAH LIFT SERVICES LTD,18/08/2022,876.25
Adult Social Care,Prevention & Independence - Older Adults & Disability,Supplies & Services,Equipment - Repair,STANNAH LIFT SERVICES LTD,18/08/2022,220.57
Adult Social Care,Prevention & Independence - Older Adults & Disability,Supplies & Services,Equipment - Repair,STANNAH LIFT SERVICES LTD,18/08/2022,497.75
Adult Social Care,Prevention & Independence - Older Adults & Disability,Supplies & Services,Equipment - Repair,STANNAH LIFT SERVICES LTD,25/08/2022,"1,284.50"
Adult Social Care,Prevention & Independence - Older Adults & Disability,Supplies & Services,Equipment - Repair,STANNAH LIFT SERVICES LTD,18/08/2022,297.20
Adult Social Care,Prevention & Independence - Older Adults & Disability,Supplies & Services,Equipment - Repair,STANNAH LIFT SERVICES LTD,23/08/2022,129.34
Adult Social Care,Prevention & Independence - Older Adults & Disability,Supplies & Services,Equipment - Repair,STANNAH LIFT SERVICES LTD,23/08/2022,809.21
Adult Social Care,Prevention & Independence - Older Adults & Disability,Supplies & Services,Equipment - Repair,STANNAH LIFT SERVICES LTD,26/08/2022,"6,990.25"
Adult Social Care,Prevention & Independence - Older Adults & Disability,Supplies & Services,Equipment - Repair,STANNAH LIFT SERVICES LTD,25/08/2022,258.71
Adult Social Care,Prevention & Independence - Older Adults & Disability,Supplies & Services,Equipment - Repair,STANNAH LIFT SERVICES LTD,25/08/2022,403.12
Adult Social Care,Prevention & Independence - Older Adults & Disability,Supplies & Services,Equipment - Repair,STANNAH LIFT SERVICES LTD,25/08/2022,358.66
Adult Social Care,Prevention & Independence - Older Adults & Disability,Supplies & Services,Equipment - Repair,STANNAH LIFT SERVICES LTD,25/08/2022,130.40
Adult Social Care,Prevention & Independence - Older Adults & Disability,Supplies & Services,Equipment - Repair,STANNAH LIFT SERVICES LTD,25/08/2022,380.39
Adult Social Care,Prevention & Independence - Older Adults & Disability,Supplies & Services,Equipment - Repair,STANNAH LIFT SERVICES LTD,25/08/2022,466.66
Adult Social Care,Prevention & Independence - Older Adults & Disability,Supplies & Services,Equipment - Repair,STANNAH LIFT SERVICES LTD,25/08/2022,213.26
Adult Social Care,Prevention & Independence - Older Adults & Disability,Supplies & Services,Equipment - Repair,STANNAH LIFT SERVICES LTD,25/08/2022,130.25
Adult Social Care,Prevention & Independence - Older Adults & Disability,Supplies & Services,Equipment - Repair,STANNAH LIFT SERVICES LTD,25/08/2022,306.60
Adult Social Care,Prevention & Independence - Older Adults & Disability,Supplies & Services,Equipment - Repair,STANNAH LIFT SERVICES LTD,25/08/2022,554.64
Adult Social Care,Prevention & Independence - Older Adults & Disability,Supplies & Services,Equipment - Repair,STANNAH LIFT SERVICES LTD,25/08/2022,192.79
Adult Social Care,Prevention & Independence - Older Adults & Disability,Supplies & Services,Equipment - Repair,STANNAH LIFT SERVICES LTD,25/08/2022,"6,789.25"
Adult Social Care,Prevention & Independence - Older Adults & Disability,Supplies & Services,Equipment - Repair,STANNAH LIFT SERVICES LTD,25/08/2022,"7,629.75"
Adult Social Care,Prevention & Independence - Older Adults & Disability,Supplies & Services,Equipment - Repair,STANNAH LIFT SERVICES LTD,31/08/2022,"8,087.25"
Adult Social Care,Prevention & Independence - Older Adults & Disability,Supplies & Services,Equipment - Repair,STANNAH LIFT SERVICES LTD,31/08/2022,466.66
Adult Social Care,Prevention & Independence - Older Adults & Disability,Supplies & Services,Equipment - Repair,STANNAH LIFT SERVICES LTD,31/08/2022,247.62
Adult Social Care,Prevention & Independence - Older Adults & Disability,Supplies & Services,Aids & Appliances,OSPREY HEALTHCARE LTD,04/08/2022,"2,172.30"
Adult Social Care,Prevention & Independence - Older Adults & Disability,Supplies & Services,Aids & Appliances,Care & Independence,18/08/2022,-221.00
Adult Social Care,Prevention & Independence - Older Adults & Disability,Supplies & Services,Aids & Appliances,OSPREY HEALTHCARE LTD,18/08/2022,"1,125.60"
Adult Social Care,Prevention & Independence - Older Adults & Disability,Supplies & Services,Aids & Appliances,OSPREY HEALTHCARE LTD,03/08/2022,105.00
Adult Social Care,Prevention & Independence - Older Adults & Disability,Supplies & Services,Aids & Appliances,OSPREY HEALTHCARE LTD,18/08/2022,503.20
Adult Social Care,Prevention & Independence - Older Adults & Disability,Supplies & Services,Aids & Appliances,Care & Independence,17/08/2022,221.00
Adult Social Care,Prevention & Independence - Older Adults & Disability,Supplies & Services,Aids & Appliances,Care & Independence,17/08/2022,221.00
Adult Social Care,Prevention & Independence - Older Adults & Disability,Supplies & Services,Aids & Appliances,OSPREY SLING COMPANY LTD,10/08/2022,147.00
Adult Social Care,Prevention & Independence - Older Adults & Disability,Supplies & Services,Aids & Appliances,OSPREY SLING COMPANY LTD,10/08/2022,147.00
Adult Social Care,Prevention & Independence - Older Adults & Disability,Supplies & Services,Aids & Appliances,PRISM MEDICAL WESTHOLME DIVISION,05/08/2022,352.62
Adult Social Care,Prevention & Independence - Older Adults & Disability,Supplies & Services,Aids & Appliances,BERWICK CARE EQUIPMENT LTD,10/08/2022,-662.00
Adult Social Care,Prevention & Independence - Older Adults & Disability,Supplies & Services,Carriage/Delivery Charge,Rise & Recline Ltd,10/08/2022,110.00
Adult Social Care,Prevention & Independence - Older Adults & Disability,Supplies & Services,Aids & Appliances,Rise & Recline Ltd,10/08/2022,158.00
Adult Social Care,Prevention & Independence - Older Adults & Disability,Supplies & Services,Aids & Appliances,SILVALEA LIMITED,09/08/2022,400.00
Adult Social Care,Prevention & Independence - Older Adults & Disability,Supplies & Services,Aids & Appliances,OSPREY HEALTHCARE LTD,16/08/2022,496.00
Adult Social Care,Prevention & Independence - Older Adults & Disability,Supplies & Services,Aids & Appliances,Mobility Smart Limited,16/08/2022,640.00
Adult Social Care,Prevention & Independence - Older Adults & Disability,Supplies & Services,Aids & Appliances,Mobility Smart Limited,16/08/2022,"1,720.00"
Adult Social Care,Prevention & Independence - Older Adults & Disability,Supplies & Services,Aids & Appliances,SHROPSHIRE COMMUNITY HEALTH NHS TRUST,04/08/2022,"6,301.66"
Adult Social Care,Prevention & Independence - Older Adults & Disability,Employees,Agency Supply Costs,Reed Talent Solutions Ltd,05/08/2022,136.89
Adult Social Care,Prevention & Independence - Older Adults & Disability,Employees,Agency Supply Costs,Reed Talent Solutions Ltd,05/08/2022,189.00
Adult Social Care,Prevention & Independence - Older Adults & Disability,Employees,Agency Supply Costs,Reed Talent Solutions Ltd,15/08/2022,268.92
Adult Social Care,Prevention & Independence - Older Adults & Disability,Employees,Agency Supply Costs,Reed Talent Solutions Ltd,15/08/2022,"2,160.00"
Adult Social Care,Prevention & Independence - Older Adults & Disability,Employees,Agency Supply Costs,Reed Talent Solutions Ltd,15/08/2022,"1,800.00"
Adult Social Care,Prevention & Independence - Older Adults & Disability,Employees,Agency Supply Costs,Reed Talent Solutions Ltd,25/08/2022,"2,160.00"
Adult Social Care,Prevention & Independence - Older Adults & Disability,Employees,Agency Supply Costs,Reed Talent Solutions Ltd,25/08/2022,"1,800.00"
Adult Social Care,Prevention & Independence - Older Adults & Disability,Employees,Agency Supply Costs,Reed Talent Solutions Ltd,25/08/2022,148.90
Adult Social Care,Prevention & Independence - Older Adults & Disability,Employees,Agency Supply Costs,Reed Talent Solutions Ltd,25/08/2022,142.02
Adult Social Care,Prevention & Independence - Older Adults & Disability,Supplies & Services,Mobile Phones,EE LTD EQUIPMENT ,04/08/2022,142.00
Adult Social Care,Service Improvement & Efficiency,Supplies & Services,Computer Software (Maint),LIQUIDLOGIC LIMITED,10/08/2022,"7,101.37"
Children�s Safeguarding & Family Support,Child Protection & Family Support,Supplies & Services,Other Grants (Expenses),YMCA,03/08/2022,200.00
Children�s Safeguarding & Family Support,Child Protection & Family Support,Supplies & Services,Other Services,L R Social Care Solutions Ltd,25/08/2022,"1,875.00"
Children�s Safeguarding & Family Support,Child Protection & Family Support,Supplies & Services,Furniture - Purchase,CHRISBEON OFFICE SUPPLIES,08/08/2022,408.48
Children�s Safeguarding & Family Support,Child Protection & Family Support,Employees,Staff Training,Strengthening Practice,04/08/2022,"4,000.00"
Children�s Safeguarding & Family Support,Child Protection & Family Support,Employees,Training Expenses,MEETING POINT TRUST LTD,30/08/2022,363.75
Children�s Safeguarding & Family Support,Child Protection & Family Support,Employees,Course Fees,CENTRAL CONFERENCE CONSULTANTS,30/08/2022,160.00
Children�s Safeguarding & Family Support,Child Protection & Family Support,Supplies & Services,Books,K M Associates Ltd,30/08/2022,150.00
Children�s Safeguarding & Family Support,Child Protection & Family Support,Employees,Staff Training,A C & Associates Ltd,25/08/2022,650.00
Children�s Safeguarding & Family Support,Child Protection & Family Support,Supplies & Services,Mobile Phones,EE LTD EQUIPMENT,04/08/2022,142.00
Children�s Safeguarding & Family Support,Child Protection & Family Support,Supplies & Services,Translation Services,Premium Linguistic Services,04/08/2022,164.40
Children�s Safeguarding & Family Support,Child Protection & Family Support,Supplies & Services,Other Grants (Expenses),Midlands Partnership NHS Foundation Trust,30/08/2022,"50,514.77"
Children�s Safeguarding & Family Support,Child Protection & Family Support,Employees,Staff Training,Strengthening Practice,25/08/2022,"3,300.00"
Children�s Safeguarding & Family Support,Child Protection & Family Support,Third Party Payments,Joint Financing,STAFFORDSHIRE COUNTY COUNCIL,11/08/2022,"43,357.20"
Children�s Safeguarding & Family Support,Family Connect & Childrens Centres,Premises-Related Expenditure,Hire Of Rooms,MEETING POINT TRUST LTD,01/08/2022,242.00
Children�s Safeguarding & Family Support,Family Connect & Childrens Centres,Premises-Related Expenditure,Hire Of Rooms,Brookside Central,02/08/2022,108.00
Children�s Safeguarding & Family Support,Family Connect & Childrens Centres,Premises-Related Expenditure,Hire Of Rooms,Sutton Hill Community Trust,02/08/2022,143.67
Children�s Safeguarding & Family Support,Family Connect & Childrens Centres,Premises-Related Expenditure,Hire Of Rooms,MEETING POINT TRUST LTD,01/08/2022,242.00
Children�s Safeguarding & Family Support,Family Connect & Childrens Centres,Premises-Related Expenditure,Hire Of Rooms,Sutton Hill Community Trust,02/08/2022,143.67
Children�s Safeguarding & Family Support,Family Connect & Childrens Centres,Supplies & Services,Mobile Phones,EE LTD EQUIPMENT ,31/08/2022,142.00
Children�s Safeguarding & Family Support,Family Connect & Childrens Centres,Supplies & Services,Mobile Phones,EE LTD EQUIPMENT ,04/08/2022,142.00
Children�s Safeguarding & Family Support,Family Connect & Childrens Centres,Supplies & Services,Mobile Phones,EE LTD EQUIPMENT ,04/08/2022,142.00
Children�s Safeguarding & Family Support,Family Connect & Childrens Centres,Premises-Related Expenditure,Hire Of Rooms,MEETING POINT TRUST LTD,01/08/2022,242.00
Children�s Safeguarding & Family Support,Family Connect & Childrens Centres,Premises-Related Expenditure,Hire Of Rooms,Sutton Hill Community Trust,02/08/2022,143.66
Children�s Safeguarding & Family Support,Family Connect & Childrens Centres,Supplies & Services,Mobile Phones,EE LTD EQUIPMENT ,04/08/2022,142.00
Children�s Safeguarding & Family Support,Family Connect & Childrens Centres,Supplies & Services,Other Grants (Expenses),CHILDCARE SOS,05/08/2022,320.00
Children�s Safeguarding & Family Support,Family Connect & Childrens Centres,Supplies & Services,Mobile Phones,EE LTD EQUIPMENT ,04/08/2022,284.00
Children�s Safeguarding & Family Support,Family Connect & Childrens Centres,Employees,Training Exp�s (Facilitators),MEETING POINT TRUST LTD,25/08/2022,588.21
Children�s Safeguarding & Family Support,Family Connect & Childrens Centres,Supplies & Services,Stationery,CHILDCARE SOS,18/08/2022,208.00
Children�s Safeguarding & Family Support,Family Connect & Childrens Centres,Supplies & Services,Stationery,CHILDCARE SOS,10/08/2022,192.00
Children�s Safeguarding & Family Support,Family Connect & Childrens Centres,Supplies & Services,Stationery,CHILDCARE SOS,08/08/2022,128.00
Children�s Safeguarding & Family Support,Family Connect & Childrens Centres,Supplies & Services,Consultancy,The Curiuous Way,16/08/2022,160.00
Children�s Safeguarding & Family Support,"Family Placements, Children in Care, Leaving Care & Emergency Duty Team",Premises-Related Expenditure,Hire Of Rooms,MEETING POINT TRUST LTD,11/08/2022,210.00
Children�s Safeguarding & Family Support,"Family Placements, Children in Care, Leaving Care & Emergency Duty Team",Transport-Related Expenditure,Taxi Costs,24X7 Ltd,11/08/2022,744.98
Children�s Safeguarding & Family Support,"Family Placements, Children in Care, Leaving Care & Emergency Duty Team",Supplies & Services,Equipment - Repair,STANNAH LIFT SERVICES LTD,18/08/2022,622.25
Children�s Safeguarding & Family Support,"Family Placements, Children in Care, Leaving Care & Emergency Duty Team",Supplies & Services,Equipment - Repair,STANNAH LIFT SERVICES LTD,18/08/2022,473.00
Children�s Safeguarding & Family Support,"Family Placements, Children in Care, Leaving Care & Emergency Duty Team",Supplies & Services,Aids & Appliances,MIDSHIRES MOBILITY GROUP,01/08/2022,"3,215.50"
Children�s Safeguarding & Family Support,"Family Placements, Children in Care, Leaving Care & Emergency Duty Team",Supplies & Services,Aids & Appliances,Tough Furniture Ltd,02/08/2022,"1,076.00"
Children�s Safeguarding & Family Support,"Family Placements, Children in Care, Leaving Care & Emergency Duty Team",Supplies & Services,Equipment - Repair,STANNAH LIFT SERVICES LTD,25/08/2022,458.00
Children�s Safeguarding & Family Support,"Family Placements, Children in Care, Leaving Care & Emergency Duty Team",Supplies & Services,Aids & Appliances,G & S S LTD,23/08/2022,"1,148.00"
Children�s Safeguarding & Family Support,"Family Placements, Children in Care, Leaving Care & Emergency Duty Team",Supplies & Services,Aids & Appliances,G & S S LTD,23/08/2022,"1,148.00"
Children�s Safeguarding & Family Support,"Family Placements, Children in Care, Leaving Care & Emergency Duty Team",Supplies & Services,Equipment - Repair,STANNAH LIFT SERVICES LTD,26/08/2022,168.25
Children�s Safeguarding & Family Support,"Family Placements, Children in Care, Leaving Care & Emergency Duty Team",Supplies & Services,Equipment - Repair,STANNAH LIFT SERVICES LTD,25/08/2022,105.50
Children�s Safeguarding & Family Support,"Family Placements, Children in Care, Leaving Care & Emergency Duty Team",Supplies & Services,Equipment - Repair,STANNAH LIFT SERVICES LTD,25/08/2022,221.00
Children�s Safeguarding & Family Support,"Family Placements, Children in Care, Leaving Care & Emergency Duty Team",Supplies & Services,Aids & Appliances,REMAP - Shropshire Panel,15/08/2022,156.88
Children�s Safeguarding & Family Support,"Family Placements, Children in Care, Leaving Care & Emergency Duty Team",Supplies & Services,Aids & Appliances,M A S Associates,15/08/2022,400.00
Children�s Safeguarding & Family Support,"Family Placements, Children in Care, Leaving Care & Emergency Duty Team",Supplies & Services,Equipment - Repair,STANNAH LIFT SERVICES LTD,24/08/2022,192.47
Children�s Safeguarding & Family Support,"Family Placements, Children in Care, Leaving Care & Emergency Duty Team",Supplies & Services,Aids & Appliances,Jiraffe,15/08/2022,"2,228.00"
Children�s Safeguarding & Family Support,"Family Placements, Children in Care, Leaving Care & Emergency Duty Team",Supplies & Services,Aids & Appliances,Tough Furniture Ltd,01/08/2022,371.00
Children�s Safeguarding & Family Support,"Family Placements, Children in Care, Leaving Care & Emergency Duty Team",Supplies & Services,Mobile Phones,EE LTD EQUIPMENT,04/08/2022,142.00
Children�s Safeguarding & Family Support,"Family Placements, Children in Care, Leaving Care & Emergency Duty Team",Employees,Staff Training,Under 17 Drivers Path Finder Ltd,24/08/2022,900.00
Children�s Safeguarding & Family Support,"Family Placements, Children in Care, Leaving Care & Emergency Duty Team",Premises-Related Expenditure,Hire Of Rooms,THE WREKIN HOUSING TRUST ,11/08/2022,137.28
Children�s Safeguarding & Family Support,"Family Placements, Children in Care, Leaving Care & Emergency Duty Team",Premises-Related Expenditure,Hire Of Rooms,THE WREKIN HOUSING TRUST ,11/08/2022,137.28
Children�s Safeguarding & Family Support,"Family Placements, Children in Care, Leaving Care & Emergency Duty Team",Supplies & Services,Mobile Phones,EE LTD EQUIPMENT ,31/08/2022,142.00
Children�s Safeguarding & Family Support,"Family Placements, Children in Care, Leaving Care & Emergency Duty Team",Supplies & Services,Mobile Phones,EE LTD EQUIPMENT ,04/08/2022,142.00
Children�s Safeguarding & Family Support,"Family Placements, Children in Care, Leaving Care & Emergency Duty Team",Supplies & Services,Mobile Phones,EE LTD EQUIPMENT ,04/08/2022,142.00
Children�s Safeguarding & Family Support,"Family Placements, Children in Care, Leaving Care & Emergency Duty Team",Supplies & Services,Comp Software (Purch / Hire),PHOENIX SOFTWARE LTD,05/08/2022,373.47
Children�s Safeguarding & Family Support,"Family Placements, Children in Care, Leaving Care & Emergency Duty Team",Transport-Related Expenditure,Taxi Costs,Go Carz,24/08/2022,805.00
Children�s Safeguarding & Family Support,"Family Placements, Children in Care, Leaving Care & Emergency Duty Team",Supplies & Services,Doctors Fees,WOODSIDE MEDICAL PRACTICE,04/08/2022,125.00
Children�s Safeguarding & Family Support,"Family Placements, Children in Care, Leaving Care & Emergency Duty Team",Supplies & Services,Doctors Fees,Severn Fields Medical Practice,04/08/2022,320.00
Children�s Safeguarding & Family Support,"Family Placements, Children in Care, Leaving Care & Emergency Duty Team",Third Party Payments,Childminders,CROSSBAR COACHING,04/08/2022,350.00
Children�s Safeguarding & Family Support,"Family Placements, Children in Care, Leaving Care & Emergency Duty Team",Employees,Staff Training,Creative Training Spaces,30/08/2022,"1,080.00"
Children�s Safeguarding & Family Support,"Family Placements, Children in Care, Leaving Care & Emergency Duty Team",Supplies & Services,Other Services,REDACTED PERSONAL INFORMATION,26/08/2022,156.43
Children�s Safeguarding & Family Support,"Family Placements, Children in Care, Leaving Care & Emergency Duty Team",Supplies & Services,Mobile Phones,EE LTD EQUIPMENT,04/08/2022,142.00
Children�s Safeguarding & Family Support,"Family Placements, Children in Care, Leaving Care & Emergency Duty Team",Supplies & Services,Doctors Fees,DONNINGTON MEDICAL PRACTICE,04/08/2022,181.00
Children�s Safeguarding & Family Support,"Family Placements, Children in Care, Leaving Care & Emergency Duty Team",Supplies & Services,Other Services,REDACTED PERSONAL INFORMATION,09/08/2022,166.71
Children�s Safeguarding & Family Support,"Family Placements, Children in Care, Leaving Care & Emergency Duty Team",Supplies & Services,Other Services,REDACTED PERSONAL INFORMATION,25/08/2022,156.00
Children�s Safeguarding & Family Support,"Family Placements, Children in Care, Leaving Care & Emergency Duty Team",Supplies & Services,Other Services,REDACTED PERSONAL INFORMATION,10/08/2022,156.00
Children�s Safeguarding & Family Support,"Family Placements, Children in Care, Leaving Care & Emergency Duty Team",Supplies & Services,Other Services,Sheffield Mutual Friendly Society,12/08/2022,"2,285.47"
Children�s Safeguarding & Family Support,"Family Placements, Children in Care, Leaving Care & Emergency Duty Team",Supplies & Services,Other Services,REDACTED PERSONAL INFORMATION,19/08/2022,129.00
Children�s Safeguarding & Family Support,"Family Placements, Children in Care, Leaving Care & Emergency Duty Team",Supplies & Services,Form F Assessments,Kite Fostering Consultancy Ltd,11/08/2022,"2,014.40"
Children�s Safeguarding & Family Support,"Family Placements, Children in Care, Leaving Care & Emergency Duty Team",Supplies & Services,Other Services,POST ROOM,26/08/2022,129.43
Children�s Safeguarding & Family Support,"Family Placements, Children in Care, Leaving Care & Emergency Duty Team",Third Party Payments,Private Contractors,Shared Services Connected Limited,10/08/2022,"7,675.00"
Children�s Safeguarding & Family Support,"Family Placements, Children in Care, Leaving Care & Emergency Duty Team",Third Party Payments,Private Contractors,Shared Services Connected Limited,10/08/2022,"9,517.00"
Children�s Safeguarding & Family Support,"Family Placements, Children in Care, Leaving Care & Emergency Duty Team",Third Party Payments,Private Contractors,Shared Services Connected Limited,10/08/2022,"9,517.00"
Children�s Safeguarding & Family Support,"Family Placements, Children in Care, Leaving Care & Emergency Duty Team",Third Party Payments,Private Contractors,Shared Services Connected Limited,10/08/2022,"4,298.00"
Children�s Safeguarding & Family Support,"Family Placements, Children in Care, Leaving Care & Emergency Duty Team",Third Party Payments,Private Contractors,Shared Services Connected Limited,11/08/2022,"22,723.00"
Children�s Safeguarding & Family Support,"Family Placements, Children in Care, Leaving Care & Emergency Duty Team",Third Party Payments,Private Contractors,Shared Services Connected Limited,24/08/2022,"21,990.00"
Children�s Safeguarding & Family Support,"Family Placements, Children in Care, Leaving Care & Emergency Duty Team",Supplies & Services,Comp Software (Purch / Hire),PHOENIX SOFTWARE LTD,05/08/2022,373.47
Children�s Safeguarding & Family Support,Safeguarding Advisory,Supplies & Services,Other Services,BEST WESTERN VALLEY HOTEL,01/08/2022,258.33
Children's Safeguarding,Child Protection & Family Support,contribution to provision,legal,HM Courts and Tribunal service,16/08/2022," 8,733.00 "
"Communities, Customer & Commercial Services",Community Services,Supplies & Services,Fees,Save Our Shropshire CIO,01/08/2022,200.00
"Communities, Customer & Commercial Services",Community Services,Supplies & Services,Fees,Save Our Shropshire CIO,01/08/2022,500.00
"Communities, Customer & Commercial Services",Community Services,Supplies & Services,Grants To Voluntary Organis,Telford and Wrekin Interfaith Council,08/08/2022,"3,500.00"
"Communities, Customer & Commercial Services",Community Services,Supplies & Services,Grants To Voluntary Organis,Telford and Wrekin Interfaith Council,02/08/2022,"1,000.00"
"Communities, Customer & Commercial Services",Community Services,Supplies & Services,Grants To Voluntary Organis,Old Park Primary SCHOOL FUND,24/08/2022,"1,000.00"
"Communities, Customer & Commercial Services",Community Services,Supplies & Services,Grants To Voluntary Organis,LAWLEY & OVERDALE PARISH COUNCIL,16/08/2022,500.00
"Communities, Customer & Commercial Services",Community Services,Supplies & Services,Grants To Voluntary Organis,Telford and Wrekin Interfaith Council,26/08/2022,500.00
"Communities, Customer & Commercial Services",Community Services,Supplies & Services,Grants To Voluntary Organis,TELFORD & WREKIN CVS,02/08/2022,"9,700.00"
"Communities, Customer & Commercial Services",Community Services,Premises-Related Expenditure,Electricity,West Mercia Energy,25/08/2022,579.07
"Communities, Customer & Commercial Services",Culture & Events,Supplies & Services,Equipment - Purchase,RTC Medical Solutions Ltd,01/08/2022,850.00
"Communities, Customer & Commercial Services",Culture & Events,Supplies & Services,Service Contracts,FREELANCE BUSINESS ASSOCIATES,12/08/2022,210.00
"Communities, Customer & Commercial Services",Culture & Events,Supplies & Services,Promotion Expenses,Spektrix Limited,19/08/2022,"2,145.54"
"Communities, Customer & Commercial Services",Culture & Events,Supplies & Services,Promotion Expenses,Ticketplan Limited,02/08/2022,524.96
"Communities, Customer & Commercial Services",Culture & Events,Supplies & Services,Advertising,RARING TO GO,30/08/2022,280.00
"Communities, Customer & Commercial Services",Culture & Events,Supplies & Services,Artistes Fees,M T Productions Limited,18/08/2022,"1,635.16"
"Communities, Customer & Commercial Services",Culture & Events,Supplies & Services,Artistes Fees,TaleGate Theatre Productions,18/08/2022,564.16
"Communities, Customer & Commercial Services",Culture & Events,Supplies & Services,Artistes Fees,Shropshire Musical Theatre Company,18/08/2022,"3,920.40"
"Communities, Customer & Commercial Services",Culture & Events,Supplies & Services,Artistes Fees,Ticketplan Limited,19/08/2022,560.32
"Communities, Customer & Commercial Services",Culture & Events,Supplies & Services,Artistes Fees,Anstice Community Trust,01/08/2022,115.20
"Communities, Customer & Commercial Services",Culture & Events,Supplies & Services,Artistes Fees,Pitbull Productions Ltd,01/08/2022,"1,527.37"
"Communities, Customer & Commercial Services",Culture & Events,Supplies & Services,Artistes Fees,Telford Tigers Limited,08/08/2022,"23,712.00"
"Communities, Customer & Commercial Services",Culture & Events,Supplies & Services,Artistes Fees,Beach Boyz Tribute Band Ltd,03/08/2022,"1,275.23"
"Communities, Customer & Commercial Services",Culture & Events,Supplies & Services,Artistes Fees,Chimes Entertainment Agency Ltd,05/08/2022,"1,743.27"
"Communities, Customer & Commercial Services",Culture & Events,Supplies & Services,Artistes Fees,Gobo Productions,05/08/2022,"7,480.22"
"Communities, Customer & Commercial Services",Culture & Events,Supplies & Services,Artistes Fees,OFF THE KERB PRODUCTIONS,16/08/2022,"7,944.00"
"Communities, Customer & Commercial Services",Culture & Events,Supplies & Services,Wet Resale Provision,MOLSON COORS BREWING COMPANY UK LTD,16/08/2022,104.91
"Communities, Customer & Commercial Services",Culture & Events,Supplies & Services,Wet Resale Provision,MOLSON COORS BREWING COMPANY UK LTD,16/08/2022,125.67
"Communities, Customer & Commercial Services",Culture & Events,Supplies & Services,Provisions,BIKOLD,02/08/2022,170.11
"Communities, Customer & Commercial Services",Culture & Events,Supplies & Services,Contract Catering,HAMMONDS CATERING SERVICES LTD,30/08/2022,148.75
"Communities, Customer & Commercial Services",Culture & Events,Supplies & Services,Wet Resale Provision,MOLSON COORS BREWING COMPANY UK LTD,16/08/2022,120.20
"Communities, Customer & Commercial Services",Culture & Events,Supplies & Services,Wet Resale Provision,MOLSON COORS BREWING COMPANY UK LTD,16/08/2022,176.48
"Communities, Customer & Commercial Services",Culture & Events,Supplies & Services,Wet Resale Provision,MOLSON COORS BREWING COMPANY UK LTD,16/08/2022,125.67
"Communities, Customer & Commercial Services",Culture & Events,Supplies & Services,Wet Resale Provision,MOLSON COORS BREWING COMPANY UK LTD,16/08/2022,104.91
"Communities, Customer & Commercial Services",Culture & Events,Supplies & Services,Audit Services,DMC STOCKTAKING,19/08/2022,160.00
"Communities, Customer & Commercial Services",Culture & Events,Supplies & Services,Audit Services,DMC STOCKTAKING,19/08/2022,160.00
"Communities, Customer & Commercial Services",Culture & Events,Supplies & Services,Audit Services,DMC STOCKTAKING,19/08/2022,160.00
"Communities, Customer & Commercial Services",Culture & Events,Supplies & Services,Wet Resale Provision,MOLSON COORS BREWING COMPANY UK LTD,23/08/2022,209.82
"Communities, Customer & Commercial Services",Culture & Events,Supplies & Services,Wet Resale Provision,MOLSON COORS BREWING COMPANY UK LTD,23/08/2022,176.48
"Communities, Customer & Commercial Services",Culture & Events,Supplies & Services,Wet Resale Provision,MOLSON COORS BREWING COMPANY UK LTD,17/08/2022,151.28
"Communities, Customer & Commercial Services",Culture & Events,Supplies & Services,Wet Resale Provision,MOLSON COORS BREWING COMPANY UK LTD,17/08/2022,108.56
"Communities, Customer & Commercial Services",Culture & Events,Supplies & Services,Audit Services,DMC STOCKTAKING,19/08/2022,160.00
"Communities, Customer & Commercial Services",Culture & Events,Supplies & Services,Audit Services,DMC STOCKTAKING,19/08/2022,160.00
"Communities, Customer & Commercial Services",Culture & Events,Supplies & Services,Wet Resale Provision,MOLSON COORS BREWING COMPANY UK LTD,11/08/2022,209.82
"Communities, Customer & Commercial Services",Culture & Events,Supplies & Services,Wet Resale Provision,MOLSON COORS BREWING COMPANY UK LTD,11/08/2022,111.88
"Communities, Customer & Commercial Services",Culture & Events,Supplies & Services,Wet Resale Provision,MOLSON COORS BREWING COMPANY UK LTD,11/08/2022,106.74
"Communities, Customer & Commercial Services",Culture & Events,Supplies & Services,Wet Resale Provision,MOLSON COORS BREWING COMPANY UK LTD,23/08/2022,120.18
"Communities, Customer & Commercial Services",Culture & Events,Supplies & Services,Wet Resale Provision,MOLSON COORS BREWING COMPANY UK LTD,23/08/2022,217.80
"Communities, Customer & Commercial Services",Culture & Events,Supplies & Services,Wet Resale Provision,MOLSON COORS BREWING COMPANY UK LTD,23/08/2022,212.73
"Communities, Customer & Commercial Services",Culture & Events,Supplies & Services,Audit Services,DMC STOCKTAKING,22/08/2022,160.00
"Communities, Customer & Commercial Services",Culture & Events,Supplies & Services,Audit Services,DMC STOCKTAKING,19/08/2022,160.00
"Communities, Customer & Commercial Services",Culture & Events,Supplies & Services,Materials,TAARC (Telford African & Afro Caribbean Resource Centre,01/08/2022,300.00
"Communities, Customer & Commercial Services",Culture & Events,Supplies & Services,Artistes Fees,BIRMINGHAM CITY UNIVERSITY,01/08/2022,"14,625.00"
"Communities, Customer & Commercial Services",Culture & Events,Supplies & Services,Artistes Fees,ShowStoppers,10/08/2022,"1,710.00"
"Communities, Customer & Commercial Services",Culture & Events,Supplies & Services,Artistes Fees,Ironbridge Coracle Trust,10/08/2022,"1,396.11"
"Communities, Customer & Commercial Services",Culture & Events,Supplies & Services,Photography,R F PHOTOGRAPHY,10/08/2022,240.00
"Communities, Customer & Commercial Services",Culture & Events,Supplies & Services,First Aid,MW MEDICS LTD,10/08/2022,300.00
"Communities, Customer & Commercial Services",Culture & Events,Supplies & Services,First Aid,MW MEDICS LTD,10/08/2022,137.50
"Communities, Customer & Commercial Services",Culture & Events,Supplies & Services,First Aid,MW MEDICS LTD,10/08/2022,225.00
"Communities, Customer & Commercial Services",Culture & Events,Supplies & Services,Artistes Fees,Rawzone Basketball,10/08/2022,410.00
"Communities, Customer & Commercial Services",Culture & Events,Supplies & Services,Marketing & Publicity,Alight Media,01/08/2022,"3,500.00"
"Communities, Customer & Commercial Services",Culture & Events,Supplies & Services,Materials,WPG Limited,01/08/2022,704.00
"Communities, Customer & Commercial Services",Culture & Events,Supplies & Services,Artistes Fees,Midland Entertainment,01/08/2022,"4,800.00"
"Communities, Customer & Commercial Services",Culture & Events,Supplies & Services,Equipment - Hire,Churches Fire Security Ltd,22/08/2022,260.00
"Communities, Customer & Commercial Services",Culture & Events,Supplies & Services,Equipment - Hire,Stage and Studios Services Limited,17/08/2022,"4,000.00"
"Communities, Customer & Commercial Services",Culture & Events,Supplies & Services,Artistes Fees,Emergency Exit Arts,03/08/2022,875.00
"Communities, Customer & Commercial Services",Culture & Events,Supplies & Services,Artistes Fees,The IMPS Motorcylce Display Team,19/08/2022,"2,960.00"
"Communities, Customer & Commercial Services",Culture & Events,Supplies & Services,Mobile Phones,EE LTD EQUIPMENT,04/08/2022,185.00
"Communities, Customer & Commercial Services",Culture & Events,Supplies & Services,Advertising,Atlas Uk Ltd,26/08/2022,195.00
"Communities, Customer & Commercial Services",Culture & Events,Supplies & Services,Artistes Fees,All Sports Coaches Coaching Academy,19/08/2022,500.00
"Communities, Customer & Commercial Services",Culture & Events,Supplies & Services,Equipment - Hire,Scanlight Visual Communications Ltd,26/08/2022,"14,680.00"
"Communities, Customer & Commercial Services",Culture & Events,Supplies & Services,Artistes Fees,Worldbeaters Ltd,15/08/2022,"1,725.00"
"Communities, Customer & Commercial Services",Culture & Events,Supplies & Services,Artistes Fees,Fools Paradise Ltd,09/08/2022,"-1,432.00"
"Communities, Customer & Commercial Services",Culture & Events,Supplies & Services,Artistes Fees,Fools Paradise Ltd,09/08/2022,"-1,230.00"
"Communities, Customer & Commercial Services",Culture & Events,Supplies & Services,Artistes Fees,Fools Paradise Ltd,09/08/2022,-810.00
"Communities, Customer & Commercial Services",Culture & Events,Supplies & Services,Equipment - Hire,Envisage Promotions Ltd,09/08/2022,"-1,324.00"
"Communities, Customer & Commercial Services",Culture & Events,Supplies & Services,Equipment - Hire,Envisage Promotions Ltd,10/08/2022,"1,944.00"
"Communities, Customer & Commercial Services",Culture & Events,Supplies & Services,Artistes Fees,ShowStoppers,10/08/2022,"1,850.00"
"Communities, Customer & Commercial Services",Culture & Events,Supplies & Services,Artistes Fees,ShowStoppers,10/08/2022,"11,790.00"
"Communities, Customer & Commercial Services",Culture & Events,Supplies & Services,Artistes Fees,ShowStoppers,10/08/2022,"3,370.00"
"Communities, Customer & Commercial Services",Culture & Events,Supplies & Services,Artistes Fees,Emergency Exit Arts,16/08/2022,"9,401.00"
"Communities, Customer & Commercial Services",Culture & Events,Supplies & Services,Artistes Fees,PS PROMOTIONS LTD,23/08/2022,"1,100.00"
"Communities, Customer & Commercial Services",Culture & Events,Supplies & Services,Web Services,EMERGE DESIGN LTD,23/08/2022,"1,452.00"
"Communities, Customer & Commercial Services",Culture & Events,Supplies & Services,Artistes Fees,D M Productions Ltd,26/08/2022,750.00
"Communities, Customer & Commercial Services",Culture & Events,Supplies & Services,Equipment - Hire,Event Furniture Hire Ltd,31/08/2022,"6,160.00"
"Communities, Customer & Commercial Services",Culture & Events,Supplies & Services,Artistes Fees,S & D Simulations Ltd,24/08/2022,"3,250.00"
"Communities, Customer & Commercial Services",Culture & Events,Supplies & Services,Equipment - Hire,Illuminate Audio Visual Effects,25/08/2022,"2,250.00"
"Communities, Customer & Commercial Services",Culture & Events,Supplies & Services,Equipment - Hire,Illuminate Audio Visual Effects,25/08/2022,300.00
"Communities, Customer & Commercial Services",Culture & Events,Supplies & Services,Equipment - Hire,Illuminate Audio Visual Effects,30/08/2022,"2,730.30"
"Communities, Customer & Commercial Services",Culture & Events,Supplies & Services,Artistes Fees,Fools Paradise Ltd,30/08/2022,"3,255.00"
"Communities, Customer & Commercial Services",Culture & Events,Supplies & Services,Equipment - Hire,Stage and Studios Services Limited,30/08/2022,315.00
"Communities, Customer & Commercial Services",Customer Relationships & Welfare Services,Supplies & Services,Other Grants (Expenses),Discretionary Household Support,26/08/2022,246.60
"Communities, Customer & Commercial Services",Customer Relationships & Welfare Services,Supplies & Services,Other Grants (Expenses),Discretionary Household Support,26/08/2022,"1,039.93"
"Communities, Customer & Commercial Services",Customer Relationships & Welfare Services,Supplies & Services,Other Grants (Expenses),Discretionary Household Support,18/08/2022,"1,000.00"
"Communities, Customer & Commercial Services",Customer Relationships & Welfare Services,Supplies & Services,Other Grants (Expenses),Discretionary Household Support,18/08/2022,606.67
"Communities, Customer & Commercial Services",Customer Relationships & Welfare Services,Supplies & Services,Other Grants (Expenses),Discretionary Household Support,18/08/2022,457.21
"Communities, Customer & Commercial Services",Customer Relationships & Welfare Services,Supplies & Services,Other Grants (Expenses),Discretionary Household Support,18/08/2022,386.10
"Communities, Customer & Commercial Services",Customer Relationships & Welfare Services,Supplies & Services,Other Grants (Expenses),Discretionary Household Support,10/08/2022,388.94
"Communities, Customer & Commercial Services",Customer Relationships & Welfare Services,Supplies & Services,Other Grants (Expenses),Discretionary Household Support,10/08/2022,300.00
"Communities, Customer & Commercial Services",Customer Relationships & Welfare Services,Supplies & Services,Other Grants (Expenses),Discretionary Household Support,10/08/2022,660.00
"Communities, Customer & Commercial Services",Customer Relationships & Welfare Services,Supplies & Services,Other Grants (Expenses),Discretionary Household Support,10/08/2022,300.00
"Communities, Customer & Commercial Services",Customer Relationships & Welfare Services,Supplies & Services,Other Grants (Expenses),Discretionary Household Support,17/08/2022,927.45
"Communities, Customer & Commercial Services",Customer Relationships & Welfare Services,Supplies & Services,Other Grants (Expenses),Discretionary Household Support,17/08/2022,308.45
"Communities, Customer & Commercial Services",Customer Relationships & Welfare Services,Supplies & Services,Other Grants (Expenses),Discretionary Household Support,17/08/2022,"1,712.01"
"Communities, Customer & Commercial Services",Customer Relationships & Welfare Services,Supplies & Services,Other Grants (Expenses),Discretionary Household Support,17/08/2022,491.12
"Communities, Customer & Commercial Services",Customer Relationships & Welfare Services,Supplies & Services,Other Grants (Expenses),Discretionary Household Support,17/08/2022,600.00
"Communities, Customer & Commercial Services",Customer Relationships & Welfare Services,Supplies & Services,Other Grants (Expenses),Discretionary Household Support,17/08/2022,400.00
"Communities, Customer & Commercial Services",Customer Relationships & Welfare Services,Supplies & Services,Other Grants (Expenses),Discretionary Household Support,22/08/2022,599.35
"Communities, Customer & Commercial Services",Customer Relationships & Welfare Services,Supplies & Services,Other Grants (Expenses),Discretionary Household Support,22/08/2022,236.32
"Communities, Customer & Commercial Services",Customer Relationships & Welfare Services,Supplies & Services,Other Grants (Expenses),Hawk Incentives Ltd,15/08/2022,"19,744.00"
"Communities, Customer & Commercial Services",Customer Relationships & Welfare Services,Supplies & Services,Other Grants (Expenses),Discretionary Household Support,31/08/2022,400.00
"Communities, Customer & Commercial Services",Customer Relationships & Welfare Services,Supplies & Services,Other Grants (Expenses),Hawk Incentives Ltd ,30/08/2022,"19,744.00"
"Communities, Customer & Commercial Services",Customer Relationships & Welfare Services,Transfer Payments,Crisis Assistance Awards,PayPoint Network Limited,31/08/2022,615.00
"Communities, Customer & Commercial Services",Customer Relationships & Welfare Services,Transfer Payments,Crisis Assistance Awards,PayPoint Network Limited,03/08/2022,547.00
"Communities, Customer & Commercial Services",Customer Relationships & Welfare Services,Transfer Payments,Crisis Assistance Awards,PayPoint Network Limited,08/08/2022,250.00
"Communities, Customer & Commercial Services",Customer Relationships & Welfare Services,Transfer Payments,Crisis Assistance Awards,PayPoint Network Limited,08/08/2022,"1,267.00"
"Communities, Customer & Commercial Services",Customer Relationships & Welfare Services,Transfer Payments,Crisis Assistance Awards,PayPoint Network Limited,19/08/2022,742.00
"Communities, Customer & Commercial Services",Customer Relationships & Welfare Services,Transfer Payments,Crisis Assistance Awards,PayPoint Network Limited,23/08/2022,965.00
"Communities, Customer & Commercial Services",Customer Relationships & Welfare Services,Transfer Payments,Crisis Assistance Awards,PayPoint Network Limited,30/08/2022,835.00
"Communities, Customer & Commercial Services",Customer Relationships & Welfare Services,Supplies & Services,Equipment - Purchase,Looking Local Ltd,22/08/2022,900.00
"Communities, Customer & Commercial Services",Customer Relationships & Welfare Services,Supplies & Services,Equipment - Purchase,Looking Local Ltd,22/08/2022,198.00
"Communities, Customer & Commercial Services",Customer Relationships & Welfare Services,Supplies & Services,Comp Hardware (Purch / Hire),CCS MEDIA LIMITED,05/08/2022,430.00
"Communities, Customer & Commercial Services",Customer Relationships & Welfare Services,Supplies & Services,Postages,Financial Data Management plc,22/08/2022,170.62
"Communities, Customer & Commercial Services",Customer Relationships & Welfare Services,Supplies & Services,Printing - Other,Financial Data Management plc,16/08/2022,227.84
"Communities, Customer & Commercial Services",Customer Relationships & Welfare Services,Supplies & Services,Printing - Other,Financial Data Management plc,16/08/2022,154.41
"Communities, Customer & Commercial Services",Customer Relationships & Welfare Services,Supplies & Services,Postages,Financial Data Management plc,16/08/2022,196.93
"Communities, Customer & Commercial Services",Customer Relationships & Welfare Services,Supplies & Services,Permit Production - Blue Badge,APS Group,08/08/2022,"1,195.60"
"Communities, Customer & Commercial Services",Customer Relationships & Welfare Services,Supplies & Services,Bus Pass Production,Unicard Ltd,18/08/2022,"1,021.50"
"Communities, Customer & Commercial Services",Customer Relationships & Welfare Services,Supplies & Services,Bus Pass Production,Unicard Ltd,18/08/2022,508.94
"Communities, Customer & Commercial Services",Customer Relationships & Welfare Services,Supplies & Services,Bus Pass Production,Unicard Ltd,18/08/2022,485.00
"Communities, Customer & Commercial Services",Customer Relationships & Welfare Services,Supplies & Services,Bus Pass Production,Euclid Limited,15/08/2022,878.04
"Communities, Customer & Commercial Services",Customer Relationships & Welfare Services,Supplies & Services,Permit Production - Blue Badge,Valtech Limited,04/08/2022,545.60
"Communities, Customer & Commercial Services",Customer Relationships & Welfare Services,Transfer Payments,Crisis Assistance Awards,Kings of the Road,03/08/2022,365.00
"Communities, Customer & Commercial Services",Customer Relationships & Welfare Services,Transfer Payments,Crisis Assistance Awards,Kings of the Road,03/08/2022,325.00
"Communities, Customer & Commercial Services",Customer Relationships & Welfare Services,Transfer Payments,Crisis Assistance Awards,Kings of the Road,03/08/2022,425.00
"Communities, Customer & Commercial Services",Customer Relationships & Welfare Services,Transfer Payments,Crisis Assistance Awards,Kings of the Road,30/08/2022,345.00
"Communities, Customer & Commercial Services",Customer Relationships & Welfare Services,Transfer Payments,Crisis Assistance Awards,Kings of the Road,30/08/2022,245.00
"Communities, Customer & Commercial Services",Customer Relationships & Welfare Services,Transfer Payments,Crisis Assistance Awards,Kings of the Road,19/08/2022,445.00
"Communities, Customer & Commercial Services",Customer Relationships & Welfare Services,Transfer Payments,Crisis Assistance Awards,Kings of the Road,26/08/2022,325.00
"Communities, Customer & Commercial Services",ICT,Supplies & Services,Protective Clothing,MYWORKWEAR,08/08/2022,132.30
"Communities, Customer & Commercial Services",ICT,Supplies & Services,Comp Hardware (Purch / Hire),PHOENIX SOFTWARE LTD,02/08/2022,"1,056.00"
"Communities, Customer & Commercial Services",ICT,Supplies & Services,Equipment - Purchase,CAPITA IT SERVICES LIMITED,04/08/2022,"3,955.62"
"Communities, Customer & Commercial Services",ICT,Supplies & Services,Comp Software (Purch / Hire),PHOENIX SOFTWARE LTD,01/08/2022,"17,368.44"
"Communities, Customer & Commercial Services",ICT,Supplies & Services,Comp Software (Purch / Hire),PHOENIX SOFTWARE LTD,01/08/2022,"17,368.44"
"Communities, Customer & Commercial Services",ICT,Supplies & Services,Telecomms,CAPITA BUSINESS SERVICES LTD ,02/08/2022,"-1,330.23"
"Communities, Customer & Commercial Services",ICT,Supplies & Services,Telecomms,Airband Community Internet,05/08/2022,125.00
"Communities, Customer & Commercial Services",ICT,Supplies & Services,Telecomms,Airband Community Internet,05/08/2022,125.00
"Communities, Customer & Commercial Services",ICT,Supplies & Services,Telecomms,Airband Community Internet,05/08/2022,294.99
"Communities, Customer & Commercial Services",ICT,Supplies & Services,Telecomms,Airband Community Internet,05/08/2022,299.99
"Communities, Customer & Commercial Services",ICT,Supplies & Services,Telecomms,BRITISH TELECOMMUNICATIONS PLC ,23/08/2022,"4,601.26"
"Communities, Customer & Commercial Services",ICT,Supplies & Services,Equipment - Purchase,CCS MEDIA LIMITED,05/08/2022,"13,644.20"
"Communities, Customer & Commercial Services",ICT,Supplies & Services,Equipment - Purchase,CCS MEDIA LIMITED,05/08/2022,"4,900.00"
"Communities, Customer & Commercial Services",ICT,Supplies & Services,Comp Hardware (Purch / Hire),VIRGIN MEDIA BUSINESS LTD,11/08/2022,"1,779.95"
"Communities, Customer & Commercial Services",ICT,Supplies & Services,Equipment - Purchase,CCS MEDIA LIMITED,30/08/2022,"3,586.66"
"Communities, Customer & Commercial Services",ICT,Supplies & Services,Equipment - Purchase,ICTn Limited,30/08/2022,480.00
"Communities, Customer & Commercial Services",ICT,Supplies & Services,Equipment - Purchase,ICTn Limited,30/08/2022,234.00
"Communities, Customer & Commercial Services",ICT,Supplies & Services,Equipment - Purchase,ICTn Limited,30/08/2022,325.00
"Communities, Customer & Commercial Services",ICT,Supplies & Services,Telephones,Trustmarque Solutions Limited,26/08/2022,"2,868.00"
"Communities, Customer & Commercial Services",ICT,Supplies & Services,Telephones,Trustmarque Solutions Limited,02/08/2022,"3,474.57"
"Communities, Customer & Commercial Services",ICT,Supplies & Services,Telephones,Trustmarque Solutions Limited,02/08/2022,"2,896.52"
"Communities, Customer & Commercial Services",ICT,Supplies & Services,Mobile Phones,EE LTD EQUIPMENT ,04/08/2022,530.00
"Communities, Customer & Commercial Services",ICT,Supplies & Services,Mobile Phones,EE LTD EQUIPMENT ,04/08/2022,349.00
"Communities, Customer & Commercial Services",ICT,Supplies & Services,Mobile Phones,EE LTD AIRTIME,05/08/2022,"11,824.34"
"Communities, Customer & Commercial Services",ICT,Supplies & Services,Text Messages,PROCESS FLOWS UK LTD,23/08/2022,351.93
"Communities, Customer & Commercial Services",ICT,Supplies & Services,Telephones,BRITISH TELECOMMUNICATIONS PLC ,23/08/2022,"8,971.60"
"Communities, Customer & Commercial Services",ICT,Supplies & Services,Telephones,Trustmarque Solutions Limited,25/08/2022,"2,154.18"
"Communities, Customer & Commercial Services",ICT,Premises-Related Expenditure,Intra Committee - Premises,Charlton Academy,17/08/2022,"1,815.00"
"Communities, Customer & Commercial Services",ICT,Supplies & Services,Telecomms,VIRGIN MEDIA BUSINESS LTD,01/08/2022,"1,801.75"
"Communities, Customer & Commercial Services",ICT,Supplies & Services,Comp Software (Purch / Hire),Groupcall,01/08/2022,"4,320.00"
"Communities, Customer & Commercial Services",ICT,Supplies & Services,Comp Software (Purch / Hire),PHOENIX SOFTWARE LTD,01/08/2022,"47,071.56"
"Communities, Customer & Commercial Services",ICT,Supplies & Services,Comp Software (Purch / Hire),PHOENIX SOFTWARE LTD,01/08/2022,"47,071.56"
"Communities, Customer & Commercial Services",ICT,Supplies & Services,Comp Software (Purch / Hire),PHOENIX SOFTWARE LTD,01/08/2022,"64,440.00"
"Communities, Customer & Commercial Services",ICT,Premises-Related Expenditure,Service Contracts,AVK/SEG (UK) Ltd,04/08/2022,"3,093.00"
"Communities, Customer & Commercial Services",ICT,Premises-Related Expenditure,R&M -Buildings DLO Charge,COOL SERVICES LTD,04/08/2022,"1,360.00"
"Communities, Customer & Commercial Services",ICT,Premises-Related Expenditure,R&M -Buildings DLO Charge,COOL SERVICES LTD,04/08/2022,"-1,020.00"
"Communities, Customer & Commercial Services",ICT,Premises-Related Expenditure,R&M -Building Other,Charlton Academy,01/08/2022,"1,597.65"
"Communities, Customer & Commercial Services",ICT,Premises-Related Expenditure,R&M -Buildings DLO Charge,Robell Control Systems Ltd,24/08/2022,250.00
"Communities, Customer & Commercial Services",ICT,Supplies & Services,Comp Software (Purch / Hire),PHOENIX SOFTWARE LTD,04/08/2022,"5,976.44"
"Communities, Customer & Commercial Services",ICT,Supplies & Services,Comp Software (Purch / Hire),IDOX SOFTWARE LTD,03/08/2022,"1,900.00"
"Communities, Customer & Commercial Services",ICT,Supplies & Services,Comp Software (Purch / Hire),PHOENIX SOFTWARE LTD,19/08/2022,"3,132.90"
"Communities, Customer & Commercial Services",ICT,Supplies & Services,Comp Software (Purch / Hire),PHOENIX SOFTWARE LTD,19/08/2022,"2,240.30"
"Communities, Customer & Commercial Services",ICT,Supplies & Services,Comp Software (Purch / Hire),PHOENIX SOFTWARE LTD,24/08/2022,211.60
"Communities, Customer & Commercial Services",ICT,Supplies & Services,Comp Software (Purch / Hire),PHOENIX SOFTWARE LTD,25/08/2022,"10,732.32"
"Communities, Customer & Commercial Services",ICT,Supplies & Services,Comp Software (Purch / Hire),Fidus Information Security Limited,30/08/2022,"2,700.00"
"Communities, Customer & Commercial Services",ICT,Supplies & Services,Comp Software (Purch / Hire),V1 Limited,25/08/2022,"11,394.92"
"Communities, Customer & Commercial Services",ICT,Supplies & Services,External Computer Use,ESTEEM SYSTEMS Ltd,30/08/2022,"28,630.63"
"Communities, Customer & Commercial Services",ICT,Supplies & Services,Photocopying,RICOH UK LIMITED,24/08/2022,"1,885.18"
"Communities, Customer & Commercial Services",ICT,Supplies & Services,Photocopying,RICOH UK LIMITED,24/08/2022,377.49
"Communities, Customer & Commercial Services",ICT,Supplies & Services,Equipment - Hire,RICOH UK LIMITED,24/08/2022,"3,317.73"
"Communities, Customer & Commercial Services",ICT,Supplies & Services,Comp Software (Purch / Hire),Zellis UK Ltd,24/08/2022,"1,200.00"
"Communities, Customer & Commercial Services",ICT,Supplies & Services,Comp Software (Purch / Hire),Zellis UK Ltd,24/08/2022,"1,200.00"
"Communities, Customer & Commercial Services",ICT,Supplies & Services,Comp Software (Purch / Hire),PHOENIX SOFTWARE LTD,19/08/2022,199.33
"Communities, Customer & Commercial Services",ICT,Supplies & Services,Comp Software (Purch / Hire),PHOENIX SOFTWARE LTD,05/08/2022,277.34
"Communities, Customer & Commercial Services",ICT,Supplies & Services,Comp Software (Purch / Hire),PHOENIX SOFTWARE LTD,30/08/2022,"34,651.68"
"Communities, Customer & Commercial Services",ICT,Supplies & Services,Comp Software (Purch / Hire),PHOENIX SOFTWARE LTD,30/08/2022,934.56
"Communities, Customer & Commercial Services",ICT,Supplies & Services,Comp Hardware (Purch / Hire),CCS MEDIA LIMITED,16/08/2022,952.00
"Communities, Customer & Commercial Services",ICT,Supplies & Services,Licences,SIEMENS FINANCIAL SERVICES LTD,31/08/2022,"1,036.73"
"Communities, Customer & Commercial Services",ICT,Supplies & Services,Comp Software (Purch / Hire),ScholarPack,18/08/2022,"1,692.00"
"Communities, Customer & Commercial Services",ICT,Supplies & Services,Comp Software (Purch / Hire),ScholarPack,18/08/2022,"3,059.00"
"Communities, Customer & Commercial Services",ICT,Supplies & Services,Comp Software (Purch / Hire),Bromcom Computers Plc,17/08/2022,"1,800.00"
"Communities, Customer & Commercial Services",ICT,Supplies & Services,Comp Software (Purch / Hire),ScholarPack,02/08/2022,536.00
"Communities, Customer & Commercial Services",ICT,Supplies & Services,Comp Software (Purch / Hire),ScholarPack,02/08/2022,315.00
"Communities, Customer & Commercial Services",ICT,Supplies & Services,Comp Software (Purch / Hire),ScholarPack,02/08/2022,"3,142.00"
"Communities, Customer & Commercial Services",ICT,Supplies & Services,Comp Software (Purch / Hire),ScholarPack,02/08/2022,514.50
"Communities, Customer & Commercial Services",ICT,Supplies & Services,Comp Software (Purch / Hire),Bromcom Computers Plc,30/08/2022,"3,085.30"
"Communities, Customer & Commercial Services",ICT,Capital Expenditure,Payments to Contractor,NEC Software Solutions UK Ltd,30/08/2022,"30,000.00"
"Communities, Customer & Commercial Services",ICT,Capital Expenditure,Payments to Contractor,FarrPoint Ltd,24/08/2022,371.00
"Communities, Customer & Commercial Services",ICT,Capital Expenditure,Computer Hardware,CAPITA IT SERVICES LIMITED,16/08/2022,825.54
"Communities, Customer & Commercial Services",ICT,Capital Expenditure,Computer Hardware,CCS MEDIA LIMITED,16/08/2022,345.00
"Communities, Customer & Commercial Services",ICT,Capital Expenditure,Computer Hardware,CCS MEDIA LIMITED,26/08/2022,126.30
"Communities, Customer & Commercial Services",ICT,Capital Expenditure,Computer Hardware,CCS MEDIA LIMITED,25/08/2022,660.00
"Communities, Customer & Commercial Services",ICT,Capital Expenditure,Computer Hardware,CCS MEDIA LIMITED,25/08/2022,697.50
"Communities, Customer & Commercial Services",ICT,Capital Expenditure,Computer Hardware,CCS MEDIA LIMITED,25/08/2022,"11,217.17"
"Communities, Customer & Commercial Services",ICT,Capital Expenditure,Computer Hardware,CCS MEDIA LIMITED,30/08/2022,500.00
"Communities, Customer & Commercial Services",ICT,Capital Expenditure,Computer Hardware,INFORMATION DATA NETWORK SUPPLIES LTD,05/08/2022,560.00
"Communities, Customer & Commercial Services",ICT,Capital Expenditure,Computer Hardware,CCS MEDIA LIMITED,31/08/2022,120.00
"Communities, Customer & Commercial Services",ICT,Capital Expenditure,Computer Hardware,CCS MEDIA LIMITED,31/08/2022,345.44
"Communities, Customer & Commercial Services",ICT,Capital Expenditure,Computer Hardware,CCS MEDIA LIMITED,31/08/2022,"8,772.48"
"Communities, Customer & Commercial Services",ICT,Capital Expenditure,Computer Software,Bramble Hub Limited,26/08/2022,"2,221.55"
"Communities, Customer & Commercial Services",ICT,Capital Expenditure,Computer Hardware,CCS MEDIA LIMITED,25/08/2022,896.00
"Communities, Customer & Commercial Services",Sport & Leisure,Premises-Related Expenditure,R&M -Buildings DLO Charge,PROKILL UK LIMITED,04/08/2022,165.00
"Communities, Customer & Commercial Services",Sport & Leisure,Premises-Related Expenditure,Electricity,EON next,02/08/2022,-291.31
"Communities, Customer & Commercial Services",Sport & Leisure,Premises-Related Expenditure,Electricity,EON next,02/08/2022,399.00
"Communities, Customer & Commercial Services",Sport & Leisure,Premises-Related Expenditure,Electricity,EON next,02/08/2022,225.30
"Communities, Customer & Commercial Services",Sport & Leisure,Premises-Related Expenditure,Trade Refuse,CHAFFINCH DOCUMENT,10/08/2022,132.00
"Communities, Customer & Commercial Services",Sport & Leisure,Supplies & Services,Mobile Phones,EE LTD EQUIPMENT,31/08/2022,710.00
"Communities, Customer & Commercial Services",Sport & Leisure,Supplies & Services,Protective Clothing,IMAGE@WORK LTD,18/08/2022,"1,074.87"
"Communities, Customer & Commercial Services",Sport & Leisure,Supplies & Services,Computer Hardware (Maint),CIVICA UK LIMITED ,01/08/2022,"37,181.00"
"Communities, Customer & Commercial Services",Sport & Leisure,Supplies & Services,Publications,ROYAL MAIL GROUP PLC ,04/08/2022,106.59
"Communities, Customer & Commercial Services",Sport & Leisure,Supplies & Services,Protective Clothing,Border Janitorial Supplies Limited,04/08/2022,306.75
"Communities, Customer & Commercial Services",Sport & Leisure,Supplies & Services,Mobile Phones,EE LTD EQUIPMENT ,04/08/2022,142.00
"Communities, Customer & Commercial Services",Sport & Leisure,Supplies & Services,Publications,NFU Mutual ,18/08/2022,300.00
"Communities, Customer & Commercial Services",Sport & Leisure,Supplies & Services,Computer Hardware (Maint),CIVICA UK LIMITED ,01/08/2022,"9,974.48"
"Communities, Customer & Commercial Services",Sport & Leisure,Supplies & Services,Legal Expenses,JOHAL DAIRIES,26/08/2022,751.16
"Communities, Customer & Commercial Services",Sport & Leisure,Supplies & Services,Legal Expenses,JOHAL DAIRIES,26/08/2022,"1,343.17"
"Communities, Customer & Commercial Services",Sport & Leisure,Supplies & Services,EEC Whole Milk,JOHAL DAIRIES,26/08/2022,751.16
"Communities, Customer & Commercial Services",Sport & Leisure,Supplies & Services,EEC Whole Milk,JOHAL DAIRIES,26/08/2022,"1,351.97"
"Communities, Customer & Commercial Services",Sport & Leisure,Supplies & Services,EEC Whole Milk,JOHAL DAIRIES,26/08/2022,747.35
"Communities, Customer & Commercial Services",Sport & Leisure,Supplies & Services,EEC Whole Milk,JOHAL DAIRIES,26/08/2022,"1,334.37"
"Communities, Customer & Commercial Services",Sport & Leisure,Supplies & Services,EEC Whole Milk,JOHAL DAIRIES,26/08/2022,745.72
"Communities, Customer & Commercial Services",Sport & Leisure,Supplies & Services,EEC Whole Milk,JOHAL DAIRIES,26/08/2022,704.16
"Communities, Customer & Commercial Services",Sport & Leisure,Supplies & Services,EEC Whole Milk,JOHAL DAIRIES,26/08/2022,"1,351.97"
"Communities, Customer & Commercial Services",Sport & Leisure,Supplies & Services,EEC Whole Milk,JOHAL DAIRIES,26/08/2022,"1,231.17"
"Communities, Customer & Commercial Services",Sport & Leisure,Supplies & Services,Provisions,BIKOLD,19/08/2022,113.31
"Communities, Customer & Commercial Services",Sport & Leisure,Supplies & Services,Provisions,BIKOLD,19/08/2022,148.21
"Communities, Customer & Commercial Services",Sport & Leisure,Employees,Agency Supply Costs,BIKOLD,18/08/2022,128.00
"Communities, Customer & Commercial Services",Sport & Leisure,Employees,Agency Supply Costs,BIKOLD,18/08/2022,128.00
"Communities, Customer & Commercial Services",Sport & Leisure,Employees,Agency Supply Costs,BIKOLD,01/08/2022,320.00
"Communities, Customer & Commercial Services",Sport & Leisure,Employees,Agency Supply Costs,BIKOLD,01/08/2022,128.00
"Communities, Customer & Commercial Services",Sport & Leisure,Employees,Agency Supply Costs,BIKOLD,10/08/2022,320.00
"Communities, Customer & Commercial Services",Sport & Leisure,Employees,Agency Supply Costs,BIKOLD,10/08/2022,320.00
"Communities, Customer & Commercial Services",Sport & Leisure,Employees,Agency Supply Costs,BIKOLD,10/08/2022,128.00
"Communities, Customer & Commercial Services",Sport & Leisure,Employees,Agency Supply Costs,BIKOLD,10/08/2022,192.00
"Communities, Customer & Commercial Services",Sport & Leisure,Employees,Agency Supply Costs,BIKOLD,18/08/2022,152.00
"Communities, Customer & Commercial Services",Sport & Leisure,Employees,Agency Supply Costs,BIKOLD,18/08/2022,192.00
"Communities, Customer & Commercial Services",Sport & Leisure,Employees,Agency Supply Costs,BIKOLD,18/08/2022,192.00
"Communities, Customer & Commercial Services",Sport & Leisure,Employees,Agency Supply Costs,BIKOLD,18/08/2022,320.00
"Communities, Customer & Commercial Services",Sport & Leisure,Employees,Agency Supply Costs,BIKOLD,18/08/2022,256.00
"Communities, Customer & Commercial Services",Sport & Leisure,Premises-Related Expenditure,Clean Mats & Toilet Requisites,Border Janitorial Supplies Limited,04/08/2022,198.11
"Communities, Customer & Commercial Services",Sport & Leisure,Premises-Related Expenditure,Clean Mats & Toilet Requisites,Border Janitorial Supplies Limited,01/08/2022,206.47
"Communities, Customer & Commercial Services",Sport & Leisure,Supplies & Services,Provisions,BIKOLD,01/08/2022,145.54
"Communities, Customer & Commercial Services",Sport & Leisure,Supplies & Services,Provisions,BIKOLD,01/08/2022,199.32
"Communities, Customer & Commercial Services",Sport & Leisure,Supplies & Services,Provisions,BIKOLD,01/08/2022,-100.74
"Communities, Customer & Commercial Services",Sport & Leisure,Supplies & Services,Provisions,BIKOLD,19/08/2022,296.34
"Communities, Customer & Commercial Services",Sport & Leisure,Supplies & Services,Provisions,BIKOLD,19/08/2022,145.91
"Communities, Customer & Commercial Services",Sport & Leisure,Supplies & Services,Provisions,BIKOLD,19/08/2022,241.38
"Communities, Customer & Commercial Services",Sport & Leisure,Supplies & Services,Provisions,J S Catering Butchers,24/08/2022,261.94
"Communities, Customer & Commercial Services",Sport & Leisure,Supplies & Services,Provisions,J S Catering Butchers,24/08/2022,113.39
"Communities, Customer & Commercial Services",Sport & Leisure,Supplies & Services,Provisions,J S Catering Butchers,24/08/2022,126.00
"Communities, Customer & Commercial Services",Sport & Leisure,Supplies & Services,Provisions,J S Catering Butchers,24/08/2022,122.54
"Communities, Customer & Commercial Services",Sport & Leisure,Supplies & Services,Provisions,J S Catering Butchers,24/08/2022,130.35
"Communities, Customer & Commercial Services",Sport & Leisure,Supplies & Services,Provisions,J S Catering Butchers,24/08/2022,179.78
"Communities, Customer & Commercial Services",Sport & Leisure,Supplies & Services,Provisions,ROWLANDS & COMPANY,24/08/2022,155.38
"Communities, Customer & Commercial Services",Sport & Leisure,Supplies & Services,Provisions,J S Catering Butchers,24/08/2022,127.70
"Communities, Customer & Commercial Services",Sport & Leisure,Supplies & Services,Provisions,J S Catering Butchers,24/08/2022,111.60
"Communities, Customer & Commercial Services",Sport & Leisure,Supplies & Services,Provisions,J S Catering Butchers,24/08/2022,230.10
"Communities, Customer & Commercial Services",Sport & Leisure,Supplies & Services,Provisions,J S Catering Butchers,24/08/2022,115.00
"Communities, Customer & Commercial Services",Sport & Leisure,Supplies & Services,Provisions,J S Catering Butchers,24/08/2022,126.72
"Communities, Customer & Commercial Services",Sport & Leisure,Supplies & Services,Provisions,ROWLANDS & COMPANY,24/08/2022,123.96
"Communities, Customer & Commercial Services",Sport & Leisure,Supplies & Services,Provisions,ROWLANDS & COMPANY,24/08/2022,100.44
"Communities, Customer & Commercial Services",Sport & Leisure,Supplies & Services,Provisions,ROWLANDS & COMPANY,24/08/2022,129.60
"Communities, Customer & Commercial Services",Sport & Leisure,Supplies & Services,Provisions,J S Catering Butchers,24/08/2022,177.95
"Communities, Customer & Commercial Services",Sport & Leisure,Supplies & Services,Provisions,J S Catering Butchers,24/08/2022,217.24
"Communities, Customer & Commercial Services",Sport & Leisure,Supplies & Services,Provisions,ROWLANDS & COMPANY,24/08/2022,173.01
"Communities, Customer & Commercial Services",Sport & Leisure,Supplies & Services,Provisions,ROWLANDS & COMPANY,24/08/2022,230.86
"Communities, Customer & Commercial Services",Sport & Leisure,Supplies & Services,Provisions,ROWLANDS & COMPANY,24/08/2022,148.86
"Communities, Customer & Commercial Services",Sport & Leisure,Supplies & Services,Provisions,ROWLANDS & COMPANY,24/08/2022,131.93
"Communities, Customer & Commercial Services",Sport & Leisure,Supplies & Services,Provisions,ROWLANDS & COMPANY,24/08/2022,151.57
"Communities, Customer & Commercial Services",Sport & Leisure,Supplies & Services,Provisions,ROWLANDS & COMPANY,24/08/2022,150.69
"Communities, Customer & Commercial Services",Sport & Leisure,Supplies & Services,Provisions,ROWLANDS & COMPANY,24/08/2022,199.46
"Communities, Customer & Commercial Services",Sport & Leisure,Supplies & Services,Provisions,ROWLANDS & COMPANY,24/08/2022,129.58
"Communities, Customer & Commercial Services",Sport & Leisure,Supplies & Services,Provisions,ROWLANDS & COMPANY,24/08/2022,129.62
"Communities, Customer & Commercial Services",Sport & Leisure,Supplies & Services,Provisions,ROWLANDS & COMPANY,24/08/2022,111.95
"Communities, Customer & Commercial Services",Sport & Leisure,Supplies & Services,Provisions,ROWLANDS & COMPANY,24/08/2022,174.85
"Communities, Customer & Commercial Services",Sport & Leisure,Supplies & Services,Provisions,ROWLANDS & COMPANY,24/08/2022,109.81
"Communities, Customer & Commercial Services",Sport & Leisure,Supplies & Services,Provisions,ROWLANDS & COMPANY,24/08/2022,110.89
"Communities, Customer & Commercial Services",Sport & Leisure,Supplies & Services,Provisions,ROWLANDS & COMPANY,24/08/2022,116.89
"Communities, Customer & Commercial Services",Sport & Leisure,Supplies & Services,Provisions,ROWLANDS & COMPANY,24/08/2022,102.48
"Communities, Customer & Commercial Services",Sport & Leisure,Supplies & Services,Provisions,ROWLANDS & COMPANY,24/08/2022,346.06
"Communities, Customer & Commercial Services",Sport & Leisure,Supplies & Services,Provisions,ROWLANDS & COMPANY,24/08/2022,112.33
"Communities, Customer & Commercial Services",Sport & Leisure,Supplies & Services,Provisions,ROWLANDS & COMPANY,24/08/2022,108.92
"Communities, Customer & Commercial Services",Sport & Leisure,Supplies & Services,Provisions,ROWLANDS & COMPANY,24/08/2022,107.56
"Communities, Customer & Commercial Services",Sport & Leisure,Supplies & Services,Provisions,ROWLANDS & COMPANY,24/08/2022,123.75
"Communities, Customer & Commercial Services",Sport & Leisure,Supplies & Services,Provisions,ROWLANDS & COMPANY,24/08/2022,103.59
"Communities, Customer & Commercial Services",Sport & Leisure,Supplies & Services,Provisions,ROWLANDS & COMPANY,24/08/2022,201.45
"Communities, Customer & Commercial Services",Sport & Leisure,Supplies & Services,Provisions,ROWLANDS & COMPANY,24/08/2022,137.97
"Communities, Customer & Commercial Services",Sport & Leisure,Supplies & Services,Provisions,ROWLANDS & COMPANY,24/08/2022,131.27
"Communities, Customer & Commercial Services",Sport & Leisure,Supplies & Services,Provisions,ROWLANDS & COMPANY,24/08/2022,102.89
"Communities, Customer & Commercial Services",Sport & Leisure,Supplies & Services,Provisions,ROWLANDS & COMPANY,24/08/2022,131.43
"Communities, Customer & Commercial Services",Sport & Leisure,Supplies & Services,Provisions,ROWLANDS & COMPANY,24/08/2022,313.06
"Communities, Customer & Commercial Services",Sport & Leisure,Supplies & Services,Provisions,ROWLANDS & COMPANY,24/08/2022,198.05
"Communities, Customer & Commercial Services",Sport & Leisure,Supplies & Services,Provisions,ROWLANDS & COMPANY,24/08/2022,363.79
"Communities, Customer & Commercial Services",Sport & Leisure,Supplies & Services,Provisions,ROWLANDS & COMPANY,24/08/2022,-301.16
"Communities, Customer & Commercial Services",Sport & Leisure,Supplies & Services,Provisions,ROWLANDS & COMPANY,24/08/2022,114.32
"Communities, Customer & Commercial Services",Sport & Leisure,Supplies & Services,Provisions,ROWLANDS & COMPANY,24/08/2022,152.46
"Communities, Customer & Commercial Services",Sport & Leisure,Supplies & Services,Provisions,ROWLANDS & COMPANY,24/08/2022,153.25
"Communities, Customer & Commercial Services",Sport & Leisure,Supplies & Services,Provisions,ROWLANDS & COMPANY,24/08/2022,117.31
"Communities, Customer & Commercial Services",Sport & Leisure,Supplies & Services,Provisions,ROWLANDS & COMPANY,24/08/2022,163.27
"Communities, Customer & Commercial Services",Sport & Leisure,Supplies & Services,Provisions,ROWLANDS & COMPANY,24/08/2022,110.81
"Communities, Customer & Commercial Services",Sport & Leisure,Supplies & Services,Provisions,ROWLANDS & COMPANY,24/08/2022,115.62
"Communities, Customer & Commercial Services",Sport & Leisure,Supplies & Services,Provisions,ROWLANDS & COMPANY,24/08/2022,103.67
"Communities, Customer & Commercial Services",Sport & Leisure,Supplies & Services,Provisions,ROWLANDS & COMPANY,24/08/2022,104.67
"Communities, Customer & Commercial Services",Sport & Leisure,Supplies & Services,Provisions,ROWLANDS & COMPANY,24/08/2022,115.78
"Communities, Customer & Commercial Services",Sport & Leisure,Supplies & Services,Provisions,ROWLANDS & COMPANY,24/08/2022,161.30
"Communities, Customer & Commercial Services",Sport & Leisure,Supplies & Services,Provisions,ROWLANDS & COMPANY,24/08/2022,106.60
"Communities, Customer & Commercial Services",Sport & Leisure,Supplies & Services,Provisions,ROWLANDS & COMPANY,24/08/2022,125.21
"Communities, Customer & Commercial Services",Sport & Leisure,Supplies & Services,Provisions,ROWLANDS & COMPANY,24/08/2022,103.80
"Communities, Customer & Commercial Services",Sport & Leisure,Supplies & Services,Provisions,ROWLANDS & COMPANY,24/08/2022,144.77
"Communities, Customer & Commercial Services",Sport & Leisure,Supplies & Services,Provisions,ROWLANDS & COMPANY,24/08/2022,118.66
"Communities, Customer & Commercial Services",Sport & Leisure,Supplies & Services,Provisions,ROWLANDS & COMPANY,24/08/2022,211.61
"Communities, Customer & Commercial Services",Sport & Leisure,Supplies & Services,Provisions,ROWLANDS & COMPANY,24/08/2022,162.52
"Communities, Customer & Commercial Services",Sport & Leisure,Supplies & Services,Provisions,ROWLANDS & COMPANY,24/08/2022,116.22
"Communities, Customer & Commercial Services",Sport & Leisure,Supplies & Services,Provisions,ROWLANDS & COMPANY,24/08/2022,125.48
"Communities, Customer & Commercial Services",Sport & Leisure,Supplies & Services,Provisions,ROWLANDS & COMPANY,24/08/2022,119.85
"Communities, Customer & Commercial Services",Sport & Leisure,Supplies & Services,Provisions,ROWLANDS & COMPANY,24/08/2022,104.28
"Communities, Customer & Commercial Services",Sport & Leisure,Supplies & Services,Provisions,ROWLANDS & COMPANY,24/08/2022,120.56
"Communities, Customer & Commercial Services",Sport & Leisure,Supplies & Services,Provisions,J S Catering Butchers,08/08/2022,180.94
"Communities, Customer & Commercial Services",Sport & Leisure,Supplies & Services,Provisions,J S Catering Butchers,08/08/2022,237.12
"Communities, Customer & Commercial Services",Sport & Leisure,Supplies & Services,Provisions,J S Catering Butchers,08/08/2022,252.52
"Communities, Customer & Commercial Services",Sport & Leisure,Supplies & Services,Provisions,BIKOLD,16/08/2022,436.23
"Communities, Customer & Commercial Services",Sport & Leisure,Supplies & Services,Provisions,BIKOLD,16/08/2022,129.58
"Communities, Customer & Commercial Services",Sport & Leisure,Supplies & Services,Provisions,ROWLANDS & COMPANY,24/08/2022,430.37
"Communities, Customer & Commercial Services",Sport & Leisure,Supplies & Services,Provisions,BIKOLD,05/08/2022,813.01
"Communities, Customer & Commercial Services",Sport & Leisure,Supplies & Services,Provisions,BIKOLD,05/08/2022,110.04
"Communities, Customer & Commercial Services",Sport & Leisure,Supplies & Services,Provisions,BIKOLD,05/08/2022,275.47
"Communities, Customer & Commercial Services",Sport & Leisure,Supplies & Services,Provisions,BIKOLD,05/08/2022,200.28
"Communities, Customer & Commercial Services",Sport & Leisure,Supplies & Services,Provisions,J S Catering Butchers,24/08/2022,119.03
"Communities, Customer & Commercial Services",Sport & Leisure,Supplies & Services,Provisions,J S Catering Butchers,24/08/2022,123.50
"Communities, Customer & Commercial Services",Sport & Leisure,Supplies & Services,Provisions,J S Catering Butchers,24/08/2022,187.77
"Communities, Customer & Commercial Services",Sport & Leisure,Supplies & Services,Provisions,J S Catering Butchers,24/08/2022,122.25
"Communities, Customer & Commercial Services",Sport & Leisure,Supplies & Services,Provisions,BIKOLD,31/08/2022,348.70
"Communities, Customer & Commercial Services",Sport & Leisure,Supplies & Services,Provisions,BIKOLD,31/08/2022,107.12
"Communities, Customer & Commercial Services",Sport & Leisure,Supplies & Services,Provisions,BIKOLD,31/08/2022,-112.63
"Communities, Customer & Commercial Services",Sport & Leisure,Supplies & Services,Provisions,BIKOLD,31/08/2022,129.84
"Communities, Customer & Commercial Services",Sport & Leisure,Employees,Agency Supply Costs,TOTAL CATERING SOLUTONS RECRUITMENT LTD,18/08/2022,128.00
"Communities, Customer & Commercial Services",Sport & Leisure,Employees,Agency Supply Costs,TOTAL CATERING SOLUTONS RECRUITMENT LTD,18/08/2022,192.00
"Communities, Customer & Commercial Services",Sport & Leisure,Employees,Agency Supply Costs,TOTAL CATERING SOLUTONS RECRUITMENT LTD,01/08/2022,192.00
"Communities, Customer & Commercial Services",Sport & Leisure,Employees,Agency Supply Costs,TOTAL CATERING SOLUTONS RECRUITMENT LTD,10/08/2022,320.00
"Communities, Customer & Commercial Services",Sport & Leisure,Supplies & Services,Crockery/Hardware/Light Equip,Vegware,05/08/2022,470.74
"Communities, Customer & Commercial Services",Sport & Leisure,Supplies & Services,Provisions,BIKOLD,01/08/2022,160.07
"Communities, Customer & Commercial Services",Sport & Leisure,Supplies & Services,Provisions,BIKOLD,01/08/2022,345.24
"Communities, Customer & Commercial Services",Sport & Leisure,Supplies & Services,Provisions,BIKOLD,19/08/2022,144.10
"Communities, Customer & Commercial Services",Sport & Leisure,Supplies & Services,Provisions,On A Roll,04/08/2022,188.57
"Communities, Customer & Commercial Services",Sport & Leisure,Supplies & Services,Provisions,On A Roll,04/08/2022,104.32
"Communities, Customer & Commercial Services",Sport & Leisure,Supplies & Services,Provisions,On A Roll,04/08/2022,601.34
"Communities, Customer & Commercial Services",Sport & Leisure,Supplies & Services,Provisions,SPICE TIME,04/08/2022,141.36
"Communities, Customer & Commercial Services",Sport & Leisure,Supplies & Services,Provisions,J S Catering Butchers,24/08/2022,127.54
"Communities, Customer & Commercial Services",Sport & Leisure,Supplies & Services,Provisions,J S Catering Butchers,24/08/2022,125.86
"Communities, Customer & Commercial Services",Sport & Leisure,Supplies & Services,Provisions,J S Catering Butchers,24/08/2022,135.47
"Communities, Customer & Commercial Services",Sport & Leisure,Supplies & Services,Provisions,On A Roll,01/08/2022,523.05
"Communities, Customer & Commercial Services",Sport & Leisure,Supplies & Services,Provisions,On A Roll,01/08/2022,219.31
"Communities, Customer & Commercial Services",Sport & Leisure,Supplies & Services,Provisions,On A Roll,01/08/2022,121.76
"Communities, Customer & Commercial Services",Sport & Leisure,Supplies & Services,Provisions,ROWLANDS & COMPANY,24/08/2022,138.47
"Communities, Customer & Commercial Services",Sport & Leisure,Supplies & Services,Provisions,ROWLANDS & COMPANY,24/08/2022,213.69
"Communities, Customer & Commercial Services",Sport & Leisure,Supplies & Services,Provisions,ROWLANDS & COMPANY,24/08/2022,164.34
"Communities, Customer & Commercial Services",Sport & Leisure,Supplies & Services,Provisions,ROWLANDS & COMPANY,24/08/2022,116.49
"Communities, Customer & Commercial Services",Sport & Leisure,Supplies & Services,Provisions,ROWLANDS & COMPANY,24/08/2022,174.71
"Communities, Customer & Commercial Services",Sport & Leisure,Supplies & Services,Provisions,ROWLANDS & COMPANY,24/08/2022,115.15
"Communities, Customer & Commercial Services",Sport & Leisure,Supplies & Services,Provisions,On A Roll,01/08/2022,"1,149.59"
"Communities, Customer & Commercial Services",Sport & Leisure,Supplies & Services,Provisions,BIKOLD,05/08/2022,345.24
"Communities, Customer & Commercial Services",Sport & Leisure,Supplies & Services,Provisions,T FOOD SERVICE LTD,26/08/2022,994.20
"Communities, Customer & Commercial Services",Sport & Leisure,Supplies & Services,Provisions,T FOOD SERVICE LTD,26/08/2022,857.90
"Communities, Customer & Commercial Services",Sport & Leisure,Supplies & Services,Provisions,T FOOD SERVICE LTD,26/08/2022,896.20
"Communities, Customer & Commercial Services",Sport & Leisure,Supplies & Services,Provisions,On A Roll,26/08/2022,680.53
"Communities, Customer & Commercial Services",Sport & Leisure,Supplies & Services,Provisions,On A Roll,26/08/2022,157.11
"Communities, Customer & Commercial Services",Sport & Leisure,Supplies & Services,Provisions,On A Roll,26/08/2022,191.05
"Communities, Customer & Commercial Services",Sport & Leisure,Supplies & Services,Provisions,On A Roll,26/08/2022,822.43
"Communities, Customer & Commercial Services",Sport & Leisure,Supplies & Services,Provisions,On A Roll,26/08/2022,112.61
"Communities, Customer & Commercial Services",Sport & Leisure,Supplies & Services,Provisions,On A Roll,26/08/2022,136.87
"Communities, Customer & Commercial Services",Sport & Leisure,Supplies & Services,Provisions,R & COMPANY,24/08/2022,145.05
"Communities, Customer & Commercial Services",Sport & Leisure,Premises-Related Expenditure,Clean Mats & Toilet Requisites,Border Janitorial Supplies Limited,16/08/2022,194.63
"Communities, Customer & Commercial Services",Sport & Leisure,Premises-Related Expenditure,Clean Mats & Toilet Requisites,Border Janitorial Supplies Limited,16/08/2022,617.40
"Communities, Customer & Commercial Services",Sport & Leisure,Premises-Related Expenditure,Clean Mats & Toilet Requisites,Border Janitorial Supplies Limited,16/08/2022,227.11
"Communities, Customer & Commercial Services",Sport & Leisure,Premises-Related Expenditure,Clean Mats & Toilet Requisites,Border Janitorial Supplies Limited,16/08/2022,626.21
"Communities, Customer & Commercial Services",Sport & Leisure,Premises-Related Expenditure,Clean Mats & Toilet Requisites,Border Janitorial Supplies Limited,16/08/2022,189.20
"Communities, Customer & Commercial Services",Sport & Leisure,Premises-Related Expenditure,Clean Mats & Toilet Requisites,Border Janitorial Supplies Limited,24/08/2022,106.69
"Communities, Customer & Commercial Services",Sport & Leisure,Premises-Related Expenditure,Clean Mats & Toilet Requisites,Border Janitorial Supplies Limited,03/08/2022,103.89
"Communities, Customer & Commercial Services",Sport & Leisure,Premises-Related Expenditure,Clean Mats & Toilet Requisites,Border Janitorial Supplies Limited,03/08/2022,528.00
"Communities, Customer & Commercial Services",Sport & Leisure,Premises-Related Expenditure,Clean Mats & Toilet Requisites,Border Janitorial Supplies Limited,03/08/2022,498.42
"Communities, Customer & Commercial Services",Sport & Leisure,Premises-Related Expenditure,Clean Mats & Toilet Requisites,Border Janitorial Supplies Limited,16/08/2022,550.00
"Communities, Customer & Commercial Services",Sport & Leisure,Premises-Related Expenditure,Clean Mats & Toilet Requisites,Border Janitorial Supplies Limited,16/08/2022,108.54
"Communities, Customer & Commercial Services",Sport & Leisure,Premises-Related Expenditure,Clean Mats & Toilet Requisites,Border Janitorial Supplies Limited,09/08/2022,101.50
"Communities, Customer & Commercial Services",Sport & Leisure,Premises-Related Expenditure,Clean Mats & Toilet Requisites,Border Janitorial Supplies Limited,09/08/2022,778.46
"Communities, Customer & Commercial Services",Sport & Leisure,Premises-Related Expenditure,Clean Mats & Toilet Requisites,Border Janitorial Supplies Limited,24/08/2022,107.19
"Communities, Customer & Commercial Services",Sport & Leisure,Premises-Related Expenditure,Clean Mats & Toilet Requisites,Border Janitorial Supplies Limited,24/08/2022,200.69
"Communities, Customer & Commercial Services",Sport & Leisure,Premises-Related Expenditure,Clean Mats & Toilet Requisites,Border Janitorial Supplies Limited,24/08/2022,788.28
"Communities, Customer & Commercial Services",Sport & Leisure,Premises-Related Expenditure,Clean Mats & Toilet Requisites,Border Janitorial Supplies Limited,23/08/2022,306.55
"Communities, Customer & Commercial Services",Sport & Leisure,Premises-Related Expenditure,Clean Mats & Toilet Requisites,Border Janitorial Supplies Limited,23/08/2022,309.79
"Communities, Customer & Commercial Services",Sport & Leisure,Premises-Related Expenditure,Clean Mats & Toilet Requisites,Border Janitorial Supplies Limited,16/08/2022,182.52
"Communities, Customer & Commercial Services",Sport & Leisure,Premises-Related Expenditure,Clean Mats & Toilet Requisites,Border Janitorial Supplies Limited,16/08/2022,212.70
"Communities, Customer & Commercial Services",Sport & Leisure,Premises-Related Expenditure,Clean Mats & Toilet Requisites,Border Janitorial Supplies Limited,24/08/2022,148.46
"Communities, Customer & Commercial Services",Sport & Leisure,Premises-Related Expenditure,Clean Mats & Toilet Requisites,Border Janitorial Supplies Limited,24/08/2022,122.32
"Communities, Customer & Commercial Services",Sport & Leisure,Premises-Related Expenditure,Clean Mats & Toilet Requisites,Border Janitorial Supplies Limited,24/08/2022,226.19
"Communities, Customer & Commercial Services",Sport & Leisure,Premises-Related Expenditure,Clean Mats & Toilet Requisites,Border Janitorial Supplies Limited,03/08/2022,308.27
"Communities, Customer & Commercial Services",Sport & Leisure,Premises-Related Expenditure,Clean Mats & Toilet Requisites,Border Janitorial Supplies Limited,03/08/2022,263.06
"Communities, Customer & Commercial Services",Sport & Leisure,Premises-Related Expenditure,Clean Mats & Toilet Requisites,Border Janitorial Supplies Limited,03/08/2022,148.65
"Communities, Customer & Commercial Services",Sport & Leisure,Premises-Related Expenditure,Clean Mats & Toilet Requisites,Border Janitorial Supplies Limited,03/08/2022,-170.28
"Communities, Customer & Commercial Services",Sport & Leisure,Premises-Related Expenditure,Clean Mats & Toilet Requisites,Border Janitorial Supplies Limited,16/08/2022,250.03
"Communities, Customer & Commercial Services",Sport & Leisure,Premises-Related Expenditure,Clean Mats & Toilet Requisites,Border Janitorial Supplies Limited,09/08/2022,223.24
"Communities, Customer & Commercial Services",Sport & Leisure,Premises-Related Expenditure,Clean Mats & Toilet Requisites,Border Janitorial Supplies Limited,24/08/2022,368.65
"Communities, Customer & Commercial Services",Sport & Leisure,Premises-Related Expenditure,Clean Mats & Toilet Requisites,Border Janitorial Supplies Limited,23/08/2022,250.03
"Communities, Customer & Commercial Services",Sport & Leisure,Premises-Related Expenditure,Clean Mats & Toilet Requisites,Border Janitorial Supplies Limited,03/08/2022,894.45
"Communities, Customer & Commercial Services",Sport & Leisure,Premises-Related Expenditure,R&M -Building Other,E N CATERING EQUIPMENT AND SERVICES  LTD,26/08/2022,"3,117.38"
"Communities, Customer & Commercial Services",Sport & Leisure,Supplies & Services,Crockery/Hardware/Light Equip,Vegware,10/08/2022,115.39
"Communities, Customer & Commercial Services",Sport & Leisure,Supplies & Services,Crockery/Hardware/Light Equip,PLANGLOW LTD,01/08/2022,342.51
"Communities, Customer & Commercial Services",Sport & Leisure,Supplies & Services,Provisions,On A Roll,18/08/2022,243.96
"Communities, Customer & Commercial Services",Sport & Leisure,Supplies & Services,Provisions,BIKOLD,01/08/2022,221.87
"Communities, Customer & Commercial Services",Sport & Leisure,Supplies & Services,Provisions,BIKOLD,19/08/2022,220.65
"Communities, Customer & Commercial Services",Sport & Leisure,Supplies & Services,Provisions,BIKOLD,19/08/2022,203.83
"Communities, Customer & Commercial Services",Sport & Leisure,Supplies & Services,Provisions,On A Roll,04/08/2022,387.53
"Communities, Customer & Commercial Services",Sport & Leisure,Supplies & Services,Provisions,On A Roll,01/08/2022,228.85
"Communities, Customer & Commercial Services",Sport & Leisure,Supplies & Services,Provisions,BIKOLD,05/08/2022,125.50
"Communities, Customer & Commercial Services",Sport & Leisure,Supplies & Services,Provisions,BIKOLD,05/08/2022,123.23
"Communities, Customer & Commercial Services",Sport & Leisure,Supplies & Services,Provisions,J S Catering Butchers,18/08/2022,138.00
"Communities, Customer & Commercial Services",Sport & Leisure,Supplies & Services,Provisions,BIKOLD,16/08/2022,121.27
"Communities, Customer & Commercial Services",Sport & Leisure,Supplies & Services,Provisions,On A Roll,26/08/2022,232.07
"Communities, Customer & Commercial Services",Sport & Leisure,Supplies & Services,Provisions,On A Roll,24/08/2022,353.87
"Communities, Customer & Commercial Services",Sport & Leisure,Supplies & Services,Provisions,Aroma Tea & Coffee Merchants,24/08/2022,127.16
"Communities, Customer & Commercial Services",Sport & Leisure,Supplies & Services,Provisions,On A Roll,24/08/2022,227.21
"Communities, Customer & Commercial Services",Sport & Leisure,Supplies & Services,Provisions,Handmade Speciality Products Ltd,24/08/2022,214.16
"Communities, Customer & Commercial Services",Sport & Leisure,Supplies & Services,Other Materials,MiniGolf Ltd,08/08/2022,283.65
"Communities, Customer & Commercial Services",Sport & Leisure,Supplies & Services,Other Materials,PROVAC CLEANING SUPPLIES LTD,08/08/2022,299.10
"Communities, Customer & Commercial Services",Sport & Leisure,Supplies & Services,Sub Contractors,Waterplay Solutions Limited,01/08/2022,"1,373.60"
"Communities, Customer & Commercial Services",Sport & Leisure,Supplies & Services,Sub Contractors,BUSINESS WATCH GUARDING LIMITED,12/08/2022,307.44
"Communities, Customer & Commercial Services",Sport & Leisure,Supplies & Services,Sub Contractors,BUSINESS WATCH GUARDING LIMITED,16/08/2022,264.74
"Communities, Customer & Commercial Services",Sport & Leisure,Supplies & Services,Other Materials,GLASDON U.K. LTD,04/08/2022,518.88
"Communities, Customer & Commercial Services",Sport & Leisure,Supplies & Services,Other Materials,PROVAC CLEANING SUPPLIES LTD,30/08/2022,185.96
"Communities, Customer & Commercial Services",Sport & Leisure,Supplies & Services,Other Materials,Border Janitorial Supplies Limited,25/08/2022,269.28
"Communities, Customer & Commercial Services",Sport & Leisure,Transport-Related Expenditure,District Council Vehicles,CHARLIES STORES LTD,30/08/2022,405.59
"Communities, Customer & Commercial Services",Sport & Leisure,Employees,Staff Training,PODS,15/08/2022,250.00
"Communities, Customer & Commercial Services",Sport & Leisure,Supplies & Services,Chemicals/Cleaning Products,BRENNTAG UK LIMITED,08/08/2022,506.16
"Communities, Customer & Commercial Services",Sport & Leisure,Supplies & Services,Equipment - Purchase,RLSS UK Shop,24/08/2022,675.00
"Communities, Customer & Commercial Services",Sport & Leisure,Supplies & Services,Sport Equip - Purchase,J P L LTD,15/08/2022,147.00
"Communities, Customer & Commercial Services",Sport & Leisure,Supplies & Services,Chemicals/Cleaning Products,BRENNTAG UK LIMITED,08/08/2022,187.50
"Communities, Customer & Commercial Services",Sport & Leisure,Supplies & Services,First Aid,J P L LTD,15/08/2022,245.99
"Communities, Customer & Commercial Services",Sport & Leisure,Supplies & Services,Equipment - Purchase,Precore Fitness Limited,30/08/2022,131.25
"Communities, Customer & Commercial Services",Sport & Leisure,Employees,Course Fees,PODS,15/08/2022,250.00
"Communities, Customer & Commercial Services",Sport & Leisure,Supplies & Services,Financial Services,DEBIT FINANCE COLLECTIONS,15/08/2022,142.62
"Communities, Customer & Commercial Services",Sport & Leisure,Employees,Staff Training,SHREWSBURY COLLEGES GROUP,18/08/2022,375.00
"Communities, Customer & Commercial Services",Sport & Leisure,Supplies & Services,Financial Services,DEBIT FINANCE COLLECTIONS ,15/08/2022,290.40
"Communities, Customer & Commercial Services",Sport & Leisure,Employees,Staff Training,PODS,15/08/2022,250.00
"Communities, Customer & Commercial Services",Sport & Leisure,Employees,Staff Training,Snowsport England,30/08/2022,891.00
"Communities, Customer & Commercial Services",Sport & Leisure,Supplies & Services,Provisions,BIKOLD,02/08/2022,123.75
"Communities, Customer & Commercial Services",Sport & Leisure,Employees,Staff Training,PODS,15/08/2022,250.00
"Communities, Customer & Commercial Services",Sport & Leisure,Supplies & Services,Items For Resale,SWIM ENGLAND TRADING LIMITED,08/08/2022,684.38
"Communities, Customer & Commercial Services",Sport & Leisure,Supplies & Services,Protective Clothing,CORPORATE TOGS LTD,08/08/2022,126.75
"Communities, Customer & Commercial Services",Sport & Leisure,Supplies & Services,Equipment - Purchase,RLSS UK Shop,24/08/2022,675.00
"Communities, Customer & Commercial Services",Sport & Leisure,Supplies & Services,Equipment - Purchase,Splash About International Limited,24/08/2022,258.15
"Communities, Customer & Commercial Services",Sport & Leisure,Supplies & Services,Chemicals/Cleaning Products,Border Janitorial Supplies Limited,31/08/2022,150.30
"Communities, Customer & Commercial Services",Sport & Leisure,Premises-Related Expenditure,R&M - Mechanical,Envirosport Maintenance Limited,25/08/2022,360.00
"Communities, Customer & Commercial Services",Sport & Leisure,Premises-Related Expenditure,R&M -Building Other,Envirosport Maintenance Limited,25/08/2022,495.00
"Communities, Customer & Commercial Services",Sport & Leisure,Premises-Related Expenditure,R&M -Building Other,Envirosport Maintenance Limited,30/08/2022,"2,100.00"
"Communities, Customer & Commercial Services",Sport & Leisure,Supplies & Services,Equipment - Purchase,Envirosport Maintenance Limited,25/08/2022,594.00
"Communities, Customer & Commercial Services",Sport & Leisure,Supplies & Services,Licences,L M Fitness UK Ltd,17/08/2022,565.18
"Communities, Customer & Commercial Services",Sport & Leisure,Supplies & Services,Financial Services,DEBIT FINANCE COLLECTIONS,15/08/2022,307.86
"Communities, Customer & Commercial Services",Sport & Leisure,Supplies & Services,Financial Services,DEBIT FINANCE COLLECTIONS ,15/08/2022,154.70
"Communities, Customer & Commercial Services",Sport & Leisure,Supplies & Services,Equipment - Purchase,We Do Tennis CIC,15/08/2022,"1,020.22"
"Communities, Customer & Commercial Services",Sport & Leisure,Supplies & Services,Flex Charges,GB GROUP PLC,01/08/2022,300.00
"Communities, Customer & Commercial Services",Sport & Leisure,Supplies & Services,Research Surveys,Community First Partnership LTD,17/08/2022,"2,500.00"
"Communities, Customer & Commercial Services",Sport & Leisure,Supplies & Services,Flex Charges,Verifone UK Limited,11/08/2022,297.50
"Communities, Customer & Commercial Services",Sport & Leisure,Employees,Staff Training,PODS,15/08/2022,250.00
"Communities, Customer & Commercial Services",Sport & Leisure,Supplies & Services,Equipment - Purchase,Jordan Fitness  Ltd,02/08/2022,415.80
"Communities, Customer & Commercial Services",Sport & Leisure,Supplies & Services,Financial Services,DEBIT FINANCE COLLECTIONS ,15/08/2022,213.08
"Communities, Customer & Commercial Services",Sport & Leisure,Employees,Staff Training,PODS,15/08/2022,250.00
"Communities, Customer & Commercial Services",Sport & Leisure,Supplies & Services,Equipment - Hire,OAKLEYS LTD,09/08/2022,639.98
"Communities, Customer & Commercial Services",Sport & Leisure,Transport-Related Expenditure,Servicing & Repairs V&P,OAKLEYS LTD,09/08/2022,392.03
"Communities, Customer & Commercial Services",Sport & Leisure,Premises-Related Expenditure,R&M WC Planned,Agrovista UK LTD,05/08/2022,912.60
"Communities, Customer & Commercial Services",Sport & Leisure,Premises-Related Expenditure,R&M WC Planned,Agrovista UK LTD,09/08/2022,133.95
"Communities, Customer & Commercial Services",Sport & Leisure,Supplies & Services,Equipment - Purchase,Agrovista UK LTD,05/08/2022,599.00
"Communities, Customer & Commercial Services",Sport & Leisure,Transport-Related Expenditure,Servicing & Repairs V&P,C STORES LTD,01/08/2022,258.66
"Communities, Customer & Commercial Services",Sport & Leisure,Transport-Related Expenditure,Servicing & Repairs V&P,CHARLIES STORES LTD,16/08/2022,347.01
"Communities, Customer & Commercial Services",Sport & Leisure,Supplies & Services,Provisions,BIKOLD,01/08/2022,291.01
"Communities, Customer & Commercial Services",Sport & Leisure,Supplies & Services,Provisions,BIKOLD,01/08/2022,201.84
"Communities, Customer & Commercial Services",Sport & Leisure,Supplies & Services,Provisions,BIKOLD,01/08/2022,105.50
"Communities, Customer & Commercial Services",Sport & Leisure,Supplies & Services,Provisions,BIKOLD,01/08/2022,161.13
"Communities, Customer & Commercial Services",Sport & Leisure,Supplies & Services,Provisions,BIKOLD,19/08/2022,128.05
"Communities, Customer & Commercial Services",Sport & Leisure,Supplies & Services,Provisions,BIKOLD,19/08/2022,230.36
"Communities, Customer & Commercial Services",Sport & Leisure,Supplies & Services,Provisions,Handmade Speciality Products Ltd,10/08/2022,278.07
"Communities, Customer & Commercial Services",Sport & Leisure,Supplies & Services,Computer Hardware (Maint),Salop Cash Registers,10/08/2022,105.00
"Communities, Customer & Commercial Services",Sport & Leisure,Supplies & Services,Provisions,TROPICAL ICE,04/08/2022,873.00
"Communities, Customer & Commercial Services",Sport & Leisure,Supplies & Services,Provisions,TROPICAL ICE,04/08/2022,580.75
"Communities, Customer & Commercial Services",Sport & Leisure,Supplies & Services,Provisions,BIKOLD,05/08/2022,219.36
"Communities, Customer & Commercial Services",Sport & Leisure,Supplies & Services,Provisions,BIKOLD,05/08/2022,682.32
"Communities, Customer & Commercial Services",Sport & Leisure,Supplies & Services,Provisions,BIKOLD,16/08/2022,292.74
"Communities, Customer & Commercial Services",Sport & Leisure,Supplies & Services,Provisions,BIKOLD,16/08/2022,133.67
"Communities, Customer & Commercial Services",Sport & Leisure,Supplies & Services,Provisions,BIKOLD,16/08/2022,174.91
"Communities, Customer & Commercial Services",Sport & Leisure,Supplies & Services,Provisions,BIKOLD,31/08/2022,429.61
"Communities, Customer & Commercial Services",Sport & Leisure,Employees,Staff Training,PODS,15/08/2022,250.00
"Communities, Customer & Commercial Services",Sport & Leisure,Premises-Related Expenditure,R&M -Buildings DLO Charge,GRANVILLE CONSTRUCTION & MAINTENANCE LTD,01/08/2022,732.00
"Communities, Customer & Commercial Services",Sport & Leisure,Premises-Related Expenditure,R&M Fixed Plant Other,SAWMATIC,04/08/2022,121.75
"Communities, Customer & Commercial Services",Sport & Leisure,Supplies & Services,Equipment - Hire,SLIDERS SKATE SHOP,04/08/2022,301.00
"Communities, Customer & Commercial Services",Sport & Leisure,Supplies & Services,Items For Resale,W Workplace Solutions,30/08/2022,333.00
"Communities, Customer & Commercial Services",Sport & Leisure,Supplies & Services,Equipment - Purchase,J Fitness  Ltd,02/08/2022,199.50
"Communities, Customer & Commercial Services",Sport & Leisure,Supplies & Services,Financial Services,DEBIT FINANCE COLLECTIONS,15/08/2022,113.62
"Communities, Customer & Commercial Services",Sport & Leisure,Supplies & Services,Equipment - Purchase,J P L LTD,12/08/2022,296.76
"Communities, Customer & Commercial Services",Sport & Leisure,Supplies & Services,Equipment - Purchase,RLSS UK Shop,18/08/2022,190.00
"Communities, Customer & Commercial Services",Sport & Leisure,Supplies & Services,Equipment - Purchase,RLSS UK Shop,08/08/2022,"1,400.00"
"Communities, Customer & Commercial Services",Sport & Leisure,Supplies & Services,Equipment - Purchase,RLSS UK Shop,09/08/2022,160.00
"Communities, Customer & Commercial Services",Sport & Leisure,Employees,Staff Training,PODS,15/08/2022,250.00
"Communities, Customer & Commercial Services",Sport & Leisure,Supplies & Services,Furniture - Purchase,J P L LTD,26/08/2022,708.00
"Communities, Customer & Commercial Services",Sport & Leisure,Supplies & Services,Equipment - Purchase,Dolphin Leisure UK Ltd,04/08/2022,"2,458.33"
"Communities, Customer & Commercial Services",Sport & Leisure,Supplies & Services,Equipment - Purchase,RLSS UK Shop,24/08/2022,675.00
"Communities, Customer & Commercial Services",Sport & Leisure,Supplies & Services,Equipment - Purchase,J P L LTD,08/08/2022,110.50
"Communities, Customer & Commercial Services",Sport & Leisure,Supplies & Services,Chemicals/Cleaning Products,BRENNTAG UK LIMITED,08/08/2022,150.00
"Communities, Customer & Commercial Services",Sport & Leisure,Supplies & Services,Equipment - Purchase,SIGNS EXPRESS (TELFORD),24/08/2022,334.95
"Communities, Customer & Commercial Services",Sport & Leisure,Supplies & Services,Items For Resale,Splash About International Limited,30/08/2022,667.22
"Communities, Customer & Commercial Services",Sport & Leisure,Supplies & Services,Equipment - Purchase,RLSS UK Shop,24/08/2022,675.00
"Communities, Customer & Commercial Services",Sport & Leisure,Premises-Related Expenditure,Preventative Maintenance,SKIPS TELFORD LTD,19/08/2022,210.00
"Communities, Customer & Commercial Services",Sport & Leisure,Premises-Related Expenditure,R&M - Mechanical,Waterlogic GB LTD,25/08/2022,241.96
"Communities, Customer & Commercial Services",Sport & Leisure,Supplies & Services,Licences,L M Fitness UK Ltd,01/08/2022,"1,145.37"
"Communities, Customer & Commercial Services",Sport & Leisure,Supplies & Services,Financial Services,DEBIT FINANCE COLLECTIONS,15/08/2022,511.66
"Communities, Customer & Commercial Services",Sport & Leisure,Supplies & Services,Licences,L M Fitness UK Ltd,18/08/2022,"1,145.37"
"Communities, Customer & Commercial Services",Sport & Leisure,Supplies & Services,Equipment - Purchase,RLSS UK Shop,18/08/2022,126.00
"Communities, Customer & Commercial Services",Sport & Leisure,Supplies & Services,Equipment - Purchase,CCS MEDIA LIMITED,05/08/2022,383.62
"Communities, Customer & Commercial Services",Sport & Leisure,Supplies & Services,Financial Services,DEBIT FINANCE COLLECTIONS ,15/08/2022,218.94
"Communities, Customer & Commercial Services",Sport & Leisure,Employees,Staff Training,SHREWSBURY COLLEGES GROUP,26/08/2022,375.00
"Communities, Customer & Commercial Services",Sport & Leisure,Employees,Staff Training,PODS,15/08/2022,250.00
"Communities, Customer & Commercial Services",Sport & Leisure,Supplies & Services,Items For Resale,SWIM ENGLAND TRADING LIMITED ,08/08/2022,"2,508.50"
"Communities, Customer & Commercial Services",Sport & Leisure,Supplies & Services,Equipment - Purchase,RLSS UK Shop,24/08/2022,675.00
"Communities, Customer & Commercial Services",Sport & Leisure,Supplies & Services,Items For Resale,Splash About International Limited,12/08/2022,157.20
"Communities, Customer & Commercial Services",Sport & Leisure,Supplies & Services,Protective Clothing,CORPORATE TOGS LTD,30/08/2022,575.87
"Communities, Customer & Commercial Services",Sport & Leisure,Supplies & Services,Items For Resale,Splash About International Limited,30/08/2022,142.80
"Communities, Customer & Commercial Services",Sport & Leisure,Capital Expenditure,Payments to Contractor,Proteq (Northern) Limited,30/08/2022,"1,611.07"
"Communities, Customer & Commercial Services",Sport & Leisure,Capital Expenditure,Payments to Contractor,MSM Hire Ltd,24/08/2022,"2,389.35"
"Communities, Customer & Commercial Services",Sport & Leisure,Capital Expenditure,Other Capital Expenditure,CCS MEDIA LIMITED,16/08/2022,350.00
"Communities, Customer & Commercial Services",Sport & Leisure,Capital Expenditure,Other Capital Expenditure,Vortex Cleaning Ltd,17/08/2022,600.00
"Communities, Customer & Commercial Services",Sport & Leisure,Capital Expenditure,Other Capital Expenditure,ICTn Limited,30/08/2022,900.00
"Communities, Customer & Commercial Services",Sport & Leisure,Capital Expenditure,Other Capital Expenditure,ICTn Limited,30/08/2022,110.00
"Communities, Customer & Commercial Services",Sport & Leisure,Capital Expenditure,Other Capital Expenditure,ICTn Limited,30/08/2022,550.00
Corporate Communications,Communications & Marketing,Supplies & Services,Other Expenses,Simpleview Europe,09/08/2022,"9,192.50"
Corporate Communications,Communications & Marketing,Capital Expenditure,Other Capital Expenditure,SIGNS EXPRESS,12/08/2022,900.00
Corporate Communications,Communications & Marketing,Capital Expenditure,Other Capital Expenditure,SIGNS EXPRESS,12/08/2022,"1,280.00"
Corporate Items,Corporate Codes,Capital Financing Costs,Penalty Deductions,PYRAMID SCHOOLS  LTD,12/08/2022,"-1,885.99"
Corporate Items,Corporate Codes,Capital Financing Costs,Unitary Charge,PYRAMID SCHOOLS  LTD,12/08/2022,"931,720.82"
Corporate Items,Corporate Codes,Employees,Agency Supply Costs,Matrix SCM,08/08/2022,"30,780.48"
Corporate Items,Corporate Codes,Employees,Agency Supply Costs,Matrix SCM,19/08/2022,"45,186.48"
Corporate Items,Corporate Codes,Employees,Agency Supply Costs,Matrix SCM,11/08/2022,"35,929.84"
Education & Skills,Consultancy & Advisory Services,Premises-Related Expenditure,Hire Of Rooms,Mercure Telford Centre Hotel,02/08/2022,112.50
Education & Skills,Consultancy & Advisory Services,Supplies & Services,Training Costs - Participants Recharged,Mercure Telford Centre Hotel,02/08/2022,378.58
Education & Skills,Consultancy & Advisory Services,Supplies & Services,Training Costs - Participants Recharged,Mercure Telford Centre Hotel,02/08/2022,128.50
Education & Skills,Consultancy & Advisory Services,Employees,Training Exp�s (Facilitators),D U Consultancy LTD,17/08/2022,500.00
Education & Skills,Consultancy & Advisory Services,Employees,Training Exp�s (Facilitators),D U Consultancy LTD,02/08/2022,500.00
Education & Skills,Consultancy & Advisory Services,Premises-Related Expenditure,Hire Of Rooms,MEETING POINT TRUST LTD,17/08/2022,135.00
Education & Skills,Consultancy & Advisory Services,Premises-Related Expenditure,Hire Of Rooms,MEETING POINT TRUST LTD,17/08/2022,216.00
Education & Skills,Consultancy & Advisory Services,Employees,Training Exp�s (Facilitators),REDACTED PERSONAL INFORMATION,31/08/2022,"1,110.00"
Education & Skills,Consultancy & Advisory Services,Supplies & Services,Subscriptions,Learning Labs Ltd,02/08/2022,"5,000.00"
Education & Skills,Education & Skills,Capital Expenditure,Payments to Contractor,GRANVILLE CONSTRUCTION & MAINTENANCE LTD,03/08/2022,"8,300.00"
Education & Skills,Education & Skills,Capital Expenditure,Payments to Contractor,GRANVILLE CONSTRUCTION & MAINTENANCE LTD,03/08/2022,"41,700.00"
Education & Skills,Education & Skills,Capital Expenditure,Payments to Contractor,WELLINGTON INSULATION CO. LTD,08/08/2022,350.00
Education & Skills,Education & Skills,Capital Expenditure,Payments to Contractor,Security Wise Ltd,15/08/2022,127.00
Education & Skills,Education & Skills,Capital Expenditure,Payments to Contractor,Whittle Programmed Maintenance Ltd,26/08/2022,599.00
Education & Skills,Education & Skills,Capital Expenditure,Payments to Contractor,WELLINGTON INSULATION CO. LTD,26/08/2022,650.00
Education & Skills,Education & Skills,Capital Expenditure,Payments to Contractor,GRANVILLE CONSTRUCTION & MAINTENANCE LTD,09/08/2022,"6,103.20"
Education & Skills,Education & Skills,Capital Expenditure,Payments to Contractor,P LTD,19/08/2022,"37,888.50"
Education & Skills,Education & Skills,Capital Expenditure,Payments to Contractor,CCS MEDIA LIMITED,01/08/2022,"1,364.42"
Education & Skills,Education & Skills,Capital Expenditure,Payments to Contractor,CCS MEDIA LIMITED,01/08/2022,490.00
Education & Skills,Education & Skills,Capital Expenditure,Payments to Contractor,CCS MEDIA LIMITED,01/08/2022,"3,745.82"
Education & Skills,Education & Skills,Capital Expenditure,Payments to Contractor,CCS MEDIA LIMITED,01/08/2022,486.10
Education & Skills,Education & Skills,Capital Expenditure,Payments to Contractor,GRANVILLE CONSTRUCTION & MAINTENANCE LTD,03/08/2022,"6,103.20"
Education & Skills,Education & Skills,Capital Expenditure,Payments to Contractor,GRANVILLE CONSTRUCTION & MAINTENANCE LTD,16/08/2022,"12,000.00"
Education & Skills,Education & Skills,Capital Expenditure,Payments to Contractor,GRANVILLE CONSTRUCTION & MAINTENANCE LTD,16/08/2022,"8,000.00"
Education & Skills,Education & Skills,Capital Expenditure,Payments to Contractor,TAYLORS MECHANICAL H & P SERVICES LTD,02/08/2022,"2,790.00"
Education & Skills,Education & Skills,Capital Expenditure,Payments to Contractor,GRANVILLE CONSTRUCTION & MAINTENANCE LTD,26/08/2022,"5,640.00"
Education & Skills,Education & Skills,Capital Expenditure,Payments to Contractor,GRANVILLE CONSTRUCTION & MAINTENANCE LTD,26/08/2022,"9,906.80"
Education & Skills,Education & Skills,Capital Expenditure,Payments to Contractor,Cubic FM Ltd,26/08/2022,"30,000.00"
Education & Skills,Education & Skills,Capital Expenditure,Payments to Contractor,REDACTED PERSONAL INFORMATION,01/08/2022,400.00
Education & Skills,Education & Skills,Capital Expenditure,Payments to Contractor,W H SOLICITORS,03/08/2022,106.40
Education & Skills,Education & Skills,Capital Expenditure,Payments to Contractor,R P & J M LTD,03/08/2022,620.00
Education & Skills,Education & Skills,Capital Expenditure,Payments to Contractor,GRANVILLE CONSTRUCTION & MAINTENANCE LTD,09/08/2022,"6,103.20"
Education & Skills,Education & Skills,Capital Expenditure,Payments to Contractor,PP ELECTRICAL SERVICES (Shropshire) Ltd,18/08/2022,"28,864.00"
Education & Skills,Education & Skills,Capital Expenditure,Payments to Contractor,MERCIAN MASTERPLAN LTD,17/08/2022,113.40
Education & Skills,Education & Skills,Capital Expenditure,Payments to Contractor,A B ASSOCIATES,02/08/2022,650.00
Education & Skills,Education & Skills,Capital Expenditure,Payments to Contractor,GRANVILLE CONSTRUCTION & MAINTENANCE LTD,09/08/2022,"6,103.20"
Education & Skills,Education & Skills,Capital Expenditure,Payments to Contractor,G I S Ltd,15/08/2022,"5,885.15"
Education & Skills,Education & Skills,Capital Expenditure,Payments to Contractor,SGS United Kingdom Limited,26/08/2022,225.00
Education & Skills,Education & Skills,Capital Expenditure,Payments to Contractor,Rubik Builders Limited,18/08/2022,"25,342.47"
Education & Skills,Education & Skills,Capital Expenditure,Payments to Contractor,Rubik Builders Limited,30/08/2022,"7,602.74"
Education & Skills,Education & Skills,Capital Expenditure,Payments to Contractor,Rubik Builders Limited,30/08/2022,"17,739.73"
Education & Skills,Education & Skills,Capital Expenditure,Payments to Contractor,Red Apple Designs (KS) Limited,02/08/2022,"13,313.86"
Education & Skills,Education & Skills,Capital Expenditure,Payments to Contractor,WREKIN SELF STORAGE LTD,26/08/2022,200.00
Education & Skills,Education & Skills,Capital Expenditure,Payments to Contractor,Security Wise Ltd,26/08/2022,200.00
Education & Skills,Education & Skills,Capital Expenditure,Payments to Contractor,WREKIN REMOVALS,26/08/2022,"3,000.00"
Education & Skills,Education & Skills,Capital Expenditure,Payments to Contractor,Strive AV Ltd,05/08/2022,480.00
Education & Skills,Education & Skills,Capital Expenditure,Payments to Contractor,Read Construction Holdings Ltd,18/08/2022,"401,411.60"
Education & Skills,Education & Skills,Capital Expenditure,Payments to Contractor,Churches Fire Security Ltd,11/08/2022,"1,595.00"
Education & Skills,Education & Skills,Capital Expenditure,Payments to Contractor,Churches Fire Security Ltd,11/08/2022,594.30
Education & Skills,Education & Skills,Capital Expenditure,Payments to Contractor,WREKIN SELF STORAGE LTD,26/08/2022,480.00
Education & Skills,Education & Skills,Capital Expenditure,Payments to Contractor,SIGNS EXPRESS (TELFORD),31/08/2022,493.62
Education & Skills,Pupil Support Services,Third Party Payments,DSG - High Needs Block,THE EDUCATION DEVELOPMENT SERVICE LTD,05/08/2022,"6,330.00"
Education & Skills,Pupil Support Services,Third Party Payments,Interpreters Fees,St Dominic�s Grammar School,25/08/2022,"1,539.12"
Education & Skills,Pupil Support Services,Supplies & Services,Instructors Fees,Entrust Support Services Ltd,17/08/2022,"15,937.00"
Education & Skills,Pupil Support Services,Supplies & Services,Other Expenses,Al D�A Associates Ltd,08/08/2022,"4,270.00"
Education & Skills,Pupil Support Services,Supplies & Services,Comp Software (Purch / Hire),Charanga Ltd.,26/08/2022,520.00
Education & Skills,Pupil Support Services,Supplies & Services,Artistes Fees,REDACTED PERSONAL INFORMATION,02/08/2022,"4,355.00"
Education & Skills,Pupil Support Services,Supplies & Services,Equipment - Purchase,Southern Percussion Ltd,24/08/2022,231.67
Education & Skills,Pupil Support Services,Supplies & Services,Equipment - Purchase,Heritage Music & Caswell�s Strings,02/08/2022,959.91
Education & Skills,Pupil Support Services,Supplies & Services,Equipment - Purchase,Heritage Music & Caswell�s Strings,02/08/2022,789.30
Education & Skills,SEND (0-25),Transport-Related Expenditure,Taxi Costs,AB & CA H,08/08/2022,"2,631.50"
Education & Skills,SEND (0-25),Transport-Related Expenditure,Taxi Costs,AB & CA H,08/08/2022,"1,216.00"
Education & Skills,SEND (0-25),Transport-Related Expenditure,Taxi Costs,A2B Transports,18/08/2022,660.00
Education & Skills,SEND (0-25),Transport-Related Expenditure,Taxi Costs,A2B Transports,18/08/2022,"1,067.00"
Education & Skills,SEND (0-25),Transport-Related Expenditure,Taxi Costs,A2B Transports,18/08/2022,"1,881.00"
Education & Skills,SEND (0-25),Transport-Related Expenditure,Taxi Costs,A2B Transports,18/08/2022,"1,584.50"
Education & Skills,SEND (0-25),Transport-Related Expenditure,Taxi Costs,A2B Transports,18/08/2022,489.50
Education & Skills,SEND (0-25),Transport-Related Expenditure,Transport Contractors,Telford Taxi Hire Limited,18/08/2022,"2,850.00"
Education & Skills,SEND (0-25),Transport-Related Expenditure,Season Tickets,ARRIVA MIDLANDS LTD ,08/08/2022,286.80
Education & Skills,SEND (0-25),Transport-Related Expenditure,Taxi Costs,Telford and Wrekin Community Enterprise LTD,03/08/2022,678.30
Education & Skills,SEND (0-25),Transport-Related Expenditure,Taxi Costs, Go Carz,04/08/2022,"2,400.00"
Education & Skills,SEND (0-25),Transport-Related Expenditure,Taxi Costs,A-STAR TRANSPORT MIDLANDS LTD,16/08/2022,"4,875.00"
Education & Skills,SEND (0-25),Transport-Related Expenditure,Taxi Costs,A-STAR TRANSPORT MIDLANDS LTD,16/08/2022,"1,470.00"
Education & Skills,SEND (0-25),Transport-Related Expenditure,Taxi Costs,Go Carz,23/08/2022,812.00
Education & Skills,SEND (0-25),Transport-Related Expenditure,Taxi Costs,Go Carz,23/08/2022,240.00
Education & Skills,SEND (0-25),Transport-Related Expenditure,Taxi Costs,Go Carz,23/08/2022,"1,830.00"
Education & Skills,SEND (0-25),Transport-Related Expenditure,Taxi Costs,Telford Taxi Hire Limited,23/08/2022,"1,100.00"
Education & Skills,SEND (0-25),Transport-Related Expenditure,Taxi Costs,Telford Taxi Hire Limited,23/08/2022,"1,400.00"
Education & Skills,SEND (0-25),Transport-Related Expenditure,Taxi Costs,Telford Taxi Hire Limited,23/08/2022,"1,900.00"
Education & Skills,SEND (0-25),Transport-Related Expenditure,Taxi Costs,AB & CA H,23/08/2022,960.00
Education & Skills,SEND (0-25),Transport-Related Expenditure,Taxi Costs,Go Carz,23/08/2022,106.00
Education & Skills,SEND (0-25),Transport-Related Expenditure,Taxi Costs,Go Carz,23/08/2022,287.00
Education & Skills,SEND (0-25),Transport-Related Expenditure,Transport Contractors,Telford Taxi Hire Limited,23/08/2022,240.00
Education & Skills,SEND (0-25),Transport-Related Expenditure,Transport Contractors,Telford Taxi Hire Limited,23/08/2022,"1,650.00"
Education & Skills,SEND (0-25),Transport-Related Expenditure,Taxi Costs,Go Carz,25/08/2022,"2,280.00"
Education & Skills,SEND (0-25),Transport-Related Expenditure,Taxi Costs,Telford and Wrekin Community Enterprise LTD,25/08/2022,357.00
Education & Skills,SEND (0-25),Premises-Related Expenditure,Hire Of Rooms,Mercure Telford Centre Hotel,11/08/2022,135.00
Education & Skills,SEND (0-25),Third Party Payments,DSG - High Needs Block,ABC DAY NURSERY LTD,02/08/2022,821.69
Education & Skills,SEND (0-25),Third Party Payments,DSG - High Needs Block,EDGMOND OWLS,02/08/2022,821.69
Education & Skills,SEND (0-25),Third Party Payments,DSG - High Needs Block,HADLEY UNDER 5�S,02/08/2022,336.75
Education & Skills,SEND (0-25),Third Party Payments,DSG - High Needs Block,LILLESHALL PRE-SCHOOL PLAYGROUP ,02/08/2022,476.71
Education & Skills,SEND (0-25),Third Party Payments,DSG - High Needs Block,LITTLE CHICKS PRE-SCHOOL LTD,02/08/2022,369.86
Education & Skills,SEND (0-25),Third Party Payments,DSG - High Needs Block,LITTLE DRAGONS PRE-SCHOOL,02/08/2022,"2,465.07"
Education & Skills,SEND (0-25),Third Party Payments,DSG - High Needs Block,ABC Day Nursery Hadley ,02/08/2022,821.69
Education & Skills,SEND (0-25),Third Party Payments,DSG - High Needs Block,Aqueduct Little Learners,02/08/2022,"1,879.00"
Education & Skills,SEND (0-25),Third Party Payments,DSG - High Needs Block,Apley Village Day Nursery,02/08/2022,936.76
Education & Skills,SEND (0-25),Third Party Payments,DSG - High Needs Block,Grange Park Primary School - Community Academies Trust,02/08/2022,821.69
Education & Skills,SEND (0-25),Third Party Payments,DSG - High Needs Block,Hadley Learning Community Academy,02/08/2022,"1,843.61"
Education & Skills,SEND (0-25),Third Party Payments,DSG - High Needs Block,OAKENGATES UNITED PRE-SCHOOL,02/08/2022,821.69
Education & Skills,SEND (0-25),Third Party Payments,DSG - High Needs Block,WOODEN TOPS DAY NURSERY ,02/08/2022,437.68
Education & Skills,SEND (0-25),Third Party Payments,DSG - High Needs Block,Twiggys Day Nursery Ltd SUTTON HILL,02/08/2022,"2,465.07"
Education & Skills,SEND (0-25),Third Party Payments,DSG - High Needs Block,TWIGGYS DAY NURSERY MADELEY,02/08/2022,"1,643.38"
Education & Skills,SEND (0-25),Supplies & Services,Other Services,E BROWN LTD,02/08/2022,"2,200.00"
Education & Skills,SEND (0-25),Supplies & Services,Other Services,E BROWN LTD,02/08/2022,"2,200.00"
Education & Skills,SEND (0-25),Third Party Payments,DSG - High Needs Block,SHROPSHIRE COMMUNITY HEALTH NHS TRUST,08/08/2022,"4,000.00"
Education & Skills,SEND (0-25),Third Party Payments,DSG - High Needs Block,Bridge Therapy,15/08/2022,415.00
Education & Skills,SEND (0-25),Third Party Payments,DSG - High Needs Block,THE EDUCATION DEVELOPMENT SERVICE LTD,03/08/2022,"26,765.00"
Education & Skills,SEND (0-25),Third Party Payments,DSG - High Needs Block,Acorn Care & Education Ltd,17/08/2022,"4,976.65"
Education & Skills,SEND (0-25),Third Party Payments,DSG - High Needs Block,Keys PCE Limited,17/08/2022,"3,230.00"
Education & Skills,SEND (0-25),Third Party Payments,DSG - High Needs Block,The Rowan School,17/08/2022,"11,049.74"
Education & Skills,SEND (0-25),Third Party Payments,DSG - High Needs Block,The Rowan School,02/08/2022,"4,191.22"
Education & Skills,SEND (0-25),Third Party Payments,DSG - High Needs Block,Tettenhall College,02/08/2022,486.00
Education & Skills,SEND (0-25),Third Party Payments,DSG - High Needs Block,HRP Education,02/08/2022,980.00
Education & Skills,SEND (0-25),Third Party Payments,DSG - High Needs Block,Pine Green Academy,08/08/2022,"12,629.52"
Education & Skills,SEND (0-25),Third Party Payments,DSG - High Needs Block,STAFFORDSHIRE COUNTY COUNCIL,03/08/2022,"13,668.90"
Education & Skills,SEND (0-25),Third Party Payments,DSG - High Needs Block,STAFFORDSHIRE COUNTY COUNCIL,03/08/2022,"2,089.00"
Education & Skills,SEND (0-25),Third Party Payments,DSG - High Needs Block,STAFFORDSHIRE COUNTY COUNCIL,03/08/2022,"-3,278.15"
Education & Skills,SEND (0-25),Third Party Payments,DSG - High Needs Block,STAFFORDSHIRE COUNTY COUNCIL,03/08/2022,"31,800.00"
Education & Skills,SEND (0-25),Third Party Payments,DSG - High Needs Block,Puddleducks Under Fives Ltd,02/08/2022,979.01
Education & Skills,SEND (0-25),Third Party Payments,DSG - High Needs Block,CHIPMUNKS NURSERY,02/08/2022,"3,760.39"
Education & Skills,SEND (0-25),Third Party Payments,DSG - High Needs Block,HONEYBUNS NURSERIES,02/08/2022,984.74
Education & Skills,SEND (0-25),Third Party Payments,DSG - High Needs Block,Chipmunks Nursery OSC Ltd 2,02/08/2022,888.84
Education & Skills,SEND (0-25),Third Party Payments,DSG - High Needs Block,WOODEN TOPS DAY NURSERY ,02/08/2022,914.60
Education & Skills,SEND (0-25),Third Party Payments,DSG - High Needs Block,TORTOISE NURSERY SCHOOL,02/08/2022,"3,747.51"
Education & Skills,SEND (0-25),Employees,Agency Supply Costs,Guide Dogs for the Blind,02/08/2022,"1,626.00"
Education & Skills,SEND (0-25),Supplies & Services,Equipment - Purchase,OTICON LIMITED,08/08/2022,259.00
Education & Skills,SEND (0-25),Supplies & Services,Other Services,K Pictures Ltd,24/08/2022,139.50
Education & Skills,SEND (0-25),Supplies & Services,Other Services,Kids Ltd,15/08/2022,"2,125.00"
Education & Skills,SEND (0-25),Third Party Payments,DSG - High Needs Block,HRP Education,03/08/2022,980.00
Education & Skills,SEND (0-25),Third Party Payments,DSG - High Needs Block,HRP Education,03/08/2022,294.00
Education & Skills,SEND (0-25),Third Party Payments,DSG - High Needs Block,HRP Education,03/08/2022,735.00
Education & Skills,SEND (0-25),Third Party Payments,DSG - High Needs Block,HRP Education,03/08/2022,294.00
Education & Skills,SEND (0-25),Third Party Payments,DSG - High Needs Block,HRP Education,03/08/2022,245.00
Education & Skills,SEND (0-25),Third Party Payments,DSG - High Needs Block,HRP Education,03/08/2022,294.00
Education & Skills,SEND (0-25),Third Party Payments,DSG - High Needs Block,HRP Education,03/08/2022,980.00
Education & Skills,SEND (0-25),Third Party Payments,DSG - High Needs Block,HRP Education,03/08/2022,490.00
Education & Skills,SEND (0-25),Third Party Payments,DSG - High Needs Block,HRP Education,03/08/2022,980.00
Education & Skills,SEND (0-25),Third Party Payments,DSG - High Needs Block,HRP Education,03/08/2022,490.00
Education & Skills,SEND (0-25),Third Party Payments,DSG - High Needs Block,HRP Education,03/08/2022,294.00
Education & Skills,SEND (0-25),Third Party Payments,DSG - High Needs Block,HRP Education,03/08/2022,735.00
Education & Skills,SEND (0-25),Third Party Payments,DSG - High Needs Block,HRP Education,03/08/2022,245.00
Education & Skills,SEND (0-25),Third Party Payments,DSG - High Needs Block,HRP Education,03/08/2022,294.00
Education & Skills,SEND (0-25),Third Party Payments,DSG - High Needs Block,HRP Education,15/08/2022,735.00
Education & Skills,SEND (0-25),Third Party Payments,DSG - High Needs Block,HRP Education,15/08/2022,490.00
Education & Skills,SEND (0-25),Third Party Payments,DSG - High Needs Block,HRP Education,15/08/2022,490.00
Education & Skills,SEND (0-25),Third Party Payments,DSG - High Needs Block,HRP Education,15/08/2022,490.00
Education & Skills,SEND (0-25),Third Party Payments,DSG - High Needs Block,HRP Education,15/08/2022,294.00
Education & Skills,SEND (0-25),Third Party Payments,DSG - High Needs Block,HRP Education,15/08/2022,980.00
Education & Skills,SEND (0-25),Third Party Payments,DSG - High Needs Block,HRP Education,15/08/2022,294.00
Education & Skills,SEND (0-25),Third Party Payments,DSG - High Needs Block,HRP Education,15/08/2022,245.00
Education & Skills,SEND (0-25),Third Party Payments,DSG - High Needs Block,HRP Education,15/08/2022,490.00
Education & Skills,SEND (0-25),Supplies & Services,Health & Safety Expenses,Nottingham Rehab Ltd,18/08/2022,463.33
Education & Skills,SEND (0-25),Supplies & Services,Health & Safety Expenses,Height Adjustable Desks Com,12/08/2022,"2,147.50"
Education & Skills,SEND (0-25),Supplies & Services,Health & Safety Expenses,BERWICK CARE EQUIPMENT LTD,02/08/2022,"1,765.00"
Education & Skills,SEND (0-25),Third Party Payments,DSG - High Needs Block,RED GEORGE RURAL SKILLS PROJECT,17/08/2022,800.00
Education & Skills,SEND (0-25),Third Party Payments,DSG - High Needs Block,CROSSBAR COACHING,17/08/2022,"-3,150.00"
Education & Skills,SEND (0-25),Third Party Payments,DSG - High Needs Block,RED GEORGE RURAL SKILLS PROJECT,17/08/2022,200.00
Education & Skills,SEND (0-25),Third Party Payments,DSG - High Needs Block,CROSSBAR COACHING,02/08/2022,"6,000.00"
Education & Skills,SEND (0-25),Third Party Payments,DSG - High Needs Block,Newcastle Under-Lyme College,10/08/2022,"2,620.45"
Education & Skills,SEND (0-25),Third Party Payments,DSG - High Needs Block,SHREWSBURY COLLEGES GROUP,03/08/2022,"38,137.81"
Education & Skills,SEND (0-25),Third Party Payments,DSG - High Needs Block,CROSSBAR COACHING,02/08/2022,"3,900.00"
Education & Skills,Skills,Premises-Related Expenditure,Hire Of Rooms,MADELEY PARISH COUNCIL,26/08/2022,131.75
Education & Skills,Skills,Premises-Related Expenditure,Hire Of Rooms,Brookside Central,26/08/2022,462.00
Education & Skills,Skills,Premises-Related Expenditure,Hire Of Rooms,Brookside Central,26/08/2022,231.00
Education & Skills,Skills,Premises-Related Expenditure,Hire Of Rooms,Brookside Central,26/08/2022,120.00
Education & Skills,Skills,Premises-Related Expenditure,Hire Of Rooms,Brookside Central,26/08/2022,258.00
Education & Skills,Skills,Premises-Related Expenditure,Hire Of Rooms,HADLEY & LEEGOMERY PARISH COUNCIL,26/08/2022,375.00
Education & Skills,Skills,Premises-Related Expenditure,Hire Of Rooms,HADLEY & LEEGOMERY PARISH COUNCIL,26/08/2022,156.25
Education & Skills,Skills,Premises-Related Expenditure,Hire Of Rooms,HADLEY & LEEGOMERY PARISH COUNCIL,26/08/2022,359.37
Education & Skills,Skills,Premises-Related Expenditure,Hire Of Rooms,Brookside Central,25/08/2022,198.00
Education & Skills,Skills,Premises-Related Expenditure,Hire Of Rooms,Brookside Central,25/08/2022,132.00
Education & Skills,Skills,Premises-Related Expenditure,Hire Of Rooms,THE SMALL WOODS ASSOCIATION,25/08/2022,175.00
Education & Skills,Skills,Premises-Related Expenditure,Hire Of Rooms,Brookside Central,25/08/2022,264.00
Education & Skills,Skills,Premises-Related Expenditure,Hire Of Rooms,Dawley Social Club,25/08/2022,550.00
Education & Skills,Skills,Premises-Related Expenditure,Hire Of Rooms,The Leegate Centre CIC,25/08/2022,120.00
Education & Skills,Skills,Premises-Related Expenditure,Hire Of Rooms,DONNINGTON PARTNERSHIP,25/08/2022,140.25
Education & Skills,Skills,Supplies & Services,Consumable Stores,MHFA England CIC,26/08/2022,130.00
Education & Skills,Skills,Supplies & Services,Subscriptions,Holex,25/08/2022,470.00
Education & Skills,Skills,Supplies & Services,Exam Fees,CITY & GUILDS,25/08/2022,472.20
Education & Skills,Skills,Supplies & Services,Exam Fees,OPEN COLLEGE NETWORK WEST MIDLANDS REGION,25/08/2022,399.00
Education & Skills,Skills,Third Party Payments,Childminders,CHILDCARE SOS,25/08/2022,344.00
Education & Skills,Skills,Third Party Payments,Childminders,CHILDCARE SOS,25/08/2022,160.00
Education & Skills,Skills,Employees,Course Fees,QUALSAFE.COM,25/08/2022,121.00
Education & Skills,Skills,Employees,Course Fees,QUALSAFE.COM,11/08/2022,338.68
Education & Skills,Skills,Premises-Related Expenditure,Hire Of Rooms,Dawley Social Club,25/08/2022,255.00
Education & Skills,Skills,Premises-Related Expenditure,Hire Of Rooms,The Leegate Centre CIC,25/08/2022,"2,500.00"
Education & Skills,Skills,Supplies & Services,Mobile Phones,EE LTD EQUIPMENT,04/08/2022,142.00
Education & Skills,Skills,Supplies & Services,Mobile Phones,EE LTD EQUIPMENT,04/08/2022,142.00
Education & Skills,Skills,Premises-Related Expenditure,Hire Of Rooms,TELFORD INTERNATIONAL CENTRE,25/08/2022,567.50
Education & Skills,Skills,Premises-Related Expenditure,Hire Of Rooms,TELFORD INTERNATIONAL CENTRE,25/08/2022,"2,553.75"
Finance & Human Resources,Finance,Supplies & Services,Other Services,NORTHERN HOUSING CONSORTIUM LTD,24/08/2022,"1,275.00"
Finance & Human Resources,Finance,Supplies & Services,Other Services,ALLPAY.NET LIMITED,15/08/2022,"1,826.84"
Finance & Human Resources,Finance,Supplies & Services,Other Services,ALLPAY.NET LIMITED,15/08/2022,238.08
Finance & Human Resources,"Finance Manager (Business, Education & Care)",Employees,Professional Subs,C I P F A,26/08/2022,343.50
Finance & Human Resources,Finance Manager (Corporate & Capital),Supplies & Services,Bank Charges,TrueCommerce (Oldham)  Limited,24/08/2022,909.25
Finance & Human Resources,Human Resources,Employees,Criminal Records Bureau Checks,Capita Recruitment Vetting Service,09/08/2022,849.90
Finance & Human Resources,Human Resources,Employees,Criminal Records Bureau Checks,Capita Recruitment Vetting Service,09/08/2022,234.00
Finance & Human Resources,Human Resources,Employees,Criminal Records Bureau Checks,DISCLOSURE & BARRING SERVICE,11/08/2022,"11,244.00"
Finance & Human Resources,Human Resources,Employees,Recruitment Advertising,HEMMING GROUP LTD,30/08/2022,"5,500.00"
Finance & Human Resources,Human Resources,Supplies & Services,Subscriptions,AT Work Partnership Ltd,01/08/2022,219.00
Finance & Human Resources,Human Resources,Supplies & Services,Doctors Fees,Ensure Health LTD,30/08/2022,280.00
Finance & Human Resources,Human Resources,Supplies & Services,Doctors Fees,Ensure Health LTD,30/08/2022,350.00
Finance & Human Resources,Revenues,Supplies & Services,Printing - Other,MARKETING AT THE MILL,01/08/2022,120.00
Finance & Human Resources,Revenues,Supplies & Services,Printing - Other,TUDOR PRINT & SIGNS,01/08/2022,171.00
Finance & Human Resources,Revenues,Supplies & Services,Stationery,PREMIER PAPER GROUP LTD,01/08/2022,266.29
Finance & Human Resources,Revenues,Supplies & Services,Printing - Other,TUDOR PRINT & SIGNS,01/08/2022,345.00
Finance & Human Resources,Revenues,Supplies & Services,Printing - Other,MARKETING AT THE MILL,01/08/2022,225.00
Finance & Human Resources,Revenues,Supplies & Services,Printing - Other,LEXON GB LTD,16/08/2022,195.55
Finance & Human Resources,Revenues,Supplies & Services,Printing - Other,MARKETING AT THE MILL,18/08/2022,165.00
Finance & Human Resources,Revenues,Supplies & Services,Stationery,PREMIER PAPER GROUP LTD,10/08/2022,108.08
Finance & Human Resources,Revenues,Supplies & Services,Stationery,Antalis Limited,17/08/2022,379.00
Finance & Human Resources,Revenues,Supplies & Services,Stationery,PREMIER PAPER GROUP LTD,17/08/2022,108.08
Finance & Human Resources,Revenues,Supplies & Services,Stationery,PREMIER PAPER GROUP LTD,17/08/2022,116.80
Finance & Human Resources,Revenues,Supplies & Services,Printing - Other,LEXON GB LTD,16/08/2022,692.44
Finance & Human Resources,Revenues,Supplies & Services,Printing - Other,Prontaprint - Stratford,08/08/2022,118.00
Finance & Human Resources,Revenues,Supplies & Services,Printing - Other,Prontaprint - Stratford,08/08/2022,225.00
Finance & Human Resources,Revenues,Supplies & Services,Printing - Other,MailSolutions,05/08/2022,597.80
Finance & Human Resources,Revenues,Supplies & Services,Printing - Other,Prontaprint - Stratford,01/08/2022,368.00
Finance & Human Resources,Revenues,Supplies & Services,Postages,FREELANCE BUSINESS ASSOCIATES,16/08/2022,378.00
Finance & Human Resources,Revenues,Supplies & Services,Postages,ROYAL MAIL GROUP PLC ,16/08/2022,170.43
Finance & Human Resources,Revenues,Supplies & Services,Postages,ROYAL MAIL GROUP PLC,23/08/2022,"2,175.22"
Finance & Human Resources,Revenues,Supplies & Services,Postages,G FORCE EXPRESS PARCELS LTD,16/08/2022,133.07
Finance & Human Resources,Revenues,Supplies & Services,Postages,ROYAL MAIL GROUP PLC ,16/08/2022,"5,241.08"
Finance & Human Resources,Revenues,Supplies & Services,Franking Machine Service,FRANCOTYP-POSTALIA LTD ,26/08/2022,"1,000.00"
Finance & Human Resources,Revenues,Supplies & Services,Postages,ROYAL MAIL GROUP PLC ,04/08/2022,"1,762.48"
Finance & Human Resources,Revenues,Supplies & Services,Postages,ROYAL MAIL GROUP PLC ,16/08/2022,"2,288.22"
Finance & Human Resources,Revenues,Supplies & Services,Energy Rebate Payment,Energy Rebate Payments,01/08/2022,150.00
Finance & Human Resources,Revenues,Supplies & Services,Energy Rebate Payment,Energy Rebate Payments,10/08/2022,150.00
Finance & Human Resources,Revenues,Supplies & Services,Energy Rebate Payment,Energy Rebate Payments,10/08/2022,150.00
Finance & Human Resources,Revenues,Supplies & Services,Energy Rebate Payment,Energy Rebate Payments,19/08/2022,150.00
Finance & Human Resources,Revenues,Supplies & Services,Energy Rebate Payment,Energy Rebate Payments,17/08/2022,150.00
Finance & Human Resources,Revenues,Supplies & Services,Energy Rebate Payment,Energy Rebate Payments,16/08/2022,150.00
Finance & Human Resources,Revenues,Supplies & Services,Energy Rebate Payment,Energy Rebate Payments,31/08/2022,150.00
Finance & Human Resources,Revenues,Employees,Off site processing,NEC Software Solutions UK Ltd,16/08/2022,"5,724.68"
Finance & Human Resources,Revenues,Supplies & Services,Printing - Other,Financial Data Management plc,16/08/2022,718.61
Finance & Human Resources,Revenues,Supplies & Services,Printing - Other,Financial Data Management plc,16/08/2022,194.35
Finance & Human Resources,Revenues,Supplies & Services,Printing - Other,Financial Data Management plc,16/08/2022,506.92
Finance & Human Resources,Revenues,Supplies & Services,Printing - Other,Financial Data Management plc,16/08/2022,199.85
Finance & Human Resources,Revenues,Supplies & Services,Legal Expenses/Advice,Paragon Costs Solutions,16/08/2022,250.00
Finance & Human Resources,Revenues,Supplies & Services,Postages,Financial Data Management plc,16/08/2022,"1,016.08"
Finance & Human Resources,Revenues,Supplies & Services,Postages,Financial Data Management plc,16/08/2022,195.64
Finance & Human Resources,Revenues,Supplies & Services,Postages,Financial Data Management plc,16/08/2022,480.93
Finance & Human Resources,Revenues,Supplies & Services,Postages,Financial Data Management plc,22/08/2022,561.23
Finance & Human Resources,Revenues,Supplies & Services,Postages,Financial Data Management plc,22/08/2022,271.91
Finance & Human Resources,Revenues,Supplies & Services,Postages,Financial Data Management plc,02/08/2022,560.60
Finance & Human Resources,Revenues,Supplies & Services,Postages,Financial Data Management plc,02/08/2022,299.32
Finance & Human Resources,Revenues,Supplies & Services,Postages,Financial Data Management plc,23/08/2022,824.44
Finance & Human Resources,Revenues,Supplies & Services,Postages,Financial Data Management plc,23/08/2022,314.30
Finance & Human Resources,Revenues,Supplies & Services,Postages,Financial Data Management plc,16/08/2022,354.54
Health & Wellbeing,Consultant in Public Health,Employees,Staff Training,THE HAVEN WOLVERHAMPTON,10/08/2022,"19,979.50"
Health & Wellbeing,Consultant in Public Health,Supplies & Services,Sub Contractors,COURT STREET MEDICAL PRACTICE,18/08/2022,560.00
Health & Wellbeing,Consultant in Public Health,Supplies & Services,Sub Contractors,CHARLTON MEDICAL CENTRE,18/08/2022,"2,500.00"
Health & Wellbeing,Consultant in Public Health,Supplies & Services,Sub Contractors,LINDEN HALL SURGERY,18/08/2022,"1,400.00"
Health & Wellbeing,Consultant in Public Health,Supplies & Services,Sub Contractors,TELDOC Partnership,18/08/2022,"1,060.00"
Health & Wellbeing,Consultant in Public Health,Supplies & Services,Sub Contractors,WOODSIDE MEDICAL PRACTICE,18/08/2022,"1,540.00"
Health & Wellbeing,Consultant in Public Health,Supplies & Services,Sub Contractors,WELLINGTON ROAD SURGERY,18/08/2022,340.00
Health & Wellbeing,Consultant in Public Health,Supplies & Services,Service Contracts,Frontier Medical Group,02/08/2022,-395.00
Health & Wellbeing,Consultant in Public Health,Supplies & Services,Sub Contractors,The Royal Wolverhampton NHS Trust,18/08/2022,315.00
Health & Wellbeing,Consultant in Public Health,Supplies & Services,Sub Contractors,Central & North West London NHS Foundation Trust,31/08/2022,429.06
Health & Wellbeing,Consultant in Public Health,Supplies & Services,Sub Contractors,Central & North West London NHS Foundation Trust,31/08/2022,150.57
Health & Wellbeing,Consultant in Public Health,Supplies & Services,Sub Contractors,York and Scarborough Teaching Hospitals NHS Foundation Trust,30/08/2022,123.00
Health & Wellbeing,Consultant in Public Health,Supplies & Services,Sub Contractors,Buckinghamshire Healthcare NHS Trust,09/08/2022,131.00
Health & Wellbeing,Consultant in Public Health,Supplies & Services,Sub Contractors,Central Health Solutions Ltd,09/08/2022,"2,288.00"
Health & Wellbeing,Consultant in Public Health,Supplies & Services,Sub Contractors,Central Health Solutions Ltd,09/08/2022,"1,632.05"
Health & Wellbeing,Consultant in Public Health,Supplies & Services,Sub Contractors,Central Health Solutions Ltd,09/08/2022,"4,751.50"
Health & Wellbeing,Consultant in Public Health,Supplies & Services,Other Grants (Expenses),TELFORD MIND,24/08/2022,"5,000.00"
Health & Wellbeing,Consultant in Public Health,Premises-Related Expenditure,Other,SHREWSBURY & TELFORD HOSPITAL NHS TRUST,19/08/2022,"6,224.29"
Health & Wellbeing,Health Improvement,Supplies & Services,Other Grants (Expenses),Nasara Telford Group,03/08/2022,"-3,061.00"
Health & Wellbeing,Health Improvement,Supplies & Services,Mobile Phones,EE LTD EQUIPMENT ,04/08/2022,142.00
Health & Wellbeing,Health Improvement,Premises-Related Expenditure,Hire Of Rooms,Telford and Wrekin Interfaith Council,01/08/2022,180.00
Health & Wellbeing,Health Improvement,Premises-Related Expenditure,Hire Of Rooms,DONNINGTON PARTNERSHIP,16/08/2022,196.00
Health & Wellbeing,Health Improvement,Supplies & Services,Comp Software (Purch / Hire),NHS Midlands and Lancashire CSU,31/08/2022,"11,287.50"
Health & Wellbeing,Health Improvement,Supplies & Services,Other Grants (Expenses),MEETING POINT TRUST LTD,04/08/2022,"3,837.62"
Health & Wellbeing,Health Improvement,Supplies & Services,Other Grants (Expenses),Wrekin Forest School CIC,17/08/2022,"6,562.50"
Health & Wellbeing,Health Improvement,Supplies & Services,Other Grants (Expenses),Lawley Primary School Fund,17/08/2022,"5,600.00"
Health & Wellbeing,Health Improvement,Supplies & Services,Other Grants (Expenses),School of Coding Ltd,03/08/2022,"23,034.00"
Health & Wellbeing,Health Improvement,Supplies & Services,Security Services,BUSINESS WATCH GUARDING LIMITED,26/08/2022,453.96
Health & Wellbeing,Health Improvement,Supplies & Services,Security Services,BUSINESS WATCH GUARDING LIMITED,26/08/2022,349.02
Health & Wellbeing,Health Improvement,Supplies & Services,Security Services,BUSINESS WATCH GUARDING LIMITED,26/08/2022,453.96
Health & Wellbeing,Health Improvement,Supplies & Services,Security Services,BUSINESS WATCH GUARDING LIMITED,26/08/2022,419.04
Health & Wellbeing,Health Improvement,Supplies & Services,Security Services,BUSINESS WATCH GUARDING LIMITED,26/08/2022,436.50
Health & Wellbeing,Health Improvement,Supplies & Services,Libraries Book Fund,P LTD,18/08/2022,244.40
Health & Wellbeing,Health Improvement,Supplies & Services,Stationery,SPECTRUM PLASTICS,22/08/2022,"1,233.00"
Health & Wellbeing,Health Improvement,Supplies & Services,Libraries Book Fund,Bolinda UK Ltd,10/08/2022,808.95
Health & Wellbeing,Health Improvement,Supplies & Services,Libraries Book Fund,P LTD,10/08/2022,214.75
Health & Wellbeing,Health Improvement,Supplies & Services,Libraries Book Fund,P LTD,17/08/2022,118.90
Health & Wellbeing,Health Improvement,Supplies & Services,Libraries Book Fund,P LTD,17/08/2022,251.30
Health & Wellbeing,Health Improvement,Supplies & Services,Libraries Book Fund,P LTD,17/08/2022,129.95
Health & Wellbeing,Health Improvement,Supplies & Services,Libraries Book Fund,ULVERSCROFT LARGE PRINT BOOKS LIMITED,17/08/2022,251.34
Health & Wellbeing,Health Improvement,Supplies & Services,Libraries Book Fund,D.P.,12/08/2022,110.00
Health & Wellbeing,Health Improvement,Supplies & Services,Libraries Book Fund,P LTD,18/08/2022,168.10
Health & Wellbeing,Health Improvement,Supplies & Services,Licences,P LTD,18/08/2022,427.20
Health & Wellbeing,Health Improvement,Supplies & Services,Libraries Book Fund,P LTD,26/08/2022,184.95
Health & Wellbeing,Health Improvement,Supplies & Services,Libraries Book Fund,P LTD,26/08/2022,450.70
Health & Wellbeing,Health Improvement,Supplies & Services,Libraries Book Fund,ULVERSCROFT LARGE PRINT BOOKS LIMITED,30/08/2022,251.34
Health & Wellbeing,Health Improvement,Supplies & Services,Libraries Book Fund,ULVERSCROFT LARGE PRINT BOOKS LIMITED,30/08/2022,251.34
Health & Wellbeing,Health Improvement,Supplies & Services,Libraries Book Fund,ULVERSCROFT LARGE PRINT BOOKS LIMITED,30/08/2022,537.95
Health & Wellbeing,Health Improvement,Supplies & Services,Libraries Book Fund,ULVERSCROFT LARGE PRINT BOOKS LIMITED,30/08/2022,313.85
Health & Wellbeing,Health Improvement,Supplies & Services,Libraries Book Fund,ULVERSCROFT LARGE PRINT BOOKS LIMITED,30/08/2022,284.25
Health & Wellbeing,Health Improvement,Supplies & Services,Libraries Book Fund,Bolinda UK Ltd,30/08/2022,269.65
Health & Wellbeing,Health Improvement,Supplies & Services,Licences,ULVERSCROFT LARGE PRINT BOOKS LIMITED,17/08/2022,251.34
Health & Wellbeing,Health Improvement,Supplies & Services,Subscriptions,WEST MIDLANDS READERS NETWORK,16/08/2022,250.00
Health & Wellbeing,Health Improvement,Supplies & Services,Computer Software (Maint),AXIELL LTD,26/08/2022,"4,750.53"
Health & Wellbeing,Health Protection,Supplies & Services,Consultancy,Vivid Resourcing,16/08/2022,"1,967.35"
Health & Wellbeing,Health Protection,Employees,Cont Prof Development,ITS Training (UK) Limited,11/08/2022,200.00
Health & Wellbeing,Health Protection,Supplies & Services,Other Services,ALS ENVIRONMENTAL LIMITED,01/08/2022,459.10
Health & Wellbeing,Health Protection,Supplies & Services,Other Services,ALS ENVIRONMENTAL LIMITED,01/08/2022,459.10
Health & Wellbeing,Health Protection,Supplies & Services,Other Services,ALS ENVIRONMENTAL LIMITED,01/08/2022,296.48
Health & Wellbeing,Health Protection,Supplies & Services,Other Services,ALS ENVIRONMENTAL LIMITED,02/08/2022,207.06
Health & Wellbeing,Health Protection,Supplies & Services,Other Services,ALS ENVIRONMENTAL LIMITED,09/08/2022,125.00
Health & Wellbeing,Health Protection,Supplies & Services,Other Services,ALS ENVIRONMENTAL LIMITED,09/08/2022,559.10
Health & Wellbeing,Health Protection,Supplies & Services,Other Services,ALS ENVIRONMENTAL LIMITED,09/08/2022,459.10
Health & Wellbeing,Health Protection,Supplies & Services,Other Services,ALS ENVIRONMENTAL LIMITED,09/08/2022,152.90
Health & Wellbeing,Health Protection,Supplies & Services,Other Services,ALS ENVIRONMENTAL LIMITED,05/08/2022,125.00
Health & Wellbeing,Health Protection,Supplies & Services,Consultancy,Vivid Resourcing,05/08/2022,"2,011.56"
"Housing, Employment & Infrastructure",Inward Investment & Business Support,Supplies & Services,Marketing & Publicity,YARRINGTON LIMITED,22/08/2022,970.00
"Housing, Employment & Infrastructure",Inward Investment & Business Support,Supplies & Services,Other Grants (Expenses),Good2Great Ltd,30/08/2022,"5,796.85"
"Housing, Employment & Infrastructure",Inward Investment & Business Support,Supplies & Services,Consultancy,WEST MIDLANDS COMBINED AUTHORITY,30/08/2022,"30,000.00"
"Housing, Employment & Infrastructure",Inward Investment & Business Support,Supplies & Services,Marketing & Publicity,R F PHOTOGRAPHY,09/08/2022,200.00
"Housing, Employment & Infrastructure",Inward Investment & Business Support,Capital Expenditure,Other Capital Expenditure,CGR Business Solutions Limited,05/08/2022,"1,312.50"
"Housing, Employment & Infrastructure",Inward Investment & Business Support,Capital Expenditure,Other Capital Expenditure,SIGNS EXPRESS (TELFORD),22/08/2022,586.00
"Housing, Employment & Infrastructure",Inward Investment & Business Support,Capital Expenditure,Payments to Contractor,Welch and Phillips Building Contractors Ltd,22/08/2022,"26,204.46"
"Housing, Employment & Infrastructure",Local Plan,Supplies & Services,Research Surveys,The Environment Partnership (TEP) Limited,11/08/2022,"8,437.50"
"Housing, Employment & Infrastructure",Private Sector Housing & Enforcement,Employees,Agency Supply Costs,The Oyster Partnership Ltd,19/08/2022,551.88
"Housing, Employment & Infrastructure",Private Sector Housing & Enforcement,Employees,Agency Supply Costs,The Oyster Partnership Ltd,19/08/2022,528.12
"Housing, Employment & Infrastructure",Private Sector Housing & Enforcement,Employees,Agency Supply Costs,The Oyster Partnership Ltd,19/08/2022,519.12
"Housing, Employment & Infrastructure",Private Sector Housing & Enforcement,Employees,Agency Supply Costs,The Oyster Partnership Ltd,19/08/2022,405.00
"Housing, Employment & Infrastructure",Private Sector Housing & Enforcement,Employees,Agency Supply Costs,The Oyster Partnership Ltd,19/08/2022,"1,190.10"
"Housing, Employment & Infrastructure",Private Sector Housing & Enforcement,Employees,Agency Supply Costs,The Oyster Partnership Ltd,19/08/2022,"1,210.65"
"Housing, Employment & Infrastructure",Private Sector Housing & Enforcement,Employees,Agency Supply Costs,The Oyster Partnership Ltd,19/08/2022,"1,174.95"
"Housing, Employment & Infrastructure",Private Sector Housing & Enforcement,Employees,Agency Supply Costs,The Oyster Partnership Ltd,19/08/2022,"1,174.95"
"Housing, Employment & Infrastructure",Private Sector Housing & Enforcement,Employees,Agency Supply Costs,The Oyster Partnership Ltd,19/08/2022,"1,210.65"
"Housing, Employment & Infrastructure",Private Sector Housing & Enforcement,Employees,Agency Supply Costs,The Oyster Partnership Ltd,19/08/2022,"1,174.95"
"Housing, Employment & Infrastructure",Private Sector Housing & Enforcement,Employees,Agency Supply Costs,The Oyster Partnership Ltd,19/08/2022,"1,190.10"
"Housing, Employment & Infrastructure",Private Sector Housing & Enforcement,Employees,Agency Supply Costs,The Oyster Partnership Ltd,19/08/2022,"1,220.70"
"Housing, Employment & Infrastructure",Private Sector Housing & Enforcement,Employees,Agency Supply Costs,The Oyster Partnership Ltd,19/08/2022,"1,174.95"
"Housing, Employment & Infrastructure",Private Sector Housing & Enforcement,Employees,Agency Supply Costs,The Oyster Partnership Ltd,19/08/2022,"1,220.70"
"Housing, Employment & Infrastructure",Private Sector Housing & Enforcement,Employees,Agency Supply Costs,The Oyster Partnership Ltd,19/08/2022,"1,220.70"
"Housing, Employment & Infrastructure",Private Sector Housing & Enforcement,Employees,Agency Supply Costs,The Oyster Partnership Ltd,19/08/2022,216.00
"Housing, Employment & Infrastructure",Private Sector Housing & Enforcement,Employees,Agency Supply Costs,The Oyster Partnership Ltd,19/08/2022,"1,190.10"
"Housing, Employment & Infrastructure",Private Sector Housing & Enforcement,Employees,Agency Supply Costs,The Oyster Partnership Ltd,19/08/2022,996.91
"Housing, Employment & Infrastructure",Private Sector Housing & Enforcement,Employees,Agency Supply Costs,The Oyster Partnership Ltd,19/08/2022,726.39
"Housing, Employment & Infrastructure",Private Sector Housing & Enforcement,Employees,Agency Supply Costs,The Oyster Partnership Ltd,19/08/2022,704.97
"Housing, Employment & Infrastructure",Private Sector Housing & Enforcement,Employees,Agency Supply Costs,The Oyster Partnership Ltd,19/08/2022,"1,656.00"
"Housing, Employment & Infrastructure",Private Sector Housing & Enforcement,Employees,Agency Supply Costs,The Oyster Partnership Ltd,19/08/2022,"1,190.10"
"Housing, Employment & Infrastructure",Private Sector Housing & Enforcement,Employees,Agency Supply Costs,The Oyster Partnership Ltd,19/08/2022,"1,241.05"
"Housing, Employment & Infrastructure",Private Sector Housing & Enforcement,Employees,Agency Supply Costs,The Oyster Partnership Ltd,19/08/2022,"1,210.65"
"Housing, Employment & Infrastructure",Private Sector Housing & Enforcement,Employees,Agency Supply Costs,The Oyster Partnership Ltd,19/08/2022,"1,174.95"
"Housing, Employment & Infrastructure",Private Sector Housing & Enforcement,Employees,Agency Supply Costs,The Oyster Partnership Ltd,19/08/2022,"1,241.05"
"Housing, Employment & Infrastructure",Private Sector Housing & Enforcement,Employees,Agency Supply Costs,The Oyster Partnership Ltd,19/08/2022,243.00
"Housing, Employment & Infrastructure",Private Sector Housing & Enforcement,Employees,Agency Supply Costs,The Oyster Partnership Ltd,19/08/2022,497.88
"Housing, Employment & Infrastructure",Private Sector Housing & Enforcement,Employees,Agency Supply Costs,The Oyster Partnership Ltd,19/08/2022,"1,190.10"
"Housing, Employment & Infrastructure",Private Sector Housing & Enforcement,Employees,Agency Supply Costs,The Oyster Partnership Ltd,19/08/2022,"1,241.05"
"Housing, Employment & Infrastructure",Private Sector Housing & Enforcement,Employees,Agency Supply Costs,The Oyster Partnership Ltd,19/08/2022,497.88
"Housing, Employment & Infrastructure",Private Sector Housing & Enforcement,Employees,Agency Supply Costs,The Oyster Partnership Ltd,19/08/2022,"1,281.74"
"Housing, Employment & Infrastructure",Private Sector Housing & Enforcement,Employees,Agency Supply Costs,The Oyster Partnership Ltd,19/08/2022,"1,190.10"
"Housing, Employment & Infrastructure",Private Sector Housing & Enforcement,Employees,Agency Supply Costs,The Oyster Partnership Ltd,19/08/2022,"1,190.10"
"Housing, Employment & Infrastructure",Private Sector Housing & Enforcement,Employees,Agency Supply Costs,The Oyster Partnership Ltd,19/08/2022,"1,190.10"
"Housing, Employment & Infrastructure",Private Sector Housing & Enforcement,Employees,Agency Supply Costs,The Oyster Partnership Ltd,19/08/2022,"1,230.87"
"Housing, Employment & Infrastructure",Private Sector Housing & Enforcement,Employees,Agency Supply Costs,The Oyster Partnership Ltd,24/08/2022,"1,190.10"
"Housing, Employment & Infrastructure",Private Sector Housing & Enforcement,Employees,Agency Supply Costs,The Oyster Partnership Ltd,24/08/2022,"1,241.05"
"Housing, Employment & Infrastructure",Private Sector Housing & Enforcement,Employees,Agency Supply Costs,The Oyster Partnership Ltd,24/08/2022,968.52
"Housing, Employment & Infrastructure",Private Sector Housing & Enforcement,Employees,Agency Supply Costs,The Oyster Partnership Ltd,24/08/2022,"1,174.95"
"Housing, Employment & Infrastructure",Private Sector Housing & Enforcement,Employees,Agency Supply Costs,The Oyster Partnership Ltd,24/08/2022,438.12
"Housing, Employment & Infrastructure",Private Sector Housing & Enforcement,Employees,Agency Supply Costs,The Oyster Partnership Ltd,19/08/2022,"1,190.10"
"Housing, Employment & Infrastructure",Private Sector Housing & Enforcement,Employees,Agency Supply Costs,The Oyster Partnership Ltd,25/08/2022,"1,190.10"
"Housing, Employment & Infrastructure",Private Sector Housing & Enforcement,Employees,Agency Supply Costs,The Oyster Partnership Ltd,25/08/2022,"1,241.05"
"Housing, Employment & Infrastructure",Private Sector Housing & Enforcement,Supplies & Services,Print Room Recharges,ITS Training (UK) Limited,26/08/2022,200.00
"Housing, Employment & Infrastructure",Private Sector Housing & Enforcement,Supplies & Services,Comp Software (Purch / Hire),Parity Projects Ltd,18/08/2022,"1,500.00"
"Housing, Employment & Infrastructure",Private Sector Housing & Enforcement,Supplies & Services,Comp Software (Purch / Hire),Parity Projects Ltd,18/08/2022,"2,500.00"
"Housing, Employment & Infrastructure",Private Sector Housing & Enforcement,Supplies & Services,Consultancy,PERFECT CIRCLE JV LTD,10/08/2022,"96,645.20"
"Housing, Employment & Infrastructure",Private Sector Housing & Enforcement,Supplies & Services,Consultancy,PERFECT CIRCLE JV LTD,09/08/2022,"94,844.18"
"Housing, Employment & Infrastructure",Private Sector Housing & Enforcement,Capital Expenditure,Expenditure on loans & other financial assistance,Surefire Management Services Ltd,16/08/2022,"46,094.64"
"Housing, Employment & Infrastructure",Private Sector Housing & Enforcement,Capital Expenditure,Expenditure on loans & other financial assistance,Surefire Management Services Ltd,09/08/2022,"112,136.71"
Neighbourhood & Enforcement Services,"Highways, Engineering & Project Delivery",Supplies & Services,Materials,Compass Minerals UK Ltd,01/08/2022,793.75
Neighbourhood & Enforcement Services,"Highways, Engineering & Project Delivery",Supplies & Services,Materials,Compass Minerals UK Ltd,30/08/2022,"16,728.68"
Neighbourhood & Enforcement Services,"Highways, Engineering & Project Delivery",Supplies & Services,Materials,Compass Minerals UK Ltd,30/08/2022,"28,655.22"
Neighbourhood & Enforcement Services,"Highways, Engineering & Project Delivery",Supplies & Services,Materials,Compass Minerals UK Ltd,22/08/2022,"9,598.34"
Neighbourhood & Enforcement Services,"Highways, Engineering & Project Delivery",Third Party Payments,Highways Contract - BBLP,Balfour Beatty Civils Limited,23/08/2022,"1,633,775.08"
Neighbourhood & Enforcement Services,"Highways, Engineering & Project Delivery",Premises-Related Expenditure,Electricity,West Mercia Energy ,25/08/2022,"45,947.68"
Neighbourhood & Enforcement Services,"Highways, Engineering & Project Delivery",Premises-Related Expenditure,Electricity,West Mercia Energy ,25/08/2022,335.17
Neighbourhood & Enforcement Services,"Highways, Engineering & Project Delivery",Premises-Related Expenditure,Electricity,West Mercia Energy ,25/08/2022,105.51
Neighbourhood & Enforcement Services,"Highways, Engineering & Project Delivery",Premises-Related Expenditure,Electricity,West Mercia Energy ,25/08/2022,121.67
Neighbourhood & Enforcement Services,"Highways, Engineering & Project Delivery",Premises-Related Expenditure,Electricity,West Mercia Energy ,25/08/2022,488.05
Neighbourhood & Enforcement Services,"Highways, Engineering & Project Delivery",Third Party Payments,Private Contractors,Vortex Cleaning Ltd,05/08/2022,"1,200.00"
Neighbourhood & Enforcement Services,"Highways, Engineering & Project Delivery",Third Party Payments,Private Contractors,Amey OW Ltd,30/08/2022,"1,412.18"
Neighbourhood & Enforcement Services,"Highways, Engineering & Project Delivery",Supplies & Services,Protective Clothing,ARCO LIMITED,11/08/2022,218.35
Neighbourhood & Enforcement Services,"Highways, Engineering & Project Delivery",Supplies & Services,Equipment - Purchase,YORK SURVEY SUPPLY CENTRE,12/08/2022,102.30
Neighbourhood & Enforcement Services,"Highways, Engineering & Project Delivery",Supplies & Services,Other Grants (Expenses),Hydro-Logic Services (International) Ltd,19/08/2022,297.50
Neighbourhood & Enforcement Services,"Highways, Engineering & Project Delivery",Supplies & Services,Other Grants (Expenses),Hydro-Logic Services (International) Ltd,19/08/2022,429.75
Neighbourhood & Enforcement Services,"Highways, Engineering & Project Delivery",Supplies & Services,Licences,INNOVYZE LTD,01/08/2022,"6,098.80"
Neighbourhood & Enforcement Services,"Highways, Engineering & Project Delivery",Supplies & Services,Consultancy,W Aspen,22/08/2022,"3,322.88"
Neighbourhood & Enforcement Services,"Highways, Engineering & Project Delivery",Supplies & Services,Consultancy,W Aspen,22/08/2022,"5,326.08"
Neighbourhood & Enforcement Services,"Highways, Engineering & Project Delivery",Supplies & Services,Consultancy,W Aspen,22/08/2022,"3,076.32"
Neighbourhood & Enforcement Services,"Highways, Engineering & Project Delivery",Supplies & Services,Consultancy,W Aspen,22/08/2022,"6,345.04"
Neighbourhood & Enforcement Services,"Highways, Engineering & Project Delivery",Supplies & Services,Consultancy,W Aspen,22/08/2022,"4,360.00"
Neighbourhood & Enforcement Services,"Highways, Engineering & Project Delivery",Supplies & Services,Consultancy,W Aspen,22/08/2022,"3,276.80"
Neighbourhood & Enforcement Services,"Highways, Engineering & Project Delivery",Supplies & Services,Consultancy,W Aspen,22/08/2022,"3,312.00"
Neighbourhood & Enforcement Services,"Highways, Engineering & Project Delivery",Supplies & Services,Consultancy,W Aspen,22/08/2022,"6,976.00"
Neighbourhood & Enforcement Services,"Highways, Engineering & Project Delivery",Supplies & Services,Consultancy,W Aspen,22/08/2022,"6,241.60"
Neighbourhood & Enforcement Services,"Highways, Engineering & Project Delivery",Supplies & Services,Protective Clothing,ARCO LIMITED,17/08/2022,497.68
Neighbourhood & Enforcement Services,"Highways, Engineering & Project Delivery",Supplies & Services,Consultancy,W Aspen,22/08/2022,"3,022.76"
Neighbourhood & Enforcement Services,"Highways, Engineering & Project Delivery",Supplies & Services,Consultancy,W Aspen,22/08/2022,"1,189.70"
Neighbourhood & Enforcement Services,"Highways, Engineering & Project Delivery",Supplies & Services,Consultancy,W Aspen,22/08/2022,"5,785.54"
Neighbourhood & Enforcement Services,"Highways, Engineering & Project Delivery",Supplies & Services,Consultancy,W Aspen,22/08/2022,"7,467.44"
Neighbourhood & Enforcement Services,"Highways, Engineering & Project Delivery",Supplies & Services,Mobile Phones,EE LTD EQUIPMENT ,04/08/2022,142.00
Neighbourhood & Enforcement Services,"Highways, Engineering & Project Delivery",Supplies & Services,Mobile Phones,EE LTD EQUIPMENT ,04/08/2022,142.00
Neighbourhood & Enforcement Services,"Highways, Engineering & Project Delivery",Supplies & Services,Consultancy,W Aspen,04/08/2022,108.04
Neighbourhood & Enforcement Services,"Highways, Engineering & Project Delivery",Supplies & Services,Consultancy,W Aspen,04/08/2022,142.56
Neighbourhood & Enforcement Services,"Highways, Engineering & Project Delivery",Supplies & Services,Consultancy,W Aspen,04/08/2022,133.28
Neighbourhood & Enforcement Services,"Highways, Engineering & Project Delivery",Supplies & Services,Consultancy,W Aspen,04/08/2022,266.00
Neighbourhood & Enforcement Services,"Highways, Engineering & Project Delivery",Supplies & Services,Consultancy,W Aspen,04/08/2022,149.76
Neighbourhood & Enforcement Services,"Highways, Engineering & Project Delivery",Supplies & Services,Consultancy,W Aspen,19/08/2022,"3,172.52"
Neighbourhood & Enforcement Services,"Highways, Engineering & Project Delivery",Supplies & Services,Consultancy,W Aspen,19/08/2022,"2,877.44"
Neighbourhood & Enforcement Services,"Highways, Engineering & Project Delivery",Supplies & Services,Consultancy,W Aspen,19/08/2022,556.80
Neighbourhood & Enforcement Services,"Highways, Engineering & Project Delivery",Supplies & Services,Publications,Todays Recruitment,19/08/2022,196.40
Neighbourhood & Enforcement Services,"Highways, Engineering & Project Delivery",Supplies & Services,Consultancy,W Aspen,04/08/2022,144.13
Neighbourhood & Enforcement Services,"Highways, Engineering & Project Delivery",Supplies & Services,Consultancy,W Aspen,04/08/2022,152.88
Neighbourhood & Enforcement Services,"Highways, Engineering & Project Delivery",Supplies & Services,Consultancy,W Aspen,04/08/2022,150.04
Neighbourhood & Enforcement Services,"Highways, Engineering & Project Delivery",Supplies & Services,Consultancy,W Aspen,04/08/2022,152.46
Neighbourhood & Enforcement Services,"Highways, Engineering & Project Delivery",Supplies & Services,Consultancy,W Aspen,04/08/2022,165.12
Neighbourhood & Enforcement Services,"Highways, Engineering & Project Delivery",Supplies & Services,Consultancy,W Aspen,04/08/2022,279.68
Neighbourhood & Enforcement Services,"Highways, Engineering & Project Delivery",Supplies & Services,Consultancy,W Aspen,04/08/2022,263.34
Neighbourhood & Enforcement Services,"Highways, Engineering & Project Delivery",Supplies & Services,Consultancy,W Aspen,04/08/2022,292.32
Neighbourhood & Enforcement Services,"Highways, Engineering & Project Delivery",Supplies & Services,Equipment - Purchase,THE COAL AUTHORITY,22/08/2022,"9,724.23"
Neighbourhood & Enforcement Services,"Highways, Engineering & Project Delivery",Capital Expenditure,External Professional Fees,XAIS Asset Management Ltd,10/08/2022,"2,520.00"
Neighbourhood & Enforcement Services,"Highways, Engineering & Project Delivery",Capital Expenditure,External Professional Fees,XAIS Asset Management Ltd,10/08/2022,"4,480.00"
Neighbourhood & Enforcement Services,"Highways, Engineering & Project Delivery",Capital Expenditure,External Professional Fees,XAIS Asset Management Ltd,10/08/2022,"4,480.00"
Neighbourhood & Enforcement Services,"Highways, Engineering & Project Delivery",Capital Expenditure,External Professional Fees,XAIS Asset Management Ltd,10/08/2022,"4,742.50"
Neighbourhood & Enforcement Services,"Highways, Engineering & Project Delivery",Capital Expenditure,Payments to Contractor,Amey OW Ltd,04/08/2022,143.64
Neighbourhood & Enforcement Services,"Highways, Engineering & Project Delivery",Capital Expenditure,Payments to Contractor,GRANVILLE CONSTRUCTION & MAINTENANCE LTD,01/08/2022,"1,200.00"
Neighbourhood & Enforcement Services,"Highways, Engineering & Project Delivery",Capital Expenditure,Payments to Contractor,GRANVILLE CONSTRUCTION & MAINTENANCE LTD,01/08/2022,"1,664.80"
Neighbourhood & Enforcement Services,"Highways, Engineering & Project Delivery",Capital Expenditure,Payments to Contractor,The Tree Man,18/08/2022,"6,674.00"
Neighbourhood & Enforcement Services,"Highways, Engineering & Project Delivery",Capital Expenditure,Payments to Contractor,Security Wise Ltd,03/08/2022,"65,236.00"
Neighbourhood & Enforcement Services,"Highways, Engineering & Project Delivery",Capital Expenditure,Payments to Contractor,Id verde,17/08/2022,"64,464.65"
Neighbourhood & Enforcement Services,"Highways, Engineering & Project Delivery",Capital Expenditure,External Professional Fees,Amey OW Ltd,19/08/2022,"18,697.59"
Neighbourhood & Enforcement Services,"Highways, Engineering & Project Delivery",Capital Expenditure,Payments to Contractor,A.R.M. Surveys Ltd,30/08/2022,244.12
Neighbourhood & Enforcement Services,Neighbourhood & Environmental Services,Supplies & Services,Other Services,HILBRAE PETS HOTEL,01/08/2022,420.00
Neighbourhood & Enforcement Services,Neighbourhood & Environmental Services,Supplies & Services,Other Services,HILBRAE PETS HOTEL,01/08/2022,773.80
Neighbourhood & Enforcement Services,Neighbourhood & Environmental Services,Supplies & Services,Other Services,HILBRAE PETS HOTEL,01/08/2022,-430.00
Neighbourhood & Enforcement Services,Neighbourhood & Environmental Services,Premises-Related Expenditure,Drainage Services,H RIVER MAINTENANCE,01/08/2022,300.00
Neighbourhood & Enforcement Services,Neighbourhood & Environmental Services,Premises-Related Expenditure,Grounds Maintenance - Misc,Sharpe Pritchard LLP,09/08/2022,858.60
Neighbourhood & Enforcement Services,Neighbourhood & Environmental Services,Supplies & Services,Printing - Other,MA Creative ltd,01/08/2022,655.00
Neighbourhood & Enforcement Services,Neighbourhood & Environmental Services,Supplies & Services,Asbestos Waste,WELLINGTON INSULATION CO. LTD,19/08/2022,175.00
Neighbourhood & Enforcement Services,Neighbourhood & Environmental Services,Supplies & Services,Equipment - Purchase,J L & SONS LTD,25/08/2022,344.61
Neighbourhood & Enforcement Services,Neighbourhood & Environmental Services,Supplies & Services,Asbestos Waste,WELLINGTON INSULATION CO. LTD,25/08/2022,375.00
Neighbourhood & Enforcement Services,Neighbourhood & Environmental Services,Supplies & Services,Other Materials,Green-Tech Ltd,26/08/2022,239.25
Neighbourhood & Enforcement Services,Neighbourhood & Environmental Services,Third Party Payments,G&C Contract - Idverde,Broxap Ltd,22/08/2022,344.00
Neighbourhood & Enforcement Services,Neighbourhood & Environmental Services,Third Party Payments,Highways Contract - BBLP,Id verde,19/08/2022,"575,709.64"
Neighbourhood & Enforcement Services,Neighbourhood & Environmental Services,Third Party Payments,Private Contractors,H RIVER MAINTENANCE,09/08/2022,350.00
Neighbourhood & Enforcement Services,Neighbourhood & Environmental Services,Supplies & Services,Sport Equip - Purchase,MSM Hire Ltd,09/08/2022,"2,587.40"
Neighbourhood & Enforcement Services,Neighbourhood & Environmental Services,Supplies & Services,Sport Equip - Purchase,J L & SONS LTD,25/08/2022,260.36
Neighbourhood & Enforcement Services,Neighbourhood & Environmental Services,Employees,Recruitment Advertising,Working Planet Ltd,25/08/2022,249.00
Neighbourhood & Enforcement Services,Neighbourhood & Environmental Services,Supplies & Services,Mobile Phones,EE LTD EQUIPMENT,31/08/2022,142.00
Neighbourhood & Enforcement Services,Neighbourhood & Environmental Services,Supplies & Services,Equipment - Purchase,MSM Hire Ltd,01/08/2022,"4,297.80"
Neighbourhood & Enforcement Services,Neighbourhood & Environmental Services,Supplies & Services,Equipment - Purchase,Broxap Ltd,16/08/2022,165.00
Neighbourhood & Enforcement Services,Neighbourhood & Environmental Services,Supplies & Services,Sport Equip - Purchase,Broxap Ltd,16/08/2022,981.00
Neighbourhood & Enforcement Services,Public Protection,Employees,Staff Training,ITS Training (UK) Limited,11/08/2022,600.00
Neighbourhood & Enforcement Services,Public Protection,Employees,Cont Prof Development,ITS Training (UK) Limited,11/08/2022,200.00
Neighbourhood & Enforcement Services,Public Protection,Supplies & Services,Sampling & Analysis,Independent Polymer Technology Ltd,18/08/2022,350.00
Neighbourhood & Enforcement Services,Public Protection,Supplies & Services,Consultancy,Vivid Resourcing,09/08/2022,535.00
Neighbourhood & Enforcement Services,Public Protection,Supplies & Services,Consultancy,Vivid Resourcing,25/08/2022,493.25
Neighbourhood & Enforcement Services,Public Protection,Supplies & Services,Consultancy,Vivid Resourcing,24/08/2022,535.25
Neighbourhood & Enforcement Services,Public Protection,Supplies & Services,Consultancy,Vivid Resourcing,24/08/2022,535.00
Neighbourhood & Enforcement Services,Public Protection,Supplies & Services,Consultancy,The Oyster Partnership Ltd,11/08/2022,805.00
Neighbourhood & Enforcement Services,Public Protection,Supplies & Services,Equipment - Purchase,VIP-SYSTEMS LIMITED,24/08/2022,"2,411.91"
Neighbourhood & Enforcement Services,Public Protection,Supplies & Services,Other Services,Trebla Security Ltd,11/08/2022,929.62
Neighbourhood & Enforcement Services,Public Protection,Supplies & Services,Medical Consultants Fees,Zoo and Wildlife Solutions Ltd,24/08/2022,"1,389.51"
Neighbourhood & Enforcement Services,Public Protection,Supplies & Services,Medical Consultants Fees,Zoo and Wildlife Solutions Ltd,24/08/2022,543.98
Neighbourhood & Enforcement Services,Public Protection,Supplies & Services,Sub Contractors,O R Ltd,04/08/2022,"1,316.25"
Neighbourhood & Enforcement Services,Public Protection,Supplies & Services,Licences,R H Environmental Ltd,12/08/2022,"1,654.00"
Neighbourhood & Enforcement Services,Public Protection,Supplies & Services,Sub Contractors,O R Ltd,15/08/2022,"1,665.00"
Neighbourhood & Enforcement Services,Public Protection,Supplies & Services,Other Services,ALS ENVIRONMENTAL LIMITED,11/08/2022,155.00
Neighbourhood & Enforcement Services,Public Protection,Supplies & Services,Other Services,ALS ENVIRONMENTAL LIMITED,11/08/2022,143.38
Neighbourhood & Enforcement Services,Public Protection,Supplies & Services,Other Services,ALS ENVIRONMENTAL LIMITED,11/08/2022,155.00
Neighbourhood & Enforcement Services,Public Protection,Supplies & Services,Sub Contractors,O R Ltd,25/08/2022,"1,440.00"
Neighbourhood & Enforcement Services,Public Protection,Supplies & Services,Sub Contractors,O R Ltd,25/08/2022,"1,478.25"
Neighbourhood & Enforcement Services,Public Protection,Supplies & Services,Sub Contractors,O R Ltd,05/08/2022,"1,665.00"
Neighbourhood & Enforcement Services,Public Protection,Supplies & Services,Sub Contractors,O R Ltd,05/08/2022,"1,668.60"
Neighbourhood & Enforcement Services,Public Protection,Supplies & Services,Other Services,ALS ENVIRONMENTAL LIMITED,05/08/2022,146.88
Neighbourhood & Enforcement Services,Public Protection,Supplies & Services,Printing - Other,Austin Mix Ltd,10/08/2022,"1,440.00"
Neighbourhood & Enforcement Services,Public Protection,Supplies & Services,Printing - Other,Austin Mix Ltd,10/08/2022,252.00
Neighbourhood & Enforcement Services,Public Protection,Supplies & Services,Printing - Other,Austin Mix Ltd,10/08/2022,"8,045.80"
Neighbourhood & Enforcement Services,Public Protection,Premises-Related Expenditure,Sewage Charges,WATER PLUS ,18/08/2022,171.41
Neighbourhood & Enforcement Services,Public Protection,Premises-Related Expenditure,Sewage Charges,WATER PLUS ,18/08/2022,171.41
Neighbourhood & Enforcement Services,Public Protection,Premises-Related Expenditure,Sewage Charges,WATER PLUS ,18/08/2022,101.81
Neighbourhood & Enforcement Services,Public Protection,Premises-Related Expenditure,Sewage Charges,WATER PLUS ,18/08/2022,330.49
Neighbourhood & Enforcement Services,Public Protection,Premises-Related Expenditure,Sewage Charges,WATER PLUS ,18/08/2022,298.87
Neighbourhood & Enforcement Services,Public Protection,Premises-Related Expenditure,Sewage Charges,WATER PLUS ,18/08/2022,171.41
Neighbourhood & Enforcement Services,Public Protection,Third Party Payments,External Contractor�s - Machines,METRIC GROUP LTD,17/08/2022,704.20
Neighbourhood & Enforcement Services,Public Protection,Supplies & Services,Security Services,Security Wise Ltd,03/08/2022,"11,684.00"
Neighbourhood & Enforcement Services,Public Protection,Supplies & Services,Comp Hardware (Purch / Hire),CCS MEDIA LIMITED,16/08/2022,401.00
Neighbourhood & Enforcement Services,Public Protection,Supplies & Services,Comp Software (Purch / Hire),CCS MEDIA LIMITED,16/08/2022,884.00
Neighbourhood & Enforcement Services,Public Protection,Supplies & Services,Security Services,Security Wise Ltd,15/08/2022,"1,895.00"
Neighbourhood & Enforcement Services,Public Protection,Supplies & Services,Security Services,Security Wise Ltd,15/08/2022,"1,895.00"
Neighbourhood & Enforcement Services,Public Protection,Employees,Staff Training,Alpha Parking,17/08/2022,795.00
Neighbourhood & Enforcement Services,Public Protection,Employees,Staff Training,Alpha Parking,11/08/2022,725.00
Neighbourhood & Enforcement Services,Public Protection,Supplies & Services,Security Services,WYCHAVON DISTRICT COUNCIL,04/08/2022,"4,000.00"
Neighbourhood & Enforcement Services,Public Protection,Supplies & Services,Security Services,Chipside Ltd,01/08/2022,750.00
Neighbourhood & Enforcement Services,Public Protection,Supplies & Services,Security Services,NSL Limited ,19/08/2022,"2,407.65"
Neighbourhood & Enforcement Services,Public Protection,Supplies & Services,Mobile Phones,EE LTD EQUIPMENT,19/08/2022,142.00
Neighbourhood & Enforcement Services,Public Protection,Supplies & Services,Security Services,BemroseBooth Paragon,15/08/2022,248.00
Neighbourhood & Enforcement Services,Public Protection,Supplies & Services,Security Services,Chipside Ltd,19/08/2022,207.20
Neighbourhood & Enforcement Services,Public Protection,Supplies & Services,Security Services,NSL Limited,05/08/2022,"2,407.65"
Neighbourhood & Enforcement Services,Public Protection,Supplies & Services,Security Services,NSL Limited ,05/08/2022,"2,889.18"
Neighbourhood & Enforcement Services,Public Protection,Supplies & Services,Security Services,WYCHAVON DISTRICT COUNCIL,11/08/2022,922.00
Neighbourhood & Enforcement Services,Public Protection,Supplies & Services,Security Services,Police Crime Prevention Initiatives Limited,19/08/2022,"6,500.00"
Neighbourhood & Enforcement Services,Public Protection,Supplies & Services,Security Services,Police Crime Prevention Initiatives Limited,09/08/2022,"4,400.00"
Neighbourhood & Enforcement Services,Public Protection,Transport-Related Expenditure,Servicing & Repairs V&P,Stripe Master Ltd,30/08/2022,275.00
Neighbourhood & Enforcement Services,Safer & Stronger Communities,Supplies & Services,Security Services,Security Wise Ltd,15/08/2022,"46,745.00"
Neighbourhood & Enforcement Services,Safer & Stronger Communities,Supplies & Services,Equipment - Purchase,EMERGE DESIGN LTD,11/08/2022,601.50
Neighbourhood & Enforcement Services,Safer & Stronger Communities,Premises-Related Expenditure,General Rents,BROMFORD HOUSING ASSOCIATION LIMITED,03/08/2022,611.63
Neighbourhood & Enforcement Services,Safer & Stronger Communities,Premises-Related Expenditure,Leasehold Rents,GPS Property Shropshire LLP,15/08/2022,600.00
Neighbourhood & Enforcement Services,Safer & Stronger Communities,Premises-Related Expenditure,Leasehold Rents,GPS Property Shropshire LLP,15/08/2022,650.00
Neighbourhood & Enforcement Services,Safer & Stronger Communities,Third Party Payments,Other Government - Services,UK Health Security Agency,10/08/2022,"314,344.00"
Neighbourhood & Enforcement Services,Safer & Stronger Communities,Premises-Related Expenditure,Leasehold Rents,THE WREKIN HOUSING TRUST,17/08/2022,"1,345.76"
Neighbourhood & Enforcement Services,Safer & Stronger Communities,Premises-Related Expenditure,General Rents,THE WREKIN HOUSING TRUST ,11/08/2022,"1,025.22"
Neighbourhood & Enforcement Services,Safer & Stronger Communities,Premises-Related Expenditure,Leasehold Rents,THE WREKIN HOUSING TRUST ,23/08/2022,"1,131.65"
Neighbourhood & Enforcement Services,Safer & Stronger Communities,Supplies & Services,Other Services,HOLLINSWOOD & RANDLAY PARISH COUNCIL,12/08/2022,"2,000.00"
Neighbourhood & Enforcement Services,Safer & Stronger Communities,Supplies & Services,Other Services,PARK LANE CENTRE,09/08/2022,500.00
Neighbourhood & Enforcement Services,Safer & Stronger Communities,Supplies & Services,Other Services,SHROPSHIRE CRICKET BOARD,26/08/2022,"1,495.00"
Neighbourhood & Enforcement Services,Safer & Stronger Communities,Supplies & Services,Emergency Provisions for Young People,Post Office Ltd,18/08/2022,"10,000.00"
Neighbourhood & Enforcement Services,Safer & Stronger Communities,Supplies & Services,Furniture - Purchase,DK Furniture Limited,11/08/2022,"1,750.00"
Neighbourhood & Enforcement Services,Strategic Transport & Highway Network Management,Supplies & Services,Advertising,THE MIDLAND NEWS ASSOCIATION LTD,22/08/2022,110.88
Neighbourhood & Enforcement Services,Strategic Transport & Highway Network Management,Supplies & Services,Advertising,THE MIDLAND NEWS ASSOCIATION LTD,22/08/2022,110.88
Neighbourhood & Enforcement Services,Strategic Transport & Highway Network Management,Supplies & Services,Advertising,THE MIDLAND NEWS ASSOCIATION LTD,22/08/2022,110.88
Neighbourhood & Enforcement Services,Strategic Transport & Highway Network Management,Supplies & Services,Advertising,THE MIDLAND NEWS ASSOCIATION LTD,17/08/2022,110.88
Neighbourhood & Enforcement Services,Strategic Transport & Highway Network Management,Supplies & Services,Mobile Phones,EE LTD EQUIPMENT ,04/08/2022,142.00
Neighbourhood & Enforcement Services,Strategic Transport & Highway Network Management,Supplies & Services,Advertising,THE MIDLAND NEWS ASSOCIATION LTD,16/08/2022,138.60
Neighbourhood & Enforcement Services,Strategic Transport & Highway Network Management,Supplies & Services,Advertising,THE MIDLAND NEWS ASSOCIATION LTD,16/08/2022,138.60
Neighbourhood & Enforcement Services,Strategic Transport & Highway Network Management,Supplies & Services,Advertising,THE MIDLAND NEWS ASSOCIATION LTD,26/08/2022,110.88
Neighbourhood & Enforcement Services,Strategic Transport & Highway Network Management,Supplies & Services,Mobile Phones,EE LTD EQUIPMENT ,04/08/2022,284.00
Neighbourhood & Enforcement Services,Strategic Transport & Highway Network Management,Supplies & Services,Advertising,THE MIDLAND NEWS ASSOCIATION LTD,16/08/2022,138.60
Neighbourhood & Enforcement Services,Strategic Transport & Highway Network Management,Supplies & Services,Advertising,THE MIDLAND NEWS ASSOCIATION LTD,16/08/2022,110.88
Neighbourhood & Enforcement Services,Strategic Transport & Highway Network Management,Supplies & Services,Advertising,THE MIDLAND NEWS ASSOCIATION LTD,16/08/2022,110.88
Neighbourhood & Enforcement Services,Strategic Transport & Highway Network Management,Supplies & Services,Consultancy,W Aspen,16/08/2022,"3,852.16"
Neighbourhood & Enforcement Services,Strategic Transport & Highway Network Management,Supplies & Services,Consultancy,Carrington West Ltd,26/08/2022,"1,655.50"
Neighbourhood & Enforcement Services,Strategic Transport & Highway Network Management,Supplies & Services,Consultancy,Carrington West Ltd,26/08/2022,"1,674.75"
Neighbourhood & Enforcement Services,Strategic Transport & Highway Network Management,Supplies & Services,Consultancy,Carrington West Ltd,01/08/2022,"1,578.50"
Neighbourhood & Enforcement Services,Strategic Transport & Highway Network Management,Supplies & Services,Consultancy,W Aspen,22/08/2022,"3,211.47"
Neighbourhood & Enforcement Services,Strategic Transport & Highway Network Management,Supplies & Services,Consultancy,Carrington West Ltd,22/08/2022,"1,347.50"
Neighbourhood & Enforcement Services,Strategic Transport & Highway Network Management,Supplies & Services,Consultancy,W Aspen,22/08/2022,"3,206.48"
Neighbourhood & Enforcement Services,Strategic Transport & Highway Network Management,Supplies & Services,Consultancy,Carrington West Ltd,08/08/2022,"1,674.75"
Neighbourhood & Enforcement Services,Strategic Transport & Highway Network Management,Supplies & Services,Consultancy,W Aspen,19/08/2022,"2,911.72"
Neighbourhood & Enforcement Services,Strategic Transport & Highway Network Management,Supplies & Services,Consultancy,Carrington West Ltd,04/08/2022,"1,694.00"
Neighbourhood & Enforcement Services,Strategic Transport & Highway Network Management,Supplies & Services,Concessionary Travel,Banga Travel,04/08/2022,"2,071.00"
Neighbourhood & Enforcement Services,Strategic Transport & Highway Network Management,Supplies & Services,Computer Software (Maint),Unicard Ltd,24/08/2022,809.70
Neighbourhood & Enforcement Services,Strategic Transport & Highway Network Management,Transport-Related Expenditure,Subsidised Routes,West Mercia Energy,12/08/2022,122.90
Neighbourhood & Enforcement Services,Strategic Transport & Highway Network Management,Transport-Related Expenditure,Subsidised Routes,West Mercia Energy,12/08/2022,133.03
Neighbourhood & Enforcement Services,Strategic Transport & Highway Network Management,Transport-Related Expenditure,Subsidised Routes,West Mercia Energy,12/08/2022,147.34
Neighbourhood & Enforcement Services,Strategic Transport & Highway Network Management,Transport-Related Expenditure,Subsidised Routes,West Mercia Energy,12/08/2022,114.27
Neighbourhood & Enforcement Services,Strategic Transport & Highway Network Management,Supplies & Services,Equipment - Purchase,DAYS RENTAL,08/08/2022,177.51
Neighbourhood & Enforcement Services,Strategic Transport & Highway Network Management,Transport-Related Expenditure,Servicing & Repairs V&P,THE LODGE TYRE CO LTD,04/08/2022,262.50
Neighbourhood & Enforcement Services,Strategic Transport & Highway Network Management,Transport-Related Expenditure,Servicing & Repairs V&P,DAYS RENTAL,04/08/2022,153.12
Neighbourhood & Enforcement Services,Strategic Transport & Highway Network Management,Transport-Related Expenditure,Servicing & Repairs V&P,DAYS RENTAL,12/08/2022,311.24
Neighbourhood & Enforcement Services,Strategic Transport & Highway Network Management,Transport-Related Expenditure,Servicing & Repairs V&P,DAYS RENTAL,08/08/2022,207.48
Neighbourhood & Enforcement Services,Strategic Transport & Highway Network Management,Transport-Related Expenditure,Servicing & Repairs V&P,DAYS RENTAL,08/08/2022,391.56
Neighbourhood & Enforcement Services,Strategic Transport & Highway Network Management,Transport-Related Expenditure,Servicing & Repairs V&P,DAYS RENTAL,08/08/2022,203.00
Neighbourhood & Enforcement Services,Strategic Transport & Highway Network Management,Transport-Related Expenditure,Servicing & Repairs V&P,DAYS RENTAL,08/08/2022,203.00
Neighbourhood & Enforcement Services,Strategic Transport & Highway Network Management,Transport-Related Expenditure,Servicing & Repairs V&P,DAYS RENTAL,08/08/2022,370.14
Neighbourhood & Enforcement Services,Strategic Transport & Highway Network Management,Transport-Related Expenditure,Servicing & Repairs V&P,DAYS RENTAL,08/08/2022,203.00
Neighbourhood & Enforcement Services,Strategic Transport & Highway Network Management,Transport-Related Expenditure,Servicing & Repairs V&P,DAYS RENTAL,08/08/2022,203.00
Neighbourhood & Enforcement Services,Strategic Transport & Highway Network Management,Transport-Related Expenditure,Servicing & Repairs V&P,DAYS RENTAL,08/08/2022,203.00
Neighbourhood & Enforcement Services,Strategic Transport & Highway Network Management,Transport-Related Expenditure,Servicing & Repairs V&P,AEM GROUP LTD,08/08/2022,120.00
Neighbourhood & Enforcement Services,Strategic Transport & Highway Network Management,Transport-Related Expenditure,Servicing & Repairs V&P,AEM GROUP LTD,08/08/2022,120.00
Neighbourhood & Enforcement Services,Strategic Transport & Highway Network Management,Transport-Related Expenditure,Servicing & Repairs V&P,FURROWS OF TELFORD,25/08/2022,360.84
Neighbourhood & Enforcement Services,Strategic Transport & Highway Network Management,Transport-Related Expenditure,Servicing & Repairs V&P,FURROWS OF TELFORD,25/08/2022,213.96
Neighbourhood & Enforcement Services,Strategic Transport & Highway Network Management,Transport-Related Expenditure,Servicing & Repairs V&P,FURROWS OF TELFORD,25/08/2022,220.00
Neighbourhood & Enforcement Services,Strategic Transport & Highway Network Management,Transport-Related Expenditure,Servicing & Repairs V&P,FURROWS OF TELFORD,25/08/2022,220.00
Neighbourhood & Enforcement Services,Strategic Transport & Highway Network Management,Transport-Related Expenditure,Fuel,ALLSTAR BUSINESS SOLUTIONS LTD,04/08/2022,"7,600.77"
Neighbourhood & Enforcement Services,Strategic Transport & Highway Network Management,Transport-Related Expenditure,Fuel,ALLSTAR BUSINESS SOLUTIONS LTD,08/08/2022,"7,917.49"
